Workbook

Sheet readme
A1: Yellow worksheets Inputs used
A2: Green worksheets Outputs tabulated for inclusion in MCA documents incl. those in Attachment E
A3: Black worksheets include the MCA calculations - cost phasing by year and calculation of IDC and Inflation..
A4: Red worksheets - for a selected individual project contain costing inputs and workings for the P50 cost calculations.
A5: Beige worksheets shows the TEES estimates for the projects costed at TEES level.
A7: The workbook uses the Macro CreateAllOutputs

Sheet NZGP project list
D2: Adjusted | F2: Original | H2: Adjusted
D3: Construction | F3: Construction | H3: Construction
D4: Start | E4: Finish | F4: Start | G4: Finish | H4: Start | I4: Finish
B5: CNI | C5: Lines - BPE-TKU-A&B TTU | D5: =IF($D$2="Original",F5,H5) -> 2024-09-02 | E5: =IF($D$2="Original",G5,I5) -> 2026-12-31 | F5: 2024-09-02 | G5: 2027-06-30 | H5: 2024-09-02 | I5: 2026-12-31
B6: CNI | C6: Lines - TKU-WKM TTU | D6: =IF($D$2="Original",F6,H6) -> 2022-11-01 | E6: =IF($D$2="Original",G6,I6) -> 2024-12-31 | F6: 2022-11-01 | G6: 2024-06-30 | H6: 2022-11-01 | I6: 2024-12-31
B7: CNI | C7: Lines - TKU-WKM-AB Duplexing NZ | D7: 2024-09-01 | E7: 2028-06-30 | F7: 2024-09-01 | G7: 2028-06-30 | H7: 2024-09-01 | I7: 2028-06-30
B8: CNI | C8: Subs - BPE-TKU-WKM 1&2 Uprating | D8: 2023-09-01 | E8: 2026-12-31 | F8: 2023-09-01 | G8: 2026-06-30 | H8: 2023-09-01 | I8: 2026-12-31
B9: WRK Ring | C9: Lines - WRK-WKM-C TTU | D9: 2022-09-01 | E9: 2025-12-31 | F9: 2022-09-01 | G9: 2024-06-30 | H9: 2022-09-01 | I9: 2025-12-31
B10: WRK Ring | C10: Lines - EDG-KAW-3 TTU | D10: 2023-09-01 | E10: 2025-06-30 | F10: 2023-09-01 | G10: 2024-06-30 | H10: 2023-09-01 | I10: 2025-06-30
B11: WRK Ring | C11: Subs - WRK-THI-WKM 1&1 Uprating | D11: 2023-09-01 | E11: 2025-06-30 | F11: 2023-09-01 | G11: 2025-06-30 | H11: 2023-09-01 | I11: 2025-06-30
B12: WRK Ring | C12: Subs - EDG-KAW Uprating | D12: 2023-09-01 | E12: 2025-06-30 | F12: 2023-09-01 | G12: 2025-09-30 | H12: 2023-09-01 | I12: 2025-06-30
B13: HVDC | C13: Subs - HVDC Capacity Stage 1 | D13: 2024-07-01 | E13: 2027-05-31 | F13: 2024-07-01 | G13: 2027-05-31 | H13: 2024-07-01 | I13: 2027-05-31

Sheet assumptions
A1: Exchange rates (used in TEES - not used in this workbook) | M1: Interest Rates | Z1: CPI Updates (calculations use BYEFU2022 rates)
A3: These rates are used in TEES but not this worksheet in which all costs have already been converted to NZD.
A4: Currency | B4: Period Start | C4: Exchange Rate | E4: NZD:USD rates | AC4: actual Annual CPI to June 2022 | AD4: 0.073
A5: AUD | B5: 2016-07-01 | C5: 0.9457 | E5: USD | F5: 2022-07-01 | G5: 0.6412
A6: AUD | B6: 2017-07-01 | C6: 0.9497421753 | E6: USD | F6: 2023-07-01 | G6: 0.6391 | AD6: 2022 | AE6: 2023 | AF6: 2024 | AG6: 2025 | AH6: 2026 | AI6: 2027 | AJ6: 2028 | AK6: 2029 | AL6: 2030
A7: AUD | B7: 2018-07-01 | C7: 0.9141 | E7: USD | F7: 2024-07-01 | G7: 0.6365 | AC7: BYEFU 19 May 2022 | AD7: 0.067 | AE7: 0.052 | AF7: 0.036 | AG7: 0.027 | AH7: 0.022 | AI7: 0.02 | AJ7: 0.02 | AK7: 0.02 | AL7: 0.02
A8: AUD | B8: 2019-07-01 | C8: 0.9276 | E8: USD | F8: 2025-07-01 | G8: 0.6408 | AC8: RBNZ as August Monetary policy statement | AD8: 0.063 | AE8: 0.055 | AF8: 0.034 | AG8: 0.021
A9: AUD | B9: 2020-07-01 | C9: 0.9347 | E9: USD | F9: 2026-07-01 | G9: 0.6408 | M9: Forecast interest rates are | AC9: BYEFU May 2023 | AE9: 0.062 | AF9: 0.033 | AG9: 0.025 | AH9: 0.023 | AI9: 0.022 | AJ9: 0.021 | AK9: 0.021 | AL9: 0.02
A10: AUD | B10: 2021-07-01 | C10: 0.9335 | E10: USD | F10: 2027-07-01 | G10: 0.6408 | AC10: RBNZ as May2022 Monetary policy statement | AD10: 0.073 | AE10: 0.06 | AF10: 0.037 | AG10: 0.022 | AH10: 0.02
A11: AUD | B11: 2022-07-01 | C11: 0.9331 | E11: USD | F11: 2028-07-01 | G11: 0.6408 | M11: 2023/24 3.13%
A12: AUD | B12: 2023-07-01 | C12: 0.9295 | E12: USD | F12: 2029-07-01 | G12: 0.6408 | M12: 2024/25 3.12%
A13: AUD | B13: 2024-07-01 | C13: 0.9335 | M13: RCP4 2025/26-2029/30 5.67%
A14: AUD | B14: 2025-07-01 | C14: 0.9327 | M14: RCP5 2030/31-2034/35 5.68%
A15: CAD | B15: 2016-07-01 | C15: 0.9335
A16: CAD | B16: 2017-07-01 | C16: 0.9327
A17: CAD | B17: 2018-07-01 | C17: 0.891
A18: CAD | B18: 2019-07-01 | C18: 0.9342
A19: CAD | B19: 2020-07-01 | C19: 0.8747
A20: CAD | B20: 2021-07-01 | C20: 0.8744
A21: CAD | B21: 2022-07-01 | C21: 0.875
A22: CAD | B22: 2023-07-01 | C22: 0.8755
A23: CAD | B23: 2024-07-01 | C23: 0.8751
A24: CAD | B24: 2025-07-01 | C24: 0.8749
A25: CNY | B25: 2016-07-01 | C25: 4.7841
A26: CNY | B26: 2017-07-01 | C26: 5.045869875
A27: CNY | B27: 2018-07-01 | C27: 4.6695
A28: CNY | B28: 2019-07-01 | C28: 4.7056
A29: CNY | B29: 2020-07-01 | C29: 4.7863
A30: CNY | B30: 2021-07-01 | C30: 4.8205
A31: CNY | B31: 2022-07-01 | C31: 4.849
A32: CNY | B32: 2023-07-01 | C32: 4.8774
A33: EUR | B33: 2016-07-01 | C33: 0.6436
A34: EUR | B34: 2017-07-01 | C34: 0.6200668268
A35: EUR | B35: 2018-07-01 | C35: 0.5989
A36: EUR | B36: 2019-07-01 | C36: 0.5696
A37: EUR | B37: 2020-07-01 | C37: 0.5686
A38: EUR | B38: 2021-07-01 | C38: 0.5623
A39: EUR | B39: 2022-07-01 | C39: 0.5554
A40: EUR | B40: 2023-07-01 | C40: 0.5479
A41: EUR | B41: 2024-07-01 | C41: 0.5394
A42: EUR | B42: 2025-07-01 | C42: 0.5547
A43: GBP | B43: 2016-07-01 | C43: 0.5460288691
A44: GBP | B44: 2017-07-01 | C44: 0.5460288691
A45: GBP | B45: 2018-07-01 | C45: 0.528
A46: GBP | B46: 2019-07-01 | C46: 0.5153
A47: GBP | B47: 2020-07-01 | C47: 0.5187
A48: GBP | B48: 2021-07-01 | C48: 0.5165
A49: GBP | B49: 2022-07-01 | C49: 0.514
A50: GBP | B50: 2023-07-01 | C50: 0.511
A51: GBP | B51: 2024-07-01 | C51: 0.5069
A52: GBP | B52: 2025-07-01 | C52: 0.5134
A53: HKD | B53: 2016-07-01 | C53: 5.5809
A54: HKD | B54: 2017-07-01 | C54: 5.585553174
A55: HKD | B55: 2018-07-01 | C55: 5.5888
A56: HKD | B56: 2019-07-01 | C56: 4.5718
A57: HKD | B57: 2020-07-01 | C57: 4.5562
A58: HKD | B58: 2021-07-01 | C58: 4.54
A59: HKD | B59: 2022-07-01 | C59: 4.506
A60: HKD | B60: 2023-07-01 | C60: 4.4542
A61: IDR | B61: 2016-07-01 | C61: 9302.82
A62: IDR | B62: 2017-07-01 | C62: 9689.883812
A63: IDR | B63: 2018-07-01 | C63: 9637.6
A64: IDR | B64: 2019-07-01 | C64: 10030.0625
A65: IDR | B65: 2020-07-01 | C65: 10030.0625
A66: IDR | B66: 2021-07-01 | C66: 10030.0625
A67: JPY | B67: 2016-07-01 | C67: 73.576
A68: JPY | B68: 2017-07-01 | C68: 72.55915751
A69: JPY | B69: 2018-07-01 | C69: 80.533
A70: JPY | B70: 2019-07-01 | C70: 77.247
A71: JPY | B71: 2020-07-01 | C71: 69.58
A72: JPY | B72: 2021-07-01 | C72: 69.42
A73: JPY | B73: 2022-07-01 | C73: 69.21
A74: JPY | B74: 2023-07-01 | C74: 68.98
A75: JPY | B75: 2024-07-01 | C75: 68.69
A76: JPY | B76: 2025-07-01 | C76: 69.178
A77: KRW | B77: 2016-07-01 | C77: 799.9854
A78: KRW | B78: 2017-07-01 | C78: 836.6114684
A79: KRW | B79: 2018-07-01 | C79: 765.5938
A80: KRW | B80: 2019-07-01 | C80: 778.4372
A81: KRW | B81: 2020-07-01 | C81: 778.9206
A82: KRW | B82: 2021-07-01 | C82: 777.744
A83: MYR | B83: 2016-07-01 | C83: 2.8916
A84: MYR | B84: 2017-07-01 | C84: 3.157897349
A85: MYR | B85: 2018-07-01 | C85: 2.8755
A86: MYR | B86: 2019-07-01 | C86: 2.8697
A87: MYR | B87: 2020-07-01 | C87: 2.8697
A88: MYR | B88: 2021-07-01 | C88: 2.8697
A89: SEK | B89: 2016-07-01 | C89: 6.1482
A90: SEK | B90: 2017-07-01 | C90: 6.043370695
A91: SEK | B91: 2018-07-01 | C91: 5.8817
A92: SEK | B92: 2019-07-01 | C92: 5.8154
A93: SEK | B93: 2020-07-01 | C93: 5.981
A94: SEK | B94: 2021-07-01 | C94: 5.944
A95: SEK | B95: 2022-07-01 | C95: 5.904
A96: SEK | B96: 2023-07-01 | C96: 5.865
A97: SEK | B97: 2024-07-01 | C97: 5.814
A98: SEK | B98: 2025-07-01 | C98: 5.9014
A99: SGD | B99: 2016-07-01
A100: SGD | B100: 2017-07-01
A101: SGD | B101: 2018-07-01 | C101: 0.9545
A102: SGD | B102: 2019-07-01 | C102: 0.9494
A103: SGD | B103: 2020-07-01 | C103: 0.9494
A104: SGD | B104: 2021-07-01 | C104: 0.9566
A105: SGD | B105: 2022-07-01 | C105: 0.9518
A106: SGD | B106: 2023-07-01 | C106: 0.9445
A107: THB | B107: 2016-07-01 | C107: 25.0027
A108: THB | B108: 2017-07-01 | C108: 24.65709705
A109: THB | B109: 2018-07-01 | C109: 23.0576
A110: THB | B110: 2019-07-01 | C110: 22.8182
A111: THB | B111: 2020-07-01 | C111: 22.832
A112: THB | B112: 2021-07-01 | C112: 22.832
A113: TWD | B113: 2016-07-01 | C113: 22.9156
A114: TWD | B114: 2017-07-01 | C114: 22.722
A115: TWD | B115: 2018-07-01 | C115: 21.0998
A116: TWD | B116: 2019-07-01 | C116: 21.3099
A117: TWD | B117: 2020-07-01 | C117: 21.3231
A118: TWD | B118: 2021-07-01 | C118: 21.909
A119: TWD | B119: 2022-07-01 | C119: 21.1855
A120: TWD | B120: 2023-07-01 | C120: 21.0231
A121: USD | B121: 2016-07-01 | C121: 0.7197
A122: USD | B122: 2017-07-01 | C122: 0.712791
A123: USD | B123: 2018-07-01 | C123: 0.7146
A124: USD | B124: 2019-07-01 | C124: 0.7284
A125: USD | B125: 2020-07-01 | C125: 0.6444
A126: USD | B126: 2021-07-01 | C126: 0.643
A127: USD | B127: 2022-07-01 | C127: 0.6412
A128: USD | B128: 2023-07-01 | C128: 0.6391
A129: USD | B129: 2024-07-01 | C129: 0.6365
A130: USD | B130: 2025-07-01 | C130: 0.6408

Sheet MCA - annual costs
M1: Record of initial MCA
B2: calculated - table included in MCA documents | M2: calculated - table included in MCA documents
B3: Major Capex Allowance, $000, P50 | C3: 2022 | D3: 2023 | E3: 2024 | F3: 2025 | G3: 2026 | H3: 2027 | I3: 2028 | J3: 2029 | K3: Total | M3: Major Capex Allowance, $000, P50 | N3: 2022 | O3: 2023 | P3: 2024 | Q3: 2025 | R3: 2026 | S3: 2027 | T3: 2028 | U3: 2029 | V3: Total
B4: Capex - total risk adjusted (real 2022) | C4: =SUMIF($B$17:$B$71,$B4,C$17:C$71) -> 3578963.331 | D4: =SUMIF($B$17:$B$71,$B4,D$17:D$71) -> 24759852.27 | E4: =SUMIF($B$17:$B$71,$B4,E$17:E$71) -> 71207293.79 | F4: 93805188.48 | G4: 83977710.8 | H4: 37656360.79 | I4: 11797936.6 | J4: =SUMIF($B$17:$B$71,$B4,J$17:J$61) -> 0 | K4: =SUM(C4:J4) -> 326783306.1 | M4: Capex - total risk adjusted (real 2022) | N4: 4767755.065 | O4: 31733877.05 | P4: 65204288.62 | Q4: 86914789.59 | R4: 77350414.88 | S4: 49014244.26 | T4: 11797936.6 | U4: 0 | V4: 326783306.1
B5: Inflation | C5: =SUMIF($B$17:$B$71,$B5,C$17:C$61) -> 54361.56175 | D5: 1085366.183 | E5: 6588919.064 | F5: 11238786.5 | G5: 12864772.88 | H5: 6587651.679 | I5: 2297241.383 | J5: 0 | K5: =SUM(C5:J5) -> 40717099.26 | M5: Inflation | N5: 71333.67227 | O5: 1465757.417 | P5: 5877082.003 | Q5: 10386826.35 | R5: 11831213.97 | S5: 8533140.443 | T5: 2297241.383 | U5: 0 | V5: 40462595.23
B6: Capex - total risk adjusted (nominal) | C6: 3633324.893 | D6: 25845218.45 | E6: 77796212.85 | F6: 105043975 | G6: 96842483.68 | H6: 44244012.47 | I6: 14095177.98 | J6: 0 | K6: =SUM(C6:J6) -> 367500405.3 | M6: Capex - total risk adjusted (nominal) | N6: 4839088.738 | O6: 33199634.47 | P6: 71081370.62 | Q6: 97301615.93 | R6: 89181628.85 | S6: 57547384.71 | T6: 14095177.98 | U6: 0 | V6: 367245901.3
B7: Interest during construction (IDC) | C7: 15848.63837 | D7: 375299.2869 | E7: 1540834.139 | F7: 3366725.21 | G7: 10641779.95 | H7: 6736786.895 | I7: 2707802.425 | J7: 0 | K7: =SUM(C7:J7) -> 25385076.54 | M7: Interest during construction (IDC) | N7: 21590.80393 | O7: 500528.8217 | P7: 1180757.878 | Q7: 3046418.195 | R7: 9648832.537 | S7: 8682921.638 | T7: 2707802.425 | U7: 0 | V7: 25788852.3
B8: Major Capex Allowance | C8: 3649173.531 | D8: 26220517.74 | E8: 79337046.99 | F8: 108410700.2 | G8: 107484263.6 | H8: 50980799.37 | I8: 16802980.41 | J8: 0 | K8: =SUM(C8:J8) -> 392885481.9 | M8: Major Capex Allowance | N8: 4860679.541 | O8: 33700163.29 | P8: 72262128.5 | Q8: 100348034.1 | R8: 98830461.38 | S8: 66230306.34 | T8: 16802980.41 | U8: 0 | V8: 393034753.6
A15: Macro dumped
A16: Project | B16: Major Capex Allowance, $000, P50 | C16: 2022 | D16: 2023 | E16: 2024 | F16: 2025 | G16: 2026 | H16: 2027 | I16: 2028 | J16: 2029 | K16: Total
A17: Lines - BPE-TKU-A&B TTU | B17: Capex - total risk adjusted (real 2022) | C17: 0 | D17: 0 | E17: 13629460.17 | F17: 27258920.33 | G17: 27258920.33 | H17: 0 | I17: 0 | J17: 0 | K17: =SUM(C17:J17) -> 68147300.83
A18: Lines - BPE-TKU-A&B TTU | B18: Inflation | C18: 0 | D18: 0 | E18: 1401250.999 | F18: 3443231.775 | G18: 4175867.808 | H18: 0 | I18: 0 | J18: 0 | K18: =SUM(C18:J18) -> 9020350.581
A19: Lines - BPE-TKU-A&B TTU | B19: Capex - total risk adjusted (nominal) | C19: 0 | D19: 0 | E19: 15030711.16 | F19: 30702152.11 | G19: 31434788.14 | H19: 0 | I19: 0 | J19: 0 | K19: 77167651.41
A20: Lines - BPE-TKU-A&B TTU | B20: Interest during construction (IDC) | C20: 0 | D20: 0 | E20: 114595.9614 | F20: 929563.64 | G20: 3368196.235 | H20: 0 | I20: 0 | J20: 0 | K20: 4412355.837
A21: Lines - BPE-TKU-A&B TTU | B21: Major Capex Allowance | C21: 0 | D21: 0 | E21: 15145307.13 | F21: 31631715.75 | G21: 34802984.38 | H21: 0 | I21: 0 | J21: 0 | K21: 81580007.25
A22: Lines - TKU-WKM TTU | B22: Capex - total risk adjusted (real 2022) | C22: 3107850.887 | D22: 12431403.55 | E22: 12431403.55 | F22: 0 | G22: 0 | H22: 0 | I22: 0 | J22: 0 | K22: 27970657.98
A23: Lines - TKU-WKM TTU | B23: Inflation | C23: 50797.45834 | D23: 611212.2586 | E23: 1157927.428 | F23: 0 | G23: 0 | H23: 0 | I23: 0 | J23: 0 | K23: 1819937.145
A24: Lines - TKU-WKM TTU | B24: Capex - total risk adjusted (nominal) | C24: 3158648.345 | D24: 13042615.81 | E24: 13589330.97 | F24: 0 | G24: 0 | H24: 0 | I24: 0 | J24: 0 | K24: 29790595.12
A25: Lines - TKU-WKM TTU | B25: Interest during construction (IDC) | C25: 11920.17821 | D25: 290684.1015 | E25: 693126.8801 | F25: 0 | G25: 0 | H25: 0 | I25: 0 | J25: 0 | K25: 995731.1598
A26: Lines - TKU-WKM TTU | B26: Major Capex Allowance | C26: 3170568.523 | D26: 13333299.91 | E26: 14282457.85 | F26: 0 | G26: 0 | H26: 0 | I26: 0 | J26: 0 | K26: 30786326.28
A27: Lines - TKU-WKM-AB Duplexing NZ | B27: Capex - total risk adjusted (real 2022) | C27: 0 | D27: 0 | E27: 11797936.6 | F27: 23595873.2 | G27: 23595873.2 | H27: 23595873.2 | I27: 11797936.6 | J27: 0 | K27: 94383492.79
A28: Lines - TKU-WKM-AB Duplexing NZ | B28: Inflation | C28: 0 | D28: 0 | E28: 1212951.228 | F28: 2980531.12 | G28: 3614715.699 | H28: 4179234.592 | I28: 2297241.383 | J28: 0 | K28: 14284674.02
A29: Lines - TKU-WKM-AB Duplexing NZ | B29: Capex - total risk adjusted (nominal) | C29: 0 | D29: 0 | E29: 13010887.83 | F29: 26576404.32 | G29: 27210588.9 | H29: 27775107.79 | I29: 14095177.98 | J29: 0 | K29: 108668166.8
A30: Lines - TKU-WKM-AB Duplexing NZ | B30: Interest during construction (IDC) | C30: 0 | D30: 0 | E30: 96371.3093 | F30: 781731.4328 | G30: 2832538.576 | H30: 4297999.706 | I30: 2707802.425 | J30: 0 | K30: 10716443.45
A31: Lines - TKU-WKM-AB Duplexing NZ | B31: Major Capex Allowance | C31: 0 | D31: 0 | E31: 13107259.14 | F31: 27358135.75 | G31: 30043127.47 | H31: 32073107.49 | I31: 16802980.41 | J31: 0 | K31: 119384610.3
A32: Subs - BPE-TKU-WKM 1&2 Uprating | B32: Capex - total risk adjusted (real 2022) | C32: 0 | D32: 2500971.04 | E32: 5001942.08 | F32: 5001942.08 | G32: 5001942.08 | H32: 0 | I32: 0 | J32: 0 | K32: 17506797.28
A33: Subs - BPE-TKU-WKM 1&2 Uprating | B33: Inflation | C33: 0 | D33: 156216.817 | E33: 465907.6431 | F33: 631824.2138 | G33: 766261.0497 | H33: 0 | I33: 0 | J33: 0 | K33: 2020209.724
A34: Subs - BPE-TKU-WKM 1&2 Uprating | B34: Capex - total risk adjusted (nominal) | C34: 0 | D34: 2657187.857 | E34: 5467849.723 | F34: 5633766.294 | G34: 5768203.13 | H34: 0 | I34: 0 | J34: 0 | K34: 19527007
A35: Subs - BPE-TKU-WKM 1&2 Uprating | B35: Interest during construction (IDC) | C35: 0 | D35: 20487.68838 | E35: 166329.2047 | F35: 339239.301 | G35: 923682.552 | H35: 0 | I35: 0 | J35: 0 | K35: 1449738.746
A36: Subs - BPE-TKU-WKM 1&2 Uprating | B36: Major Capex Allowance | C36: 0 | D36: 2677675.545 | E36: 5634178.928 | F36: 5973005.595 | G36: 6691885.682 | H36: 0 | I36: 0 | J36: 0 | K36: 20976745.75
A37: Lines - WRK-WKM-C TTU | B37: Capex - total risk adjusted (real 2022) | C37: 471112.4441 | D37: 802224.9023 | E37: 802224.9023 | F37: 802224.9023 | G37: 0 | H37: 0 | I37: 0 | J37: 0 | K37: 2877787.151
A38: Lines - WRK-WKM-C TTU | B38: Inflation | C38: 3564.103411 | D38: 39442.8266 | E38: 74723.51888 | F38: 101333.664 | G38: 0 | H38: 0 | I38: 0 | J38: 0 | K38: 219064.1129
A39: Lines - WRK-WKM-C TTU | B39: Capex - total risk adjusted (nominal) | C39: 474676.5475 | D39: 841667.7288 | E39: 876948.4211 | F39: 903558.5663 | G39: 0 | H39: 0 | I39: 0 | J39: 0 | K39: 3096851.264
A40: Lines - WRK-WKM-C TTU | B40: Interest during construction (IDC) | C40: 3928.460164 | D40: 27603.2344 | E40: 54217.68453 | F40: 82036.45059 | G40: 0 | H40: 0 | I40: 0 | J40: 0 | K40: 167785.8297
A41: Lines - WRK-WKM-C TTU | B41: Major Capex Allowance | C41: 478605.0077 | D41: 869270.9632 | E41: 931166.1057 | F41: 985595.0169 | G41: 0 | H41: 0 | I41: 0 | J41: 0 | K41: 3264637.093
A42: Lines - EDG-KAW-3 TTU | B42: Capex - total risk adjusted (real 2022) | C42: 0 | D42: 2416208.206 | E42: 4832416.411 | F42: 2416208.206 | G42: 0 | H42: 0 | I42: 0 | J42: 0 | K42: 9664832.823
A43: Lines - EDG-KAW-3 TTU | B43: Inflation | C43: 0 | D43: 150922.3213 | E43: 450117.1155 | F43: 287079.5643 | G43: 0 | H43: 0 | I43: 0 | J43: 0 | K43: 888119.0011
A44: Lines - EDG-KAW-3 TTU | B44: Capex - total risk adjusted (nominal) | C44: 0 | D44: 2567130.527 | E44: 5282533.527 | F44: 2703287.77 | G44: 0 | H44: 0 | I44: 0 | J44: 0 | K44: 10552951.82
A45: Lines - EDG-KAW-3 TTU | B45: Interest during construction (IDC) | C45: 0 | D45: 19793.32027 | E45: 160691.9804 | F45: 142755.0853 | G45: 0 | H45: 0 | I45: 0 | J45: 0 | K45: 323240.3859
A46: Lines - EDG-KAW-3 TTU | B46: Major Capex Allowance | C46: 0 | D46: 2586923.847 | E46: 5443225.507 | F46: 2846042.855 | G46: 0 | H46: 0 | I46: 0 | J46: 0 | K46: 10876192.21
A47: Subs - WRK-THI-WKM 1&1 Uprating | B47: Capex - total risk adjusted (real 2022) | C47: 0 | D47: 1929786.145 | E47: 3859572.291 | F47: 1929786.145 | G47: 0 | H47: 0 | I47: 0 | J47: 0 | K47: 7719144.582
A48: Subs - WRK-THI-WKM 1&1 Uprating | B48: Inflation | C48: 0 | D48: 120539.2003 | E48: 359501.2099 | F48: 229285.7728 | G48: 0 | H48: 0 | I48: 0 | J48: 0 | K48: 709326.1829
A49: Subs - WRK-THI-WKM 1&1 Uprating | B49: Capex - total risk adjusted (nominal) | C49: 0 | D49: 2050325.346 | E49: 4219073.501 | F49: 2159071.918 | G49: 0 | H49: 0 | I49: 0 | J49: 0 | K49: 8428470.765
A50: Subs - WRK-THI-WKM 1&1 Uprating | B50: Interest during construction (IDC) | C50: 0 | D50: 15808.60256 | E50: 128342.0678 | F50: 114016.1618 | G50: 0 | H50: 0 | I50: 0 | J50: 0 | K50: 258166.8322
A51: Subs - WRK-THI-WKM 1&1 Uprating | B51: Major Capex Allowance | C51: 0 | D51: 2066133.948 | E51: 4347415.569 | F51: 2273088.08 | G51: 0 | H51: 0 | I51: 0 | J51: 0 | K51: 8686637.597
A52: Subs - EDG-KAW Uprating | B52: Capex - total risk adjusted (real 2022) | C52: 0 | D52: 112591.7647 | E52: 225183.5295 | F52: 112591.7647 | G52: 0 | H52: 0 | I52: 0 | J52: 0 | K52: 450367.0589
A53: Subs - EDG-KAW Uprating | B53: Inflation | C53: 0 | D53: 7032.759204 | E53: 20974.79855 | F53: 13377.48737 | G53: 0 | H53: 0 | I53: 0 | J53: 0 | K53: 41385.04512
A54: Subs - EDG-KAW Uprating | B54: Capex - total risk adjusted (nominal) | C54: 0 | D54: 119624.5239 | E54: 246158.328 | F54: 125969.2521 | G54: 0 | H54: 0 | I54: 0 | J54: 0 | K54: 491752.1041
A55: Subs - EDG-KAW Uprating | B55: Interest during construction (IDC) | C55: 0 | D55: 922.3397443 | E55: 7488.011011 | F55: 6652.177962 | G55: 0 | H55: 0 | I55: 0 | J55: 0 | K55: 15062.52872
A56: Subs - EDG-KAW Uprating | B56: Major Capex Allowance | C56: 0 | D56: 120546.8637 | E56: 253646.339 | F56: 132621.4301 | G56: 0 | H56: 0 | I56: 0 | J56: 0 | K56: 506814.6328
A57: Subs - HVDC Capacity Stage 1 | B57: Capex - total risk adjusted (real 2022) | C57: 0 | D57: 0 | E57: 14060487.59 | F57: 28120975.19 | G57: 28120975.19 | H57: 14060487.59 | I57: 0 | J57: 0 | K57: 84362925.56
A58: Subs - HVDC Capacity Stage 1 | B58: Inflation | C58: 0 | D58: 0 | E58: 1445565.124 | F58: 3552122.906 | G58: 4307928.325 | H58: 2408417.087 | I58: 0 | J58: 0 | K58: 11714033.44
A59: Subs - HVDC Capacity Stage 1 | B59: Capex - total risk adjusted (nominal) | C59: 0 | D59: 0 | E59: 15506052.72 | F59: 31673098.09 | G59: 32428903.51 | H59: 16468904.68 | I59: 0 | J59: 0 | K59: 96076959.01
A60: Subs - HVDC Capacity Stage 1 | B60: Interest during construction (IDC) | C60: 0 | D60: 0 | E60: 119671.0401 | F60: 970730.9602 | G60: 3517362.583 | H60: 2438787.189 | I60: 0 | J60: 0 | K60: 7046551.772
A61: Subs - HVDC Capacity Stage 1 | B61: Major Capex Allowance | C61: 0 | D61: 0 | E61: 15625723.76 | F61: 32643829.05 | G61: 35946266.1 | H61: 18907691.87 | I61: 0 | J61: 0 | K61: 103123510.8
A62: CNI Supporting Projects | B62: Capex - total risk adjusted (real 2022) | D62: =D64-D63 -> 3400000 | E62: =E64-E63 -> 3400000 | F62: =F64-F63 -> 3400000 | G62: 0 | H62: 0 | I62: 0 | J62: =J64-J63 -> 0 | K62: 10200000
A63: CNI Supporting Projects | B63: Inflation | D63: 0 | E63: 0 | F63: 0 | G63: 0 | H63: 0 | I63: 0 | J63: 0 | K63: 0
A64: CNI Supporting Projects | B64: Capex - total risk adjusted (nominal) | D64: =D66-D65 -> 3400000 | E64: =E66-E65 -> 3400000 | F64: =F66-F65 -> 3400000 | G64: 0 | H64: 0 | I64: 0 | J64: 0 | K64: 10200000
A65: CNI Supporting Projects | B65: Interest during construction (IDC) | D65: 0 | E65: 0 | F65: 0 | G65: 0 | H65: 0 | I65: 0 | J65: 0 | K65: 0
A66: CNI Supporting Projects | B66: Major Capex Allowance | D66: =10200000/(2026-$D$16) -> 3400000 | E66: =10200000/(2026-$D$16) -> 3400000 | F66: 3400000 | G66: 0 | H66: 0 | I66: 0 | J66: 0 | K66: 10200000
A67: Preparedness Projects | B67: Capex - total risk adjusted (real 2022) | D67: =D69-D68 -> 1166666.667 | E67: =E69-E68 -> 1166666.667 | F67: =F69-F68 -> 1166666.667 | G67: 0 | H67: 0 | I67: 0 | J67: =J69-J68 -> 0 | K67: 3500000
A68: Preparedness Projects | B68: Inflation | D68: 0 | E68: 0 | F68: 0 | G68: 0 | H68: 0 | I68: 0 | J68: 0 | K68: 0
A69: Preparedness Projects | B69: Capex - total risk adjusted (nominal) | D69: =D71-D70 -> 1166666.667 | E69: =E71-E70 -> 1166666.667 | F69: =F71-F70 -> 1166666.667 | G69: 0 | H69: 0 | I69: 0 | J69: 0 | K69: 3500000
A70: Preparedness Projects | B70: Interest during construction (IDC) | D70: 0 | E70: 0 | F70: 0 | G70: 0 | H70: 0 | I70: 0 | J70: 0 | K70: 0
A71: Preparedness Projects | B71: Major Capex Allowance | D71: =3500000/(2026-$D$16) -> 1166666.667 | E71: =3500000/(2026-$D$16) -> 1166666.667 | F71: 1166666.667 | G71: 0 | H71: 0 | I71: 0 | J71: 0 | K71: 3500000
B74: Major Capex Allowance, $000, P50 | C74: 2022 | D74: 2023 | E74: 2024 | F74: 2025 | G74: 2026 | H74: 2027 | I74: 2028 | J74: 2029 | K74: Total
B75: Capex - total risk adjusted (real 2022) | C75: =C4/1000 -> 3578.963331 | D75: =D4/1000 -> 24759.85227 | E75: 71207.29379 | F75: 93805.18848 | G75: 83977.7108 | H75: 37656.36079 | I75: 11797.9366 | J75: 0 | K75: =SUM(C75:J75) -> 326783.3061
B76: Inflation | C76: =C5/1000 -> 54.36156175 | D76: 1085.366183 | E76: 6588.919064 | F76: 11238.7865 | G76: 12864.77288 | H76: 6587.651679 | I76: 2297.241383 | J76: 0 | K76: =SUM(C76:J76) -> 40717.09926
B77: Capex - total risk adjusted (nominal) | C77: =C6/1000 -> 3633.324893 | D77: 25845.21845 | E77: 77796.21285 | F77: 105043.975 | G77: 96842.48368 | H77: 44244.01247 | I77: 14095.17798 | J77: 0 | K77: 367500.4053
B78: Interest during construction (IDC) | C78: =C7/1000 -> 15.84863837 | D78: 375.2992869 | E78: 1540.834139 | F78: 3366.72521 | G78: 10641.77995 | H78: 6736.786895 | I78: 2707.802425 | J78: 0 | K78: 25385.07654
B79: Major Capex Allowance | C79: =C77+C78 -> 3649.173531 | D79: =D77+D78 -> 26220.51774 | E79: 79337.04699 | F79: 108410.7002 | G79: 107484.2636 | H79: 50980.79937 | I79: 16802.98041 | J79: 0 | K79: 392885.4819

Sheet MCA - costs split
C1: Macro dumped | V1: Macro dumped | AH1: calculated - table included in MCA documents (includes support and preparedness projects $13.7M)
C2: NZGP Projects Cost Estimates, P50, Inflation and IDC | S2: Checking | AI2: Central North Island | AN2: Wairakei Ring | AR2: HVDC | AS2: Preparedness Projects | AT2: NZGP
D3: Real 2022 | E3: Inflation | F3: Nominal | G3: IDC | H3: Major Capex Allowance | J3: Low | K3: P50 | L3: High | N3: Mode | P3: start | Q3: end | S3: mode input | T3: diffference | W3: 0 | X3: 0 | Y3: 0 | Z3: 0 | AA3: 69999.993 | AB3: 0 | AC3: 0 | AD3: 0 | AE3: 0 | AF3: NZGP | AI3: Lines - BPE-TKU-A&B TTU | AJ3: Lines - TKU-WKM TTU | AK3: Lines - TKU-WKM-AB Duplexing NZ | AL3: Subs - BPE-TKU-WKM 1&2 Uprating | AM3: CNI Supporting Projects | AN3: Lines - WRK-WKM-C TTU | AO3: Lines - EDG-KAW-3 TTU | AP3: Subs - WRK-THI-WKM 1&1 Uprating | AQ3: Subs - EDG-KAW Uprating | AR3: Subs - HVDC Capacity Stage 1 | AT3: NZGP
C4: Lines - BPE-TKU-A&B TTU | D4: 68147300.83 | E4: 9020350.581 | F4: 77167651.41 | G4: 4412355.837 | H4: 81580007.25 | J4: 60809695.24 | K4: 68147300.83 | L4: 78699507.42 | N4: 66233851.65 | P4: 2024-09-02 | Q4: 2026-12-31 | S4: ='Lines - BPE-TKU-A&B TTU'!C18 -> 66233851.65 | T4: =N4-S4 -> 0 | V4: Investigation | AF4: =SUM(W4:AE4) -> 0 | AH4: Investigation | AI4: =W4/1000 -> 0 | AJ4: =X4/1000 -> 0 | AK4: =Y4/1000 -> 0 | AL4: =Z4/1000 -> 0 | AN4: =AA4/1000 -> 0 | AO4: =AB4/1000 -> 0 | AP4: =AC4/1000 -> 0 | AQ4: =AD4/1000 -> 0 | AR4: =AE4/1000 -> 0 | AT4: =SUM(AI4:AS4) -> 0
C5: Lines - TKU-WKM TTU | D5: 27970657.98 | E5: 1819937.145 | F5: 29790595.12 | G5: 995731.1598 | H5: 30786326.28 | J5: 25809721.98 | K5: 27970657.98 | L5: 30629306.94 | N5: 27690909.49 | P5: 2022-11-01 | Q5: 2024-12-31 | S5: ='Lines - TKU-WKM TTU'!C24 -> 27690909.49 | T5: 0 | W5: 0 | X5: 0 | Y5: 0 | Z5: 0 | AA5: 0 | AB5: 0 | AC5: 0 | AD5: 0 | AE5: 10018671.22
C6: Lines - TKU-WKM-AB Duplexing NZ | D6: 94383492.79 | E6: 14284674.02 | F6: 108668166.8 | G6: 10716443.45 | H6: 119384610.3 | J6: 81762530.79 | K6: 94383492.79 | L6: 112565919.9 | N6: 90904459.42 | P6: 2024-09-01 | Q6: 2028-06-30 | S6: ='Lines - TKU-WKM-AB Duplexing NZ'!C25 -> 90904459.42 | T6: 0 | V6: Civil Works | W6: 0 | X6: 0 | Y6: 0 | Z6: 0 | AA6: 0 | AB6: 0 | AC6: 0 | AD6: 0 | AE6: 36378807.02 | AF6: 36378807.02 | AH6: Civil Works | AI6: =W6/1000 -> 0 | AJ6: =X6/1000 -> 0 | AK6: =Y6/1000 -> 0 | AL6: =Z6/1000 -> 0 | AN6: =AA6/1000 -> 0 | AO6: =AB6/1000 -> 0 | AP6: =AC6/1000 -> 0 | AQ6: =AD6/1000 -> 0 | AR6: =AE6/1000 -> 36378.80702 | AT6: =SUM(AI6:AS6) -> 36378.80702
C7: Subs - BPE-TKU-WKM 1&2 Uprating | D7: 17506797.28 | E7: 2020209.724 | F7: 19527007 | G7: 1449738.746 | H7: 20976745.75 | J7: 13692402.28 | K7: 17506797.28 | L7: 20818478.17 | N7: 17775886.5 | P7: 2023-09-01 | Q7: 2026-12-31 | S7: ='Subs - BPE-TKU-WKM 1&2 Uprating'!C20 -> 17775886.5 | T7: 0 | V7: Primary Plant 220 kV - Statcom | W7: 0 | X7: 0 | Y7: 0 | Z7: 10139836.33 | AA7: 0 | AB7: 0 | AC7: 5123910.192 | AD7: 191488.8125 | AE7: 8984483.164 | AF7: 24439718.5 | AH7: Primary Plant 220 kV - Statcom | AI7: 0 | AJ7: 0 | AK7: 0 | AL7: 10139.83633 | AN7: 0 | AO7: 0 | AP7: 5123.910192 | AQ7: 191.4888125 | AR7: 8984.483164 | AT7: 24439.7185
C8: Lines - WRK-WKM-C TTU | D8: 2877787.151 | E8: 219064.1129 | F8: 3096851.264 | G8: 167785.8297 | H8: 3264637.093 | J8: 2477039.319 | K8: 2877787.151 | L8: 3416811.666 | N8: 2788541.171 | P8: 2022-09-01 | Q8: 2025-12-31 | S8: ='Lines - WRK-WKM-C TTU'!C27 -> 2788541.171 | T8: 0 | V8: Primary Plant 220 kV - other | W8: 0 | X8: 0 | Y8: 0 | Z8: 0 | AA8: 0 | AB8: 0 | AC8: 0 | AD8: 0 | AE8: 368664.1876 | AF8: 368664.1876 | AH8: Primary Plant 220 kV - other | AI8: 0 | AJ8: 0 | AK8: 0 | AL8: 0 | AN8: 0 | AO8: 0 | AP8: 0 | AQ8: 0 | AR8: 368.6641876 | AT8: 368.6641876
C9: Lines - EDG-KAW-3 TTU | D9: 9664832.823 | E9: 888119.0011 | F9: 10552951.82 | G9: 323240.3859 | H9: 10876192.21 | J9: 8556434.967 | K9: 9664832.823 | L9: 11440664.87 | N9: 9235335.487 | P9: 2023-09-01 | Q9: 2025-06-30 | S9: ='Lines - EDG-KAW-3 TTU'!C18 -> 9235335.487 | T9: 0 | V9: Cables | W9: 0 | X9: 0 | Y9: 0 | Z9: 0 | AA9: 0 | AB9: 0 | AC9: 0 | AD9: 0 | AE9: 764095.0712 | AF9: 764095.0712 | AH9: Cables | AI9: 0 | AJ9: 0 | AK9: 0 | AL9: 0 | AN9: 0 | AO9: 0 | AP9: 0 | AQ9: 0 | AR9: 764.0950712 | AT9: 764.0950712
C10: Subs - WRK-THI-WKM 1&1 Uprating | D10: 7719144.582 | E10: 709326.1829 | F10: 8428470.765 | G10: 258166.8322 | H10: 8686637.597 | J10: 6547473.599 | K10: 7719144.582 | L10: 9308182.073 | N10: 7478912.397 | P10: 2023-09-01 | Q10: 2025-06-30 | S10: ='Subs - WRK-THI-WKM 1&1 Uprating'!C20 -> 7478912.397 | T10: 0 | V10: Protection | W10: 0 | X10: 0 | Y10: 0 | Z10: 62500 | AA10: 0 | AB10: 0 | AC10: 58125 | AD10: 0 | AE10: 317115.1031 | AF10: 437740.1031 | AH10: Protection | AI10: 0 | AJ10: 0 | AK10: 0 | AL10: 62.5 | AN10: 0 | AO10: 0 | AP10: 58.125 | AQ10: 0 | AR10: 317.1151031 | AT10: 437.7401031
C11: Subs - EDG-KAW Uprating | D11: 450367.0589 | E11: 41385.04512 | F11: 491752.1041 | G11: 15062.52872 | H11: 506814.6328 | J11: 427321.9087 | K11: 450367.0589 | L11: 480998.4121 | N11: 446037.8712 | P11: 2023-09-01 | Q11: 2025-06-30 | S11: ='Subs - EDG-KAW Uprating'!C20 -> 446037.8712 | T11: 0 | V11: SCADA | W11: 0 | X11: 0 | Y11: 0 | Z11: 0 | AA11: 0 | AB11: 0 | AC11: 0 | AD11: 0 | AE11: 4186033.173 | AF11: 4186033.173 | AH11: SCADA | AI11: 0 | AJ11: 0 | AK11: 0 | AL11: 0 | AN11: 0 | AO11: 0 | AP11: 0 | AQ11: 0 | AR11: 4186.033173 | AT11: 4186.033173
C12: Subs - HVDC Capacity Stage 1 | D12: 84362925.56 | E12: 11714033.44 | F12: 96076959.01 | G12: 7046551.772 | H12: 103123510.8 | J12: 80586773.69 | K12: 84362925.56 | L12: 93479362.64 | N12: 80586773.69 | P12: 2024-07-01 | Q12: 2027-05-31 | S12: ='Subs - HVDC Capacity Stage 1'!C28 -> 80586773.69 | T12: 0 | V12: Secondary Equipment | W12: 0 | X12: 0 | Y12: 0 | Z12: 0 | AA12: 0 | AB12: 0 | AC12: 0 | AD12: 0 | AE12: 102902.3073 | AF12: 102902.3073 | AH12: Secondary Equipment | AI12: 0 | AJ12: 0 | AK12: 0 | AL12: 0 | AN12: 0 | AO12: 0 | AP12: 0 | AQ12: 0 | AR12: 102.9023073 | AT12: 102.9023073
C13: Total NZGP Stage 1 | D13: =SUM(D4:D12) -> 313083306.1 | E13: =SUM(E4:E12) -> 40717099.26 | F13: =SUM(F4:F12) -> 353800405.3 | G13: =SUM(G4:G12) -> 25385076.54 | H13: =SUM(H4:H12) -> 379185481.9 | J13: =SUM(J4:J12) -> 280669393.8 | K13: =SUM(K4:K12) -> 313083306.1 | L13: =SUM(L4:L12) -> 360839232.1 | N13: =SUM(N4:N12) -> 303140707.7 | T13: =IF(SUM(T4:T12)=0,"OK","ERROR") -> OK | V13: Communications | W13: 0 | X13: 0 | Y13: 0 | Z13: 0 | AA13: 0 | AB13: 0 | AC13: 0 | AD13: 0 | AE13: 276668.8256 | AF13: 276668.8256 | AH13: Communications | AI13: 0 | AJ13: 0 | AK13: 0 | AL13: 0 | AN13: 0 | AO13: 0 | AP13: 0 | AQ13: 0 | AR13: 276.6688256 | AT13: 276.6688256
V14: Miscellaneous works | W14: 0 | X14: 0 | Y14: 0 | Z14: 0 | AA14: 0 | AB14: 0 | AC14: 0 | AD14: 0 | AE14: 65021.89456 | AF14: 65021.89456 | AH14: Miscellaneous works | AI14: 0 | AJ14: 0 | AK14: 0 | AL14: 0 | AN14: 0 | AO14: 0 | AP14: 0 | AQ14: 0 | AR14: 65.02189456 | AT14: 65.02189456
V15: Switching | AF15: 0 | AH15: Switching | AI15: 0 | AJ15: 0 | AK15: 0 | AL15: 0 | AN15: 0 | AO15: 0 | AP15: 0 | AQ15: 0 | AR15: 0 | AT15: 0
W16: 45373889.37 | X16: 17392169.08 | Y16: 55778159.06 | Z16: 0 | AA16: 1024230.474 | AB16: 5380666.738 | AC16: 0 | AD16: 0 | AE16: 0
V17: Construction Work | W17: 5452393.973 | X17: 1608047.458 | Y17: 6160048.319 | Z17: 746638 | AA17: 443392.1724 | AB17: 1064141.103 | AC17: 570110.8 | AD17: 35970.03041 | AE17: 3493087.768 | AF17: =SUM(W17:AE17) -> 19573829.62 | AH17: Construction Work | AI17: =W17/1000 -> 5452.393973 | AJ17: =X17/1000 -> 1608.047458 | AK17: =Y17/1000 -> 6160.048319 | AL17: =Z17/1000 -> 746.638 | AN17: =AA17/1000 -> 443.3921724 | AO17: =AB17/1000 -> 1064.141103 | AP17: =AC17/1000 -> 570.1108 | AQ17: =AD17/1000 -> 35.97003041 | AR17: =AE17/1000 -> 3493.087768 | AT17: 19573.82962
V18: Transpower overheads | W18: 0 | X18: 0 | Y18: 0 | Z18: 0 | AA18: 0 | AB18: 0 | AC18: 0 | AD18: 0 | AE18: 1221374.033 | AF18: 1221374.033 | AH18: Transpower overheads | AI18: 0 | AJ18: 0 | AK18: 0 | AL18: 0 | AN18: 0 | AO18: 0 | AP18: 0 | AQ18: 0 | AR18: 1221.374033 | AT18: 1221.374033
V19: Consultant support | W19: 8738226.892 | X19: 3145244.42 | Y19: 14762951.18 | Z19: 2272940 | AA19: 440499.4793 | AB19: 1409704.285 | AC19: 1102510.589 | AD19: 66767.256 | AE19: 5353181.84 | AF19: 37292025.94 | AH19: Consultant support | AI19: 8738.226892 | AJ19: 3145.24442 | AK19: 14762.95118 | AL19: 2272.94 | AN19: 440.4994793 | AO19: 1409.704285 | AP19: 1102.510589 | AQ19: 66.767256 | AR19: 5353.18184 | AT19: 37292.02594
V20: Contractor overheads | W20: 0 | X20: 45528 | Y20: 561506.5 | Z20: 0 | AA20: 20000 | AB20: 0 | AC20: 0 | AD20: 0 | AE20: 177653.2829 | AF20: 804687.7829 | AH20: Contractor overheads | AI20: 0 | AJ20: 45.528 | AK20: 561.5065 | AL20: 0 | AN20: 20 | AO20: 0 | AP20: 0 | AQ20: 0 | AR20: 177.6532829 | AT20: 804.6877829
V21: Freight | W21: 0 | X21: 1005649.182 | Y21: 2999999.7 | Z21: 0 | AA21: 131715.7168 | AB21: 0 | AC21: 570000 | AD21: 60000 | AE21: 3534379.221 | AF21: 8301743.82 | AH21: Freight | AI21: 0 | AJ21: 1005.649182 | AK21: 2999.9997 | AL21: 0 | AN21: 131.7157168 | AO21: 0 | AP21: 570 | AQ21: 60 | AR21: 3534.379221 | AT21: 8301.74382
V22: Design | W22: 154770.2923 | X22: 0 | Y22: 300000 | Z22: 0 | AA22: 0 | AB22: 0 | AC22: 0 | AD22: 0 | AE22: 26313.85956 | AF22: 481084.1518 | AH22: Design | AI22: 154.7702923 | AJ22: 0 | AK22: 300 | AL22: 0 | AN22: 0 | AO22: 0 | AP22: 0 | AQ22: 0 | AR22: 26.31385956 | AT22: 481.0841518
V23: Legal | W23: 826289.3264 | X23: 676776.6995 | Y23: 3800000.03 | Z23: 0 | AA23: 0 | AB23: 0 | AC23: 0 | AD23: 0 | AE23: 0 | AF23: 5303066.056 | AH23: Legal | AI23: 826.2893264 | AJ23: 676.7766995 | AK23: 3800.00003 | AL23: 0 | AN23: 0 | AO23: 0 | AP23: 0 | AQ23: 0 | AR23: 0 | AT23: 5303.066056
V24: Property | W24: 506534.6803 | X24: 697000 | Y24: 500000 | Z24: 80000 | AA24: 343289.3219 | AB24: 200000 | AC24: 0 | AD24: 0 | AE24: 147357.6136 | AF24: 2474181.616 | AH24: Property | AI24: 506.5346803 | AJ24: 697 | AK24: 500 | AL24: 80 | AN24: 343.2893219 | AO24: 200 | AP24: 0 | AQ24: 0 | AR24: 147.3576136 | AT24: 2474.181616
V25: Environmental costs | W25: 295333 | X25: 69794.1 | Y25: 379496 | Z25: 66632.95 | AA25: 10000 | AB25: 130897.4029 | AC25: 0 | AD25: 0 | AE25: 212615.9853 | AF25: 1164769.438 | AH25: Environmental costs | AI25: 295.333 | AJ25: 69.7941 | AK25: 379.496 | AL25: 66.63295 | AN25: 10 | AO25: 130.8974029 | AP25: 0 | AQ25: 0 | AR25: 212.6159853 | AT25: 1164.769438
V26: Community Care Fund | W26: 369413.3022 | X26: 1151899.044 | Y26: 390000 | Z26: 225000 | AA26: 159330.3437 | AB26: 159330.3437 | AC26: 0 | AD26: 0 | AE26: 0 | AF26: 2454973.034 | AH26: Community Care Fund | AI26: 369.4133022 | AJ26: 1151.899044 | AK26: 390 | AL26: 225 | AN26: 159.3303437 | AO26: 159.3303437 | AP26: 0 | AQ26: 0 | AR26: 0 | AT26: 2454.973034
V27: Stakeholder costs | AF27: 0 | AH27: Stakeholder costs | AI27: 0 | AJ27: 0 | AK27: 0 | AL27: 0 | AN27: 0 | AO27: 0 | AP27: 0 | AQ27: 0 | AR27: 0 | AT27: 0
W28: 61716850.83 | X28: 25792107.98 | Y28: 85632160.79 | Z28: 13593547.28 | AA28: 2642457.501 | AB28: 8344739.873 | AC28: 7424656.582 | AD28: 354226.0989 | AE28: 75628425.56 | AH28: Uncategorised | AI28: 0 | AJ28: 0 | AK28: 0 | AL28: 0 | AM28: 3500 | AN28: 0 | AO28: 0 | AP28: 0 | AQ28: 0 | AR28: 0 | AS28: 10200 | AT28: 13700
W29: 6430450 | X29: 2178550 | Y29: 8751332 | Z29: 3913250 | AA29: 235329.65 | AB29: 1320092.95 | AC29: 294488 | AD29: 96140.96 | AE29: 8734500 | AI29: 0 | AJ29: 0 | AK29: 0 | AL29: 0 | AM29: 0 | AN29: 0 | AO29: 0 | AP29: 0 | AQ29: 0 | AR29: 0 | AS29: 0 | AT29: 0
V30: Capex - sub-total (Stage I) | W30: 68147300.83 | X30: 27970657.98 | Y30: 94383492.79 | Z30: 17506797.28 | AA30: 2877787.151 | AB30: 9664832.823 | AC30: 7719144.582 | AD30: 450367.0589 | AE30: 84362925.56 | AF30: =SUM(W30:AE30) -> 313083306.1 | AH30: Capex - sub-total (Stage I) | AI30: 61716.85083 | AJ30: 25792.10798 | AK30: 85632.16079 | AL30: 13593.54728 | AM30: 3500 | AN30: 2642.457501 | AO30: 8344.739873 | AP30: 7424.656582 | AQ30: 354.2260989 | AR30: 75628.42556 | AS30: 10200 | AT30: 294829.1725
V31: Additional Risk adjustment | W31: 6430450 | X31: 2178550 | Y31: 8751332 | Z31: 3913250 | AA31: 235329.65 | AB31: 1320092.95 | AC31: 294488 | AD31: 96140.96 | AE31: 8734500 | AF31: =SUM(W31:AE31) -> 31954133.56 | AH31: Additional Risk adjustment | AI31: 6430.45 | AJ31: 2178.55 | AK31: 8751.332 | AL31: 3913.25 | AM31: 0 | AN31: 235.32965 | AO31: 1320.09295 | AP31: 294.488 | AQ31: 96.14096 | AR31: 8734.5 | AS31: 0 | AT31: 31954.13356
V32: Capex - total risk adjusted (Stage I) | W32: 68147300.83 | X32: 27970657.98 | Y32: 94383492.79 | Z32: 17506797.28 | AA32: 2877787.151 | AB32: 9664832.823 | AC32: 7719144.582 | AD32: 450367.0589 | AE32: 84362925.56 | AF32: =SUM(W32:AE32) -> 313083306.1 | AH32: Capex - total risk adjusted (Stage I) | AI32: 68147.30083 | AJ32: 27970.65798 | AK32: 94383.49279 | AL32: 17506.79728 | AM32: 3500 | AN32: 2877.787151 | AO32: 9664.832823 | AP32: 7719.144582 | AQ32: 450.3670589 | AR32: 84362.92556 | AS32: 10200 | AT32: 326783.3061

Sheet Outputs - NEW
C2: Capex, $000, P50 | D2: Lines | E2: Capex, $000, P50 | F2: Substations
D3: Real 2022 | F3: Real 2022
C4: ='Assumptions - with Mode added'!C3 -> Subs - HVDC Capacity Stage 1
C5: Lines Project | E5: Substation Project | H5: Project Costs | I5: Combined
C6: ='Calculations - NEW'!B40 -> Investigation | D6: ='Calculations - NEW'!F40 -> 0 | E6: Investigation | F6: ='Calculations - NEW'!F57 -> 0 | H6: Investigation | I6: =D6+F6 -> 0
E8: Civil Works | F8: ='Calculations - NEW'!F59 -> 10018671.22 | H8: Civil Works | I8: =D8+F8 -> 10018671.22
E9: Primary Plant 220 kV - Statcom | F9: ='Calculations - NEW'!F60 -> 36378807.02 | H9: Primary Plant 220 kV - Statcom | I9: 36378807.02
E10: Primary Plant 220 kV - other | F10: ='Calculations - NEW'!F61 -> 8984483.164 | H10: Primary Plant 220 kV - other | I10: 8984483.164
E11: Cables | F11: ='Calculations - NEW'!F62 -> 368664.1876 | H11: Cables | I11: 368664.1876
E12: Protection | F12: ='Calculations - NEW'!F63 -> 764095.0712 | H12: Protection | I12: 764095.0712
E13: SCADA | F13: ='Calculations - NEW'!F64 -> 317115.1031 | H13: SCADA | I13: 317115.1031
E14: Secondary Equipment | F14: ='Calculations - NEW'!F65 -> 4186033.173 | H14: Secondary Equipment | I14: 4186033.173
E15: Communications | F15: ='Calculations - NEW'!F66 -> 102902.3073 | H15: Communications | I15: 102902.3073
E16: Miscellaneous works | F16: ='Calculations - NEW'!F67 -> 276668.8256 | H16: Miscellaneous works | I16: 276668.8256
E17: Switching | F17: ='Calculations - NEW'!F68 -> 65021.89456 | H17: Switching | I17: 65021.89456
C19: ='Calculations - NEW'!B42 -> Construction work | D19: =IF(Type="Lines",'Calculations - NEW'!F42,"") ->  | E19: ='Calculations - NEW'!B70 -> Construction Work | F19: ='Calculations - NEW'!F70 -> 0 | H19: Construction Work | I19: =IF(D19<>"",D19,F19) -> 0
C20: ='Calculations - NEW'!B43 -> Transpower overheads | D20: =IF(Type="Lines",'Calculations - NEW'!F43,"") ->  | E20: ='Calculations - NEW'!B71 -> Transpower overheads | F20: ='Calculations - NEW'!F71 -> 3493087.768 | H20: Transpower overheads | I20: =IF(D20<>"",D20,F20) -> 3493087.768
C21: ='Calculations - NEW'!B44 -> Consultant support | D21: =IF(Type="Lines",'Calculations - NEW'!F44,"") ->  | E21: ='Calculations - NEW'!B72 -> Consultant support | F21: ='Calculations - NEW'!F72 -> 1221374.033 | H21: Consultant support | I21: 1221374.033
C22: ='Calculations - NEW'!B45 -> Contractor overheads | D22: =IF(Type="Lines",'Calculations - NEW'!F45,"") ->  | E22: ='Calculations - NEW'!B73 -> Contractor overheads | F22: ='Calculations - NEW'!F73 -> 5353181.84 | H22: Contractor overheads | I22: 5353181.84
C23: ='Calculations - NEW'!B46 -> Freight | D23: =IF(Type="Lines",'Calculations - NEW'!F46,"") ->  | E23: ='Calculations - NEW'!B74 -> Freight | F23: ='Calculations - NEW'!F74 -> 177653.2829 | H23: Freight | I23: 177653.2829
C24: ='Calculations - NEW'!B47 -> Design | D24: =IF(Type="Lines",'Calculations - NEW'!F47,"") ->  | E24: ='Calculations - NEW'!B75 -> Design | F24: ='Calculations - NEW'!F75 -> 3534379.221 | H24: Design | I24: 3534379.221
C25: ='Calculations - NEW'!B48 -> Legal | D25: =IF(Type="Lines",'Calculations - NEW'!F48,"") ->  | E25: ='Calculations - NEW'!B76 -> Legal | F25: ='Calculations - NEW'!F76 -> 26313.85956 | H25: Legal | I25: 26313.85956
C26: ='Calculations - NEW'!B49 -> Property | D26: =IF(Type="Lines",'Calculations - NEW'!F49,"") ->  | E26: ='Calculations - NEW'!B77 -> Property | F26: ='Calculations - NEW'!F77 -> 0 | H26: Property | I26: 0
C27: ='Calculations - NEW'!B50 -> Environmental costs | D27: =IF(Type="Lines",'Calculations - NEW'!F50,"") ->  | E27: ='Calculations - NEW'!B78 -> Environmental costs | F27: ='Calculations - NEW'!F78 -> 147357.6136 | H27: Environmental costs | I27: 147357.6136
C28: ='Calculations - NEW'!B51 -> Community Care Fund | D28: =IF(Type="Lines",'Calculations - NEW'!F51,"") ->  | E28: ='Calculations - NEW'!B79 -> Community Care Fund | F28: ='Calculations - NEW'!F79 -> 212615.9853 | H28: Community Care Fund | I28: 212615.9853
C29: ='Calculations - NEW'!B52 -> Stakeholder costs | D29: =IF(Type="Lines",'Calculations - NEW'!F52,"") ->  | E29: ='Calculations - NEW'!B80 -> Stakeholder costs | F29: ='Calculations - NEW'!F80 -> 0 | H29: Stakeholder costs | I29: 0
C31: Capex - sub-total (Stage I) | F31: =SUM(D6:D29,F6:F29) -> 75628425.56 | H31: Capex - sub-total (Stage I) | I31: =SUM(G6:G29,I6:I29) -> 75628425.56
C32: Additional Risk adjustment | F32: ='Calculations - NEW'!F82+'Calculations - NEW'!F54 -> 8734500 | H32: Additional Risk adjustment | I32: =F32 -> 8734500
C33: Capex - total risk adjusted (Stage I) | F33: =F31+F32 -> 84362925.56 | H33: Capex - total risk adjusted (Stage I) | I33: =I31+I32 -> 84362925.56
E34: check | F34: ='Calculations - NEW'!F86 -> 84362925.56
F36: Total project
F37: Real 2019 | G37: Inflation | H37: Nominal | I37: IDC | J37: Major Capex Allowance
E38: =C4 -> Subs - HVDC Capacity Stage 1 | F38: =N42 -> 84362925.56 | G38: =N43 -> 11714033.44 | H38: =+F38+G38 -> 96076959.01 | I38: ='Calculations - NEW'!F117 -> 7046551.772 | J38: =+I38+H38 -> 103123510.8
E40: Major Capex Allowance, $000, P50 | F40: Total project
F41: ='Calculations - NEW'!H4 -> 2022 | G41: ='Calculations - NEW'!I4 -> 2023 | H41: ='Calculations - NEW'!J4 -> 2024 | I41: ='Calculations - NEW'!K4 -> 2025 | J41: ='Calculations - NEW'!L4 -> 2026 | K41: ='Calculations - NEW'!M4 -> 2027 | L41: ='Calculations - NEW'!N4 -> 2028 | M41: ='Calculations - NEW'!O4 -> 2029 | N41: Total
E42: Capex - total risk adjusted (real 2022) | F42: ='Calculations - NEW'!H115 -> 0 | G42: ='Calculations - NEW'!I115 -> 0 | H42: ='Calculations - NEW'!J115 -> 14060487.59 | I42: ='Calculations - NEW'!K115 -> 28120975.19 | J42: ='Calculations - NEW'!L115 -> 28120975.19 | K42: ='Calculations - NEW'!M115 -> 14060487.59 | L42: ='Calculations - NEW'!N115 -> 0 | M42: ='Calculations - NEW'!O115 -> 0 | N42: =+SUM(F42:M42) -> 84362925.56
E43: Inflation | F43: ='Calculations - NEW'!H116 -> 0 | G43: ='Calculations - NEW'!I116 -> 0 | H43: ='Calculations - NEW'!J116 -> 1445565.124 | I43: ='Calculations - NEW'!K116 -> 3552122.906 | J43: ='Calculations - NEW'!L116 -> 4307928.325 | K43: ='Calculations - NEW'!M116 -> 2408417.087 | L43: ='Calculations - NEW'!N116 -> 0 | M43: ='Calculations - NEW'!O116 -> 0 | N43: =+SUM(F43:M43) -> 11714033.44
E44: Capex - total risk adjusted (nominal) | F44: =+F42+F43 -> 0 | G44: 0 | H44: 15506052.72 | I44: 31673098.09 | J44: 32428903.51 | K44: 16468904.68 | L44: 0 | M44: 0 | N44: =+SUM(F44:M44) -> 96076959.01
E45: Interest during construction (IDC) | F45: ='Calculations - NEW'!H117 -> 0 | G45: ='Calculations - NEW'!I117 -> 0 | H45: ='Calculations - NEW'!J117 -> 119671.0401 | I45: ='Calculations - NEW'!K117 -> 970730.9602 | J45: ='Calculations - NEW'!L117 -> 3517362.583 | K45: ='Calculations - NEW'!M117 -> 2438787.189 | L45: ='Calculations - NEW'!N117 -> 0 | M45: ='Calculations - NEW'!O117 -> 0 | N45: =+SUM(F45:M45) -> 7046551.772
E46: Major Capex Allowance | F46: =+SUM(F44:F45) -> 0 | G46: 0 | H46: 15625723.76 | I46: 32643829.05 | J46: 35946266.1 | K46: 18907691.87 | L46: 0 | M46: 0 | N46: =+SUM(F46:M46) -> 103123510.8
E48: Major Capex Allowance, $000, P50 | F48: Cost range
F49: Lower estimate | G49: P50 | H49: Upper estimate | J49: mode
E50: Capex - total risk adjusted (real 2019) | F50: =SUM('Assumptions - with Mode added'!M40:M83) -> 80586773.69 | G50: =N42 -> 84362925.56 | H50: =SUM('Assumptions - with Mode added'!O40:O83) -> 93479362.64 | J50: =SUM('Assumptions - with Mode added'!Q40:Q83) -> 80586773.69
E51: Inflation | G51: =N43 -> 11714033.44
E52: Capex - total risk adjusted (nominal) | G52: =G50+G51 -> 96076959.01
E53: Interest during construction (IDC) | G53: =N45 -> 7046551.772
E54: Major Capex Allowance | G54: =G52+G53 -> 103123510.8

Sheet Calculations - NEW
C1: linked | D1: calculated | E1: blank | F1: hardcoded
F2: Total costs | H2: Annual costs (financial year ended 30 June) (summary) | Q2: Quarterly costs (calculations)
Q3: 2022-03-30 | R3: =+EOMONTH(Q3,3) -> 2022-06-30 | S3: =+EOMONTH(R3,3) -> 2022-09-30 | T3: =+EOMONTH(S3,3) -> 2022-12-31 | U3: =+EOMONTH(T3,3) -> 2023-03-31 | V3: 2023-06-30 | W3: 2023-09-30 | X3: 2023-12-31 | Y3: 2024-03-31 | Z3: 2024-06-30 | AA3: 2024-09-30 | AB3: 2024-12-31 | AC3: 2025-03-31 | AD3: 2025-06-30 | AE3: 2025-09-30 | AF3: 2025-12-31 | AG3: 2026-03-31 | AH3: 2026-06-30 | AI3: 2026-09-30 | AJ3: 2026-12-31 | AK3: 2027-03-31 | AL3: 2027-06-30 | AM3: 2027-09-30 | AN3: 2027-12-31 | AO3: =+EOMONTH(AN3,3) -> 2028-03-31 | AP3: 2028-06-30 | AQ3: 2028-09-30 | AR3: 2028-12-31 | AS3: 2029-03-31 | AT3: 2029-06-30 | AU3: 2029-09-30 | AV3: 2029-12-31
H4: 2022 | I4: 2023 | J4: 2024 | K4: 2025 | L4: 2026 | M4: 2027 | N4: 2028 | O4: 2029 | Q4: 2022 | R4: 2022 | S4: 2022 | T4: 2022 | U4: =+Q4+1 -> 2023 | V4: =+R4+1 -> 2023 | W4: 2023 | X4: 2023 | Y4: 2024 | Z4: 2024 | AA4: 2024 | AB4: 2024 | AC4: 2025 | AD4: 2025 | AE4: 2025 | AF4: 2025 | AG4: 2026 | AH4: 2026 | AI4: 2026 | AJ4: 2026 | AK4: 2027 | AL4: 2027 | AM4: 2027 | AN4: 2027 | AO4: =+AK4+1 -> 2028 | AP4: 2028 | AQ4: 2028 | AR4: 2028 | AS4: 2029 | AT4: 2029 | AU4: 2029 | AV4: 2029
A5: Timing Flags | D5: Start | E5: Finish
B7: Lines Component | G7: Subs Component
B8: Investigation | D8: =IF(Type="Lines",'Assumptions - with Mode added'!D8,"") ->  | E8: =IF(Type="Lines",'Assumptions - with Mode added'!E8,"") ->  | G8: Investigation | I8: =IF(Type="Subs",'Assumptions - with Mode added'!I8,"") -> 2022-01-01 | J8: =IF(Type="Subs",'Assumptions - with Mode added'!J8,"") -> 2022-12-01 | Q8: =+IF(Type="Lines",IF(OR(Q$3<$D8,P$3>=$E8),0,1),IF(OR(Q$3<$I8,P$3>=$J8),0,1)) -> 1 | R8: 1 | S8: 1 | T8: 1 | U8: 0 | V8: 0 | W8: 0 | X8: 0 | Y8: 0 | Z8: 0 | AA8: 0 | AB8: 0 | AC8: 0 | AD8: 0 | AE8: 0 | AF8: 0 | AG8: 0 | AH8: 0 | AI8: 0 | AJ8: 0 | AK8: 0 | AL8: 0 | AM8: 0 | AN8: 0 | AO8: 0 | AP8: 0 | AQ8: 0 | AR8: 0 | AS8: 0 | AT8: 0 | AU8: 0 | AV8: 0
Q9: =+IF(OR(Q$3<$D9,P$3>=$E9),0,1) -> 0 | R9: =+IF(OR(R$3<$D9,Q$3>=$E9),0,1) -> 0 | S9: 0 | T9: 0 | U9: 0 | V9: 0 | W9: 0 | X9: 0 | Y9: 0 | Z9: 0 | AA9: 0 | AB9: 0 | AC9: 0 | AD9: 0 | AE9: 0 | AF9: 0 | AG9: 0 | AH9: =+IF(OR(AH$3<$D9,AG$3>=$E9),0,1) -> 0 | AI9: 0 | AJ9: 0 | AK9: 0 | AL9: 0 | AM9: 0
G10: Civil Works | I10: =IF(Type="Subs",'Assumptions - with Mode added'!I10,"") -> 2024-07-01 | J10: =IF(Type="Subs",'Assumptions - with Mode added'!J10,"") -> 2027-05-31 | Q10: =+IF(Type="Lines",IF(OR(Q$3<$D10,P$3>=$E10),0,1),IF(OR(Q$3<$I10,P$3>=$J10),0,1)) -> 0 | R10: 0 | S10: 0 | T10: 0 | U10: 0 | V10: 0 | W10: 0 | X10: 0 | Y10: 0 | Z10: 0 | AA10: 1 | AB10: 1 | AC10: 1 | AD10: 1 | AE10: 1 | AF10: 1 | AG10: 1 | AH10: 1 | AI10: 1 | AJ10: 1 | AK10: 1 | AL10: 1 | AM10: 0 | AN10: 0 | AO10: 0 | AP10: 0 | AQ10: 0 | AR10: 0 | AS10: 0 | AT10: 0 | AU10: 0 | AV10: 0
G11: Primary Plant 220 kV - Statcom | I11: =IF(Type="Subs",'Assumptions - with Mode added'!I11,"") -> 2024-07-01 | J11: =IF(Type="Subs",'Assumptions - with Mode added'!J11,"") -> 2027-05-31 | Q11: =+IF(Type="Lines",IF(OR(Q$3<$D11,P$3>=$E11),0,1),IF(OR(Q$3<$I11,P$3>=$J11),0,1)) -> 0 | R11: 0 | S11: 0 | T11: 0 | U11: 0 | V11: 0 | W11: 0 | X11: 0 | Y11: 0 | Z11: 0 | AA11: 1 | AB11: 1 | AC11: 1 | AD11: 1 | AE11: 1 | AF11: 1 | AG11: 1 | AH11: 1 | AI11: 1 | AJ11: 1 | AK11: 1 | AL11: 1 | AM11: 0 | AN11: 0 | AO11: 0 | AP11: 0 | AQ11: 0 | AR11: 0 | AS11: 0 | AT11: 0 | AU11: 0 | AV11: 0
G12: Primary Plant 220 kV - other | I12: =IF(Type="Subs",'Assumptions - with Mode added'!I12,"") -> 2024-07-01 | J12: =IF(Type="Subs",'Assumptions - with Mode added'!J12,"") -> 2027-05-31 | Q12: =+IF(Type="Lines",IF(OR(Q$3<$D12,P$3>=$E12),0,1),IF(OR(Q$3<$I12,P$3>=$J12),0,1)) -> 0 | R12: 0 | S12: 0 | T12: 0 | U12: 0 | V12: 0 | W12: 0 | X12: 0 | Y12: 0 | Z12: 0 | AA12: 1 | AB12: 1 | AC12: 1 | AD12: 1 | AE12: 1 | AF12: 1 | AG12: 1 | AH12: 1 | AI12: 1 | AJ12: 1 | AK12: 1 | AL12: 1 | AM12: 0 | AN12: 0 | AO12: 0 | AP12: 0 | AQ12: 0 | AR12: 0 | AS12: 0 | AT12: 0 | AU12: 0 | AV12: 0
G13: Cables | I13: =IF(Type="Subs",'Assumptions - with Mode added'!I13,"") -> 2024-07-01 | J13: =IF(Type="Subs",'Assumptions - with Mode added'!J13,"") -> 2027-05-31 | Q13: =+IF(Type="Lines",IF(OR(Q$3<$D13,P$3>=$E13),0,1),IF(OR(Q$3<$I13,P$3>=$J13),0,1)) -> 0 | R13: 0 | S13: 0 | T13: 0 | U13: 0 | V13: 0 | W13: 0 | X13: 0 | Y13: 0 | Z13: 0 | AA13: 1 | AB13: 1 | AC13: 1 | AD13: 1 | AE13: 1 | AF13: 1 | AG13: 1 | AH13: 1 | AI13: 1 | AJ13: 1 | AK13: 1 | AL13: 1 | AM13: 0 | AN13: 0 | AO13: 0 | AP13: 0 | AQ13: 0 | AR13: 0 | AS13: 0 | AT13: 0 | AU13: 0 | AV13: 0
G14: Protection | I14: =IF(Type="Subs",'Assumptions - with Mode added'!I14,"") -> 2024-07-01 | J14: =IF(Type="Subs",'Assumptions - with Mode added'!J14,"") -> 2027-05-31 | Q14: =+IF(Type="Lines",IF(OR(Q$3<$D14,P$3>=$E14),0,1),IF(OR(Q$3<$I14,P$3>=$J14),0,1)) -> 0 | R14: 0 | S14: 0 | T14: 0 | U14: 0 | V14: 0 | W14: 0 | X14: 0 | Y14: 0 | Z14: 0 | AA14: 1 | AB14: 1 | AC14: 1 | AD14: 1 | AE14: 1 | AF14: 1 | AG14: 1 | AH14: 1 | AI14: 1 | AJ14: 1 | AK14: 1 | AL14: 1 | AM14: 0 | AN14: 0 | AO14: 0 | AP14: 0 | AQ14: 0 | AR14: 0 | AS14: 0 | AT14: 0 | AU14: 0 | AV14: 0
G15: SCADA | I15: =IF(Type="Subs",'Assumptions - with Mode added'!I15,"") -> 2024-07-01 | J15: =IF(Type="Subs",'Assumptions - with Mode added'!J15,"") -> 2027-05-31 | Q15: =+IF(Type="Lines",IF(OR(Q$3<$D15,P$3>=$E15),0,1),IF(OR(Q$3<$I15,P$3>=$J15),0,1)) -> 0 | R15: 0 | S15: 0 | T15: 0 | U15: 0 | V15: 0 | W15: 0 | X15: 0 | Y15: 0 | Z15: 0 | AA15: 1 | AB15: 1 | AC15: 1 | AD15: 1 | AE15: 1 | AF15: 1 | AG15: 1 | AH15: 1 | AI15: 1 | AJ15: 1 | AK15: 1 | AL15: 1 | AM15: 0 | AN15: 0 | AO15: 0 | AP15: 0 | AQ15: 0 | AR15: 0 | AS15: 0 | AT15: 0 | AU15: 0 | AV15: 0
G16: Secondary Equipment | I16: =IF(Type="Subs",'Assumptions - with Mode added'!I16,"") -> 2024-07-01 | J16: =IF(Type="Subs",'Assumptions - with Mode added'!J16,"") -> 2027-05-31 | Q16: =+IF(Type="Lines",IF(OR(Q$3<$D16,P$3>=$E16),0,1),IF(OR(Q$3<$I16,P$3>=$J16),0,1)) -> 0 | R16: 0 | S16: 0 | T16: 0 | U16: 0 | V16: 0 | W16: 0 | X16: 0 | Y16: 0 | Z16: 0 | AA16: 1 | AB16: 1 | AC16: 1 | AD16: 1 | AE16: 1 | AF16: 1 | AG16: 1 | AH16: 1 | AI16: 1 | AJ16: 1 | AK16: 1 | AL16: 1 | AM16: 0 | AN16: 0 | AO16: 0 | AP16: 0 | AQ16: 0 | AR16: 0 | AS16: 0 | AT16: 0 | AU16: 0 | AV16: 0
G17: Communications | I17: =IF(Type="Subs",'Assumptions - with Mode added'!I17,"") -> 2024-07-01 | J17: =IF(Type="Subs",'Assumptions - with Mode added'!J17,"") -> 2027-05-31 | Q17: =+IF(Type="Lines",IF(OR(Q$3<$D17,P$3>=$E17),0,1),IF(OR(Q$3<$I17,P$3>=$J17),0,1)) -> 0 | R17: 0 | S17: 0 | T17: 0 | U17: 0 | V17: 0 | W17: 0 | X17: 0 | Y17: 0 | Z17: 0 | AA17: 1 | AB17: 1 | AC17: 1 | AD17: 1 | AE17: 1 | AF17: 1 | AG17: 1 | AH17: 1 | AI17: 1 | AJ17: 1 | AK17: 1 | AL17: 1 | AM17: 0 | AN17: 0 | AO17: 0 | AP17: 0 | AQ17: 0 | AR17: 0 | AS17: 0 | AT17: 0 | AU17: 0 | AV17: 0
G18: Miscellaneous works | I18: =IF(Type="Subs",'Assumptions - with Mode added'!I18,"") -> 2024-07-01 | J18: =IF(Type="Subs",'Assumptions - with Mode added'!J18,"") -> 2027-05-31 | Q18: =+IF(Type="Lines",IF(OR(Q$3<$D18,P$3>=$E18),0,1),IF(OR(Q$3<$I18,P$3>=$J18),0,1)) -> 0 | R18: 0 | S18: 0 | T18: 0 | U18: 0 | V18: 0 | W18: 0 | X18: 0 | Y18: 0 | Z18: 0 | AA18: 1 | AB18: 1 | AC18: 1 | AD18: 1 | AE18: 1 | AF18: 1 | AG18: 1 | AH18: 1 | AI18: 1 | AJ18: 1 | AK18: 1 | AL18: 1 | AM18: 0 | AN18: 0 | AO18: 0 | AP18: 0 | AQ18: 0 | AR18: 0 | AS18: 0 | AT18: 0 | AU18: 0 | AV18: 0
G19: Switching | I19: =IF(Type="Subs",'Assumptions - with Mode added'!I19,"") -> 2024-07-01 | J19: =IF(Type="Subs",'Assumptions - with Mode added'!J19,"") -> 2027-05-31 | Q19: =+IF(Type="Lines",IF(OR(Q$3<$D19,P$3>=$E19),0,1),IF(OR(Q$3<$I19,P$3>=$J19),0,1)) -> 0 | R19: 0 | S19: 0 | T19: 0 | U19: 0 | V19: 0 | W19: 0 | X19: 0 | Y19: 0 | Z19: 0 | AA19: 1 | AB19: 1 | AC19: 1 | AD19: 1 | AE19: 1 | AF19: 1 | AG19: 1 | AH19: 1 | AI19: 1 | AJ19: 1 | AK19: 1 | AL19: 1 | AM19: 0 | AN19: 0 | AO19: 0 | AP19: 0 | AQ19: 0 | AR19: 0 | AS19: 0 | AT19: 0 | AU19: 0 | AV19: 0
B21: Construction work | D21: =IF(Type="Lines",'Assumptions - with Mode added'!D21,"") ->  | E21: =IF(Type="Lines",'Assumptions - with Mode added'!E21,"") ->  | G21: Construction work | I21: =IF(Type="Subs",'Assumptions - with Mode added'!I21,"") -> 2024-07-01 | J21: =IF(Type="Subs",'Assumptions - with Mode added'!J21,"") -> 2027-05-31 | Q21: =+IF(Type="Lines",IF(OR(Q$3<$D21,P$3>=$E21),0,1),IF(OR(Q$3<$I21,P$3>=$J21),0,1)) -> 0 | R21: 0 | S21: 0 | T21: 0 | U21: 0 | V21: 0 | W21: 0 | X21: 0 | Y21: 0 | Z21: 0 | AA21: 1 | AB21: 1 | AC21: 1 | AD21: 1 | AE21: 1 | AF21: 1 | AG21: 1 | AH21: 1 | AI21: 1 | AJ21: 1 | AK21: 1 | AL21: 1 | AM21: 0 | AN21: 0 | AO21: 0 | AP21: 0 | AQ21: 0 | AR21: 0 | AS21: 0 | AT21: 0 | AU21: 0 | AV21: 0
B22: Transpower overheads | D22: =IF(Type="Lines",'Assumptions - with Mode added'!D22,"") ->  | E22: =IF(Type="Lines",'Assumptions - with Mode added'!E22,"") ->  | G22: Transpower overheads | I22: =IF(Type="Subs",'Assumptions - with Mode added'!I22,"") -> 2024-07-01 | J22: =IF(Type="Subs",'Assumptions - with Mode added'!J22,"") -> 2027-05-31 | Q22: =+IF(Type="Lines",IF(OR(Q$3<$D22,P$3>=$E22),0,1),IF(OR(Q$3<$I22,P$3>=$J22),0,1)) -> 0 | R22: 0 | S22: 0 | T22: 0 | U22: 0 | V22: 0 | W22: 0 | X22: 0 | Y22: 0 | Z22: 0 | AA22: 1 | AB22: 1 | AC22: 1 | AD22: 1 | AE22: 1 | AF22: 1 | AG22: 1 | AH22: 1 | AI22: 1 | AJ22: 1 | AK22: 1 | AL22: 1 | AM22: 0 | AN22: 0 | AO22: 0 | AP22: 0 | AQ22: 0 | AR22: 0 | AS22: 0 | AT22: 0 | AU22: 0 | AV22: 0
B23: Consultant support | D23: =IF(Type="Lines",'Assumptions - with Mode added'!D23,"") ->  | E23: =IF(Type="Lines",'Assumptions - with Mode added'!E23,"") ->  | G23: Consultant support | I23: =IF(Type="Subs",'Assumptions - with Mode added'!I23,"") -> 2024-07-01 | J23: =IF(Type="Subs",'Assumptions - with Mode added'!J23,"") -> 2027-05-31 | Q23: =+IF(Type="Lines",IF(OR(Q$3<$D23,P$3>=$E23),0,1),IF(OR(Q$3<$I23,P$3>=$J23),0,1)) -> 0 | R23: 0 | S23: 0 | T23: 0 | U23: 0 | V23: 0 | W23: 0 | X23: 0 | Y23: 0 | Z23: 0 | AA23: 1 | AB23: 1 | AC23: 1 | AD23: 1 | AE23: 1 | AF23: 1 | AG23: 1 | AH23: 1 | AI23: 1 | AJ23: 1 | AK23: 1 | AL23: 1 | AM23: 0 | AN23: 0 | AO23: 0 | AP23: 0 | AQ23: 0 | AR23: 0 | AS23: 0 | AT23: 0 | AU23: 0 | AV23: 0
B24: Contractor overheads | D24: =IF(Type="Lines",'Assumptions - with Mode added'!D24,"") ->  | E24: =IF(Type="Lines",'Assumptions - with Mode added'!E24,"") ->  | G24: Contractor overheads | I24: =IF(Type="Subs",'Assumptions - with Mode added'!I24,"") -> 2024-07-01 | J24: =IF(Type="Subs",'Assumptions - with Mode added'!J24,"") -> 2027-05-31 | Q24: =+IF(Type="Lines",IF(OR(Q$3<$D24,P$3>=$E24),0,1),IF(OR(Q$3<$I24,P$3>=$J24),0,1)) -> 0 | R24: 0 | S24: 0 | T24: 0 | U24: 0 | V24: 0 | W24: 0 | X24: 0 | Y24: 0 | Z24: 0 | AA24: 1 | AB24: 1 | AC24: 1 | AD24: 1 | AE24: 1 | AF24: 1 | AG24: 1 | AH24: 1 | AI24: 1 | AJ24: 1 | AK24: 1 | AL24: 1 | AM24: 0 | AN24: 0 | AO24: 0 | AP24: 0 | AQ24: 0 | AR24: 0 | AS24: 0 | AT24: 0 | AU24: 0 | AV24: 0
B25: Freight | D25: =IF(Type="Lines",'Assumptions - with Mode added'!D25,"") ->  | E25: =IF(Type="Lines",'Assumptions - with Mode added'!E25,"") ->  | G25: Freight | I25: =IF(Type="Subs",'Assumptions - with Mode added'!I25,"") -> 2024-07-01 | J25: =IF(Type="Subs",'Assumptions - with Mode added'!J25,"") -> 2027-05-31 | Q25: =+IF(Type="Lines",IF(OR(Q$3<$D25,P$3>=$E25),0,1),IF(OR(Q$3<$I25,P$3>=$J25),0,1)) -> 0 | R25: 0 | S25: 0 | T25: 0 | U25: 0 | V25: 0 | W25: 0 | X25: 0 | Y25: 0 | Z25: 0 | AA25: 1 | AB25: 1 | AC25: 1 | AD25: 1 | AE25: 1 | AF25: 1 | AG25: 1 | AH25: 1 | AI25: 1 | AJ25: 1 | AK25: 1 | AL25: 1 | AM25: 0 | AN25: 0 | AO25: 0 | AP25: 0 | AQ25: 0 | AR25: 0 | AS25: 0 | AT25: 0 | AU25: 0 | AV25: 0
B26: Design | D26: =IF(Type="Lines",'Assumptions - with Mode added'!D26,"") ->  | E26: =IF(Type="Lines",'Assumptions - with Mode added'!E26,"") ->  | G26: Design | I26: =IF(Type="Subs",'Assumptions - with Mode added'!I26,"") -> 2024-07-01 | J26: =IF(Type="Subs",'Assumptions - with Mode added'!J26,"") -> 2027-05-31 | Q26: =+IF(Type="Lines",IF(OR(Q$3<$D26,P$3>=$E26),0,1),IF(OR(Q$3<$I26,P$3>=$J26),0,1)) -> 0 | R26: 0 | S26: 0 | T26: 0 | U26: 0 | V26: 0 | W26: 0 | X26: 0 | Y26: 0 | Z26: 0 | AA26: 1 | AB26: 1 | AC26: 1 | AD26: 1 | AE26: 1 | AF26: 1 | AG26: 1 | AH26: 1 | AI26: 1 | AJ26: 1 | AK26: 1 | AL26: 1 | AM26: 0 | AN26: 0 | AO26: 0 | AP26: 0 | AQ26: 0 | AR26: 0 | AS26: 0 | AT26: 0 | AU26: 0 | AV26: 0
B27: Legal | D27: =IF(Type="Lines",'Assumptions - with Mode added'!D27,"") ->  | E27: =IF(Type="Lines",'Assumptions - with Mode added'!E27,"") ->  | G27: Legal | I27: =IF(Type="Subs",'Assumptions - with Mode added'!I27,"") -> 2024-07-01 | J27: =IF(Type="Subs",'Assumptions - with Mode added'!J27,"") -> 2027-05-31 | Q27: =+IF(Type="Lines",IF(OR(Q$3<$D27,P$3>=$E27),0,1),IF(OR(Q$3<$I27,P$3>=$J27),0,1)) -> 0 | R27: 0 | S27: 0 | T27: 0 | U27: 0 | V27: 0 | W27: 0 | X27: 0 | Y27: 0 | Z27: 0 | AA27: 1 | AB27: 1 | AC27: 1 | AD27: 1 | AE27: 1 | AF27: 1 | AG27: 1 | AH27: 1 | AI27: 1 | AJ27: 1 | AK27: 1 | AL27: 1 | AM27: 0 | AN27: 0 | AO27: 0 | AP27: 0 | AQ27: 0 | AR27: 0 | AS27: 0 | AT27: 0 | AU27: 0 | AV27: 0
B28: Property | D28: =IF(Type="Lines",'Assumptions - with Mode added'!D28,"") ->  | E28: =IF(Type="Lines",'Assumptions - with Mode added'!E28,"") ->  | G28: Property | I28: =IF(Type="Subs",'Assumptions - with Mode added'!I28,"") -> 2024-07-01 | J28: =IF(Type="Subs",'Assumptions - with Mode added'!J28,"") -> 2027-05-31 | Q28: =+IF(Type="Lines",IF(OR(Q$3<$D28,P$3>=$E28),0,1),IF(OR(Q$3<$I28,P$3>=$J28),0,1)) -> 0 | R28: 0 | S28: 0 | T28: 0 | U28: 0 | V28: 0 | W28: 0 | X28: 0 | Y28: 0 | Z28: 0 | AA28: 1 | AB28: 1 | AC28: 1 | AD28: 1 | AE28: 1 | AF28: 1 | AG28: 1 | AH28: 1 | AI28: 1 | AJ28: 1 | AK28: 1 | AL28: 1 | AM28: 0 | AN28: 0 | AO28: 0 | AP28: 0 | AQ28: 0 | AR28: 0 | AS28: 0 | AT28: 0 | AU28: 0 | AV28: 0
B29: Environmental costs | D29: =IF(Type="Lines",'Assumptions - with Mode added'!D29,"") ->  | E29: =IF(Type="Lines",'Assumptions - with Mode added'!E29,"") ->  | G29: Environmental costs | I29: =IF(Type="Subs",'Assumptions - with Mode added'!I29,"") -> 2024-07-01 | J29: =IF(Type="Subs",'Assumptions - with Mode added'!J29,"") -> 2027-05-31 | Q29: =+IF(Type="Lines",IF(OR(Q$3<$D29,P$3>=$E29),0,1),IF(OR(Q$3<$I29,P$3>=$J29),0,1)) -> 0 | R29: 0 | S29: 0 | T29: 0 | U29: 0 | V29: 0 | W29: 0 | X29: 0 | Y29: 0 | Z29: 0 | AA29: 1 | AB29: 1 | AC29: 1 | AD29: 1 | AE29: 1 | AF29: 1 | AG29: 1 | AH29: 1 | AI29: 1 | AJ29: 1 | AK29: 1 | AL29: 1 | AM29: 0 | AN29: 0 | AO29: 0 | AP29: 0 | AQ29: 0 | AR29: 0 | AS29: 0 | AT29: 0 | AU29: 0 | AV29: 0
B30: Community Care Fund | D30: =IF(Type="Lines",'Assumptions - with Mode added'!D30,"") ->  | E30: =IF(Type="Lines",'Assumptions - with Mode added'!E30,"") ->  | G30: Community Care Fund | I30: =IF(Type="Subs",'Assumptions - with Mode added'!I30,"") -> 2024-07-01 | J30: =IF(Type="Subs",'Assumptions - with Mode added'!J30,"") -> 2027-05-31 | Q30: =+IF(Type="Lines",IF(OR(Q$3<$D30,P$3>=$E30),0,1),IF(OR(Q$3<$I30,P$3>=$J30),0,1)) -> 0 | R30: 0 | S30: 0 | T30: 0 | U30: 0 | V30: 0 | W30: 0 | X30: 0 | Y30: 0 | Z30: 0 | AA30: 1 | AB30: 1 | AC30: 1 | AD30: 1 | AE30: 1 | AF30: 1 | AG30: 1 | AH30: 1 | AI30: 1 | AJ30: 1 | AK30: 1 | AL30: 1 | AM30: 0 | AN30: 0 | AO30: 0 | AP30: 0 | AQ30: 0 | AR30: 0 | AS30: 0 | AT30: 0 | AU30: 0 | AV30: 0
B31: Stakeholder costs | D31: =IF(Type="Lines",'Assumptions - with Mode added'!D31,"") ->  | E31: =IF(Type="Lines",'Assumptions - with Mode added'!E31,"") ->  | G31: Stakeholder costs | I31: =IF(Type="Subs",'Assumptions - with Mode added'!I31,"") -> 2024-07-01 | J31: =IF(Type="Subs",'Assumptions - with Mode added'!J31,"") -> 2027-05-31 | Q31: =+IF(Type="Lines",IF(OR(Q$3<$D31,P$3>=$E31),0,1),IF(OR(Q$3<$I31,P$3>=$J31),0,1)) -> 0 | R31: 0 | S31: 0 | T31: 0 | U31: 0 | V31: 0 | W31: 0 | X31: 0 | Y31: 0 | Z31: 0 | AA31: 1 | AB31: 1 | AC31: 1 | AD31: 1 | AE31: 1 | AF31: 1 | AG31: 1 | AH31: 1 | AI31: 1 | AJ31: 1 | AK31: 1 | AL31: 1 | AM31: 0 | AN31: 0 | AO31: 0 | AP31: 0 | AQ31: 0 | AR31: 0 | AS31: 0 | AT31: 0 | AU31: 0 | AV31: 0
B33: Risk | D33: =IF(Type="Lines",'Assumptions - with Mode added'!D33,"") ->  | E33: =IF(Type="Lines",'Assumptions - with Mode added'!E33,"") ->  | G33: Risk | I33: =IF(Type="Subs",'Assumptions - with Mode added'!I33,"") -> 2024-07-01 | J33: =IF(Type="Subs",'Assumptions - with Mode added'!J33,"") -> 2027-05-31 | Q33: =+IF(Type="Lines",IF(OR(Q$3<$D33,P$3>=$E33),0,1),IF(OR(Q$3<$I33,P$3>=$J33),0,1)) -> 0 | R33: 0 | S33: 0 | T33: 0 | U33: 0 | V33: 0 | W33: 0 | X33: 0 | Y33: 0 | Z33: 0 | AA33: 1 | AB33: 1 | AC33: 1 | AD33: 1 | AE33: 1 | AF33: 1 | AG33: 1 | AH33: 1 | AI33: 1 | AJ33: 1 | AK33: 1 | AL33: 1 | AM33: 0 | AN33: 0 | AO33: 0 | AP33: 0 | AQ33: 0 | AR33: 0 | AS33: 0 | AT33: 0 | AU33: 0 | AV33: 0
B35: Interest during construction (IDC) | D35: =IF(Type="Lines",'Assumptions - with Mode added'!D35,"") ->  | E35: =IF(Type="Lines",'Assumptions - with Mode added'!E35,"") ->  | I35: =IF(Type="Subs",'Assumptions - with Mode added'!I34,"") -> 2024-07-01 | J35: =IF(Type="Subs",'Assumptions - with Mode added'!J34,"") -> 2027-05-31 | Q35: 0 | R35: 0 | S35: 0 | T35: 0 | U35: 0 | V35: 0 | W35: 0 | X35: 0 | Y35: 0 | Z35: 0 | AA35: 1 | AB35: 1 | AC35: 1 | AD35: 1 | AE35: 1 | AF35: 1 | AG35: 1 | AH35: 1 | AI35: 1 | AJ35: 1 | AK35: 1 | AL35: 1 | AM35: 0 | AN35: 0 | AO35: 0 | AP35: 0 | AQ35: 0 | AR35: 0 | AS35: 0 | AT35: 0 | AU35: 0 | AV35: 0
A37: Real costs (P50 values, $000) | E37: Proportion paid in US$ | H37: ='Assumptions - with Mode added'!G$86 -> 2022 | I37: ='Assumptions - with Mode added'!H$86 -> 2023 | J37: ='Assumptions - with Mode added'!I$86 -> 2024 | K37: ='Assumptions - with Mode added'!J$86 -> 2025 | L37: ='Assumptions - with Mode added'!K$86 -> 2026 | M37: ='Assumptions - with Mode added'!L$86 -> 2027 | N37: ='Assumptions - with Mode added'!M$86 -> 2028 | O37: ='Assumptions - with Mode added'!N$86 -> 2029
B39: Lines Component
B40: Investigation | F40: =IF(Type="Lines",'Assumptions - with Mode added'!F40,0) -> 0 | H40: =+SUMIF($Q$4:$AV$4,H$4,$Q40:$AV40) -> 0 | I40: 0 | J40: 0 | K40: 0 | L40: 0 | M40: 0 | N40: 0 | O40: 0 | Q40: =IF(Type="Lines",+$F40*(Q8/SUM($Q8:$AV8)),"") ->  | R40: =IF(Type="Lines",+$F40*(R8/SUM($Q8:$AV8)),"") -> 
B42: Construction work | F42: =IF(Type="Lines",'Assumptions - with Mode added'!F42,0) -> 0 | H42: =+SUMIF($Q$4:$AV$4,H$4,$Q42:$AV42) -> 0 | I42: 0 | J42: 0 | K42: 0 | L42: 0 | M42: 0 | N42: 0 | O42: 0 | Q42: =IF(Type="Lines",$F42*(Q21/SUM($Q21:$AV21)),"") -> 
B43: Transpower overheads | F43: =IF(Type="Lines",'Assumptions - with Mode added'!F43,0) -> 0 | H43: 0 | I43: 0 | J43: 0 | K43: 0 | L43: 0 | M43: 0 | N43: 0 | O43: 0 | Q43: =IF(Type="Lines",$F43*(Q22/SUM($Q22:$AV22)),"") -> 
B44: Consultant support | F44: =IF(Type="Lines",'Assumptions - with Mode added'!F44,0) -> 0 | H44: 0 | I44: 0 | J44: 0 | K44: 0 | L44: 0 | M44: 0 | N44: 0 | O44: 0 | Q44: =IF(Type="Lines",$F44*(Q23/SUM($Q23:$AV23)),"") -> 
B45: Contractor overheads | F45: =IF(Type="Lines",'Assumptions - with Mode added'!F45,0) -> 0 | H45: 0 | I45: 0 | J45: 0 | K45: 0 | L45: 0 | M45: 0 | N45: 0 | O45: 0 | Q45: =IF(Type="Lines",$F45*(Q24/SUM($Q24:$AV24)),"") -> 
B46: Freight | F46: =IF(Type="Lines",'Assumptions - with Mode added'!F46,0) -> 0 | H46: 0 | I46: 0 | J46: 0 | K46: 0 | L46: 0 | M46: 0 | N46: 0 | O46: 0 | Q46: =IF(Type="Lines",$F46*(Q25/SUM($Q25:$AV25)),"") -> 
B47: Design | F47: =IF(Type="Lines",'Assumptions - with Mode added'!F47,0) -> 0 | H47: 0 | I47: 0 | J47: 0 | K47: 0 | L47: 0 | M47: 0 | N47: 0 | O47: 0 | Q47: =IF(Type="Lines",$F47*(Q26/SUM($Q26:$AV26)),"") -> 
B48: Legal | F48: =IF(Type="Lines",'Assumptions - with Mode added'!F48,0) -> 0 | H48: 0 | I48: 0 | J48: 0 | K48: 0 | L48: 0 | M48: 0 | N48: 0 | O48: 0 | Q48: =IF(Type="Lines",$F48*(Q27/SUM($Q27:$AV27)),"") -> 
B49: Property | F49: =IF(Type="Lines",'Assumptions - with Mode added'!F49,0) -> 0 | H49: 0 | I49: 0 | J49: 0 | K49: 0 | L49: 0 | M49: 0 | N49: 0 | O49: 0 | Q49: =IF(Type="Lines",$F49*(Q28/SUM($Q28:$AV28)),"") -> 
B50: Environmental costs | F50: =IF(Type="Lines",'Assumptions - with Mode added'!F50,0) -> 0 | H50: 0 | I50: 0 | J50: 0 | K50: 0 | L50: 0 | M50: 0 | N50: 0 | O50: 0 | Q50: =IF(Type="Lines",$F50*(Q29/SUM($Q29:$AV29)),"") -> 
B51: Community Care Fund | F51: =IF(Type="Lines",'Assumptions - with Mode added'!F51,0) -> 0 | H51: 0 | I51: 0 | J51: 0 | K51: 0 | L51: 0 | M51: 0 | N51: 0 | O51: 0 | Q51: =IF(Type="Lines",$F51*(Q30/SUM($Q30:$AV30)),"") -> 
B52: Stakeholder costs | F52: =IF(Type="Lines",'Assumptions - with Mode added'!F52,0) -> 0 | H52: 0 | I52: 0 | J52: 0 | K52: 0 | L52: 0 | M52: 0 | N52: 0 | O52: 0 | Q52: =IF(Type="Lines",$F52*(Q31/SUM($Q31:$AV31)),"") -> 
B54: Risk | F54: =IF(Type="Lines",'Assumptions - with Mode added'!F54,0) -> 0 | H54: =+SUMIF($Q$4:$AV$4,H$4,$Q54:$AV54) -> 0 | I54: 0 | J54: 0 | K54: 0 | L54: 0 | M54: 0 | N54: 0 | O54: 0 | Q54: =IF(Type="Lines",$F54*(Q33/SUM($Q33:$AV33)),"") -> 
B56: Subs Component
B57: Investigation | F57: ='Assumptions - with Mode added'!F57 -> 0 | H57: =+SUMIF($Q$4:$AV$4,H$4,$Q57:$AV57) -> 0 | I57: 0 | J57: 0 | K57: 0 | L57: 0 | M57: 0 | N57: 0 | O57: 0 | Q57: =IF(Type="Subs",$F57*(Q8/SUM($Q8:$AV8)),"") -> 0 | R57: 0 | S57: 0 | T57: 0 | U57: 0 | V57: 0 | W57: 0 | X57: 0 | Y57: 0 | Z57: 0 | AA57: 0 | AB57: 0 | AC57: 0 | AD57: 0 | AE57: 0 | AF57: 0 | AG57: 0 | AH57: 0 | AI57: 0 | AJ57: 0 | AK57: 0 | AL57: 0 | AM57: 0 | AN57: 0 | AO57: 0 | AP57: 0 | AQ57: 0 | AR57: 0 | AS57: 0 | AT57: 0 | AU57: 0 | AV57: 0
B59: Civil Works | F59: ='Assumptions - with Mode added'!F59 -> 10018671.22 | H59: =+SUMIF($Q$4:$AV$4,H$4,$Q59:$AV59) -> 0 | I59: 0 | J59: 1669778.536 | K59: 3339557.073 | L59: 3339557.073 | M59: 1669778.536 | N59: 0 | O59: 0 | Q59: =IF(Type="Subs",$F59*(Q10/SUM($Q10:$AV10)),"") -> 0 | R59: 0 | S59: 0 | T59: 0 | U59: 0 | V59: 0 | W59: 0 | X59: 0 | Y59: 0 | Z59: 0 | AA59: 834889.2682 | AB59: 834889.2682 | AC59: 834889.2682 | AD59: 834889.2682 | AE59: 834889.2682 | AF59: 834889.2682 | AG59: 834889.2682 | AH59: 834889.2682 | AI59: 834889.2682 | AJ59: 834889.2682 | AK59: 834889.2682 | AL59: 834889.2682 | AM59: 0 | AN59: 0 | AO59: 0 | AP59: 0 | AQ59: 0 | AR59: 0 | AS59: 0 | AT59: 0 | AU59: 0 | AV59: 0
B60: Primary Plant 220 kV - Statcom | F60: ='Assumptions - with Mode added'!F60 -> 36378807.02 | H60: 0 | I60: 0 | J60: 6063134.503 | K60: 12126269.01 | L60: 12126269.01 | M60: 6063134.503 | N60: 0 | O60: 0 | Q60: =IF(Type="Subs",$F60*(Q11/SUM($Q11:$AV11)),"") -> 0 | R60: 0 | S60: 0 | T60: 0 | U60: 0 | V60: 0 | W60: 0 | X60: 0 | Y60: 0 | Z60: 0 | AA60: 3031567.251 | AB60: 3031567.251 | AC60: 3031567.251 | AD60: 3031567.251 | AE60: 3031567.251 | AF60: 3031567.251 | AG60: 3031567.251 | AH60: 3031567.251 | AI60: 3031567.251 | AJ60: 3031567.251 | AK60: 3031567.251 | AL60: 3031567.251 | AM60: 0 | AN60: 0 | AO60: 0 | AP60: 0 | AQ60: 0 | AR60: 0 | AS60: 0 | AT60: 0 | AU60: 0 | AV60: 0
B61: Primary Plant 220 kV - other | F61: ='Assumptions - with Mode added'!F61 -> 8984483.164 | H61: 0 | I61: 0 | J61: 1497413.861 | K61: 2994827.721 | L61: 2994827.721 | M61: 1497413.861 | N61: 0 | O61: 0 | Q61: 0 | R61: 0 | S61: 0 | T61: 0 | U61: 0 | V61: 0 | W61: 0 | X61: 0 | Y61: 0 | Z61: 0 | AA61: 748706.9303 | AB61: 748706.9303 | AC61: 748706.9303 | AD61: 748706.9303 | AE61: 748706.9303 | AF61: 748706.9303 | AG61: 748706.9303 | AH61: 748706.9303 | AI61: 748706.9303 | AJ61: 748706.9303 | AK61: 748706.9303 | AL61: 748706.9303 | AM61: 0 | AN61: 0 | AO61: 0 | AP61: 0 | AQ61: 0 | AR61: 0 | AS61: 0 | AT61: 0 | AU61: 0 | AV61: 0
B62: Cables | F62: ='Assumptions - with Mode added'!F62 -> 368664.1876 | H62: 0 | I62: 0 | J62: 61444.03126 | K62: 122888.0625 | L62: 122888.0625 | M62: 61444.03126 | N62: 0 | O62: 0 | Q62: =IF(Type="Subs",$F62*(Q13/SUM($Q13:$AV13)),"") -> 0 | R62: 0 | S62: 0 | T62: 0 | U62: 0 | V62: 0 | W62: 0 | X62: 0 | Y62: 0 | Z62: 0 | AA62: 30722.01563 | AB62: 30722.01563 | AC62: 30722.01563 | AD62: 30722.01563 | AE62: 30722.01563 | AF62: 30722.01563 | AG62: 30722.01563 | AH62: 30722.01563 | AI62: 30722.01563 | AJ62: 30722.01563 | AK62: 30722.01563 | AL62: 30722.01563 | AM62: 0 | AN62: 0 | AO62: 0 | AP62: 0 | AQ62: 0 | AR62: 0 | AS62: 0 | AT62: 0 | AU62: 0 | AV62: 0
B63: Protection | F63: ='Assumptions - with Mode added'!F63 -> 764095.0712 | Q63: =IF(Type="Subs",$F63*(Q14/SUM($Q14:$AV14)),"") -> 0 | R63: 0 | S63: 0 | T63: 0 | U63: 0 | V63: 0 | W63: 0 | X63: 0 | Y63: 0 | Z63: 0 | AA63: 63674.58927 | AB63: 63674.58927 | AC63: 63674.58927 | AD63: 63674.58927 | AE63: 63674.58927 | AF63: 63674.58927 | AG63: 63674.58927 | AH63: 63674.58927 | AI63: 63674.58927 | AJ63: 63674.58927 | AK63: 63674.58927 | AL63: 63674.58927 | AM63: 0 | AN63: 0 | AO63: 0 | AP63: 0 | AQ63: 0 | AR63: 0 | AS63: 0 | AT63: 0 | AU63: 0 | AV63: 0
B64: SCADA | F64: ='Assumptions - with Mode added'!F64 -> 317115.1031 | H64: =+SUMIF($Q$4:$AV$4,H$4,$Q64:$AV64) -> 0 | I64: 0 | J64: 52852.51718 | K64: 105705.0344 | L64: 105705.0344 | M64: 52852.51718 | N64: 0 | O64: 0 | Q64: =IF(Type="Subs",$F64*(Q15/SUM($Q15:$AV15)),"") -> 0 | R64: 0 | S64: 0 | T64: 0 | U64: 0 | V64: 0 | W64: 0 | X64: 0 | Y64: 0 | Z64: 0 | AA64: 26426.25859 | AB64: 26426.25859 | AC64: 26426.25859 | AD64: 26426.25859 | AE64: 26426.25859 | AF64: 26426.25859 | AG64: 26426.25859 | AH64: 26426.25859 | AI64: 26426.25859 | AJ64: 26426.25859 | AK64: 26426.25859 | AL64: 26426.25859 | AM64: 0 | AN64: 0 | AO64: 0 | AP64: 0 | AQ64: 0 | AR64: 0 | AS64: 0 | AT64: 0 | AU64: 0 | AV64: 0
B65: Secondary Equipment | F65: ='Assumptions - with Mode added'!F65 -> 4186033.173 | H65: 0 | I65: 0 | J65: 697672.1956 | K65: 1395344.391 | L65: 1395344.391 | M65: 697672.1956 | N65: 0 | O65: 0 | Q65: =IF(Type="Subs",$F65*(Q16/SUM($Q16:$AV16)),"") -> 0 | R65: 0 | S65: 0 | T65: 0 | U65: 0 | V65: 0 | W65: 0 | X65: 0 | Y65: 0 | Z65: 0 | AA65: 348836.0978 | AB65: 348836.0978 | AC65: 348836.0978 | AD65: 348836.0978 | AE65: 348836.0978 | AF65: 348836.0978 | AG65: 348836.0978 | AH65: 348836.0978 | AI65: 348836.0978 | AJ65: 348836.0978 | AK65: 348836.0978 | AL65: 348836.0978 | AM65: 0 | AN65: 0 | AO65: 0 | AP65: 0 | AQ65: 0 | AR65: 0 | AS65: 0 | AT65: 0 | AU65: 0 | AV65: 0
B66: Communications | F66: ='Assumptions - with Mode added'!F66 -> 102902.3073 | H66: 0 | I66: 0 | J66: 17150.38455 | K66: 34300.76909 | L66: 34300.76909 | M66: 17150.38455 | N66: 0 | O66: 0 | Q66: =IF(Type="Subs",$F66*(Q17/SUM($Q17:$AV17)),"") -> 0 | R66: 0 | S66: =IF(Type="Subs",$F66*(S17/SUM($Q17:$AV17)),"") -> 0 | T66: 0 | U66: 0 | V66: 0 | W66: 0 | X66: 0 | Y66: 0 | Z66: 0 | AA66: 8575.192274 | AB66: 8575.192274 | AC66: 8575.192274 | AD66: 8575.192274 | AE66: 8575.192274 | AF66: 8575.192274 | AG66: 8575.192274 | AH66: 8575.192274 | AI66: 8575.192274 | AJ66: 8575.192274 | AK66: 8575.192274 | AL66: 8575.192274 | AM66: 0 | AN66: 0 | AO66: 0 | AP66: 0 | AQ66: 0 | AR66: 0 | AS66: 0 | AT66: 0 | AU66: 0 | AV66: 0
B67: Miscellaneous works | F67: ='Assumptions - with Mode added'!F67 -> 276668.8256 | H67: 0 | I67: 0 | J67: 46111.47093 | K67: 92222.94186 | L67: 92222.94186 | M67: 46111.47093 | N67: 0 | O67: 0 | Q67: =IF(Type="Subs",$F67*(Q18/SUM($Q18:$AV18)),"") -> 0 | R67: 0 | S67: 0 | T67: 0 | U67: 0 | V67: 0 | W67: 0 | X67: 0 | Y67: 0 | Z67: 0 | AA67: 23055.73547 | AB67: 23055.73547 | AC67: 23055.73547 | AD67: 23055.73547 | AE67: 23055.73547 | AF67: 23055.73547 | AG67: 23055.73547 | AH67: 23055.73547 | AI67: 23055.73547 | AJ67: 23055.73547 | AK67: 23055.73547 | AL67: 23055.73547 | AM67: 0 | AN67: 0 | AO67: 0 | AP67: 0 | AQ67: 0 | AR67: 0 | AS67: 0 | AT67: 0 | AU67: 0 | AV67: 0
B68: Switching | F68: ='Assumptions - with Mode added'!F68 -> 65021.89456 | H68: 0 | I68: 0 | J68: 10836.98243 | K68: 21673.96485 | L68: 21673.96485 | M68: 10836.98243 | N68: 0 | O68: 0 | Q68: =IF(Type="Subs",$F68*(Q19/SUM($Q19:$AV19)),"") -> 0 | R68: 0 | S68: 0 | T68: 0 | U68: 0 | V68: 0 | W68: 0 | X68: 0 | Y68: 0 | Z68: 0 | AA68: 5418.491213 | AB68: 5418.491213 | AC68: 5418.491213 | AD68: 5418.491213 | AE68: 5418.491213 | AF68: 5418.491213 | AG68: 5418.491213 | AH68: 5418.491213 | AI68: 5418.491213 | AJ68: 5418.491213 | AK68: 5418.491213 | AL68: 5418.491213 | AM68: 0 | AN68: 0 | AO68: 0 | AP68: 0 | AQ68: 0 | AR68: 0 | AS68: 0 | AT68: 0 | AU68: 0 | AV68: 0
B70: Construction Work | F70: ='Assumptions - with Mode added'!F71 -> 0 | H70: =+SUMIF($Q$4:$AV$4,H$4,$Q70:$AV70) -> 0 | I70: 0 | J70: 0 | K70: 0 | L70: 0 | M70: 0 | N70: 0 | O70: 0 | Q70: =IF(Type="Subs",$F70*(Q21/SUM($Q21:$AV21)),"") -> 0 | R70: 0 | S70: 0 | T70: 0 | U70: 0 | V70: 0 | W70: 0 | X70: 0 | Y70: 0 | Z70: 0 | AA70: 0 | AB70: 0 | AC70: 0 | AD70: 0 | AE70: 0 | AF70: 0 | AG70: 0 | AH70: 0 | AI70: 0 | AJ70: 0 | AK70: 0 | AL70: 0 | AM70: 0 | AN70: 0 | AO70: 0 | AP70: 0 | AQ70: 0 | AR70: 0 | AS70: 0 | AT70: 0 | AU70: 0 | AV70: 0
B71: Transpower overheads | F71: ='Assumptions - with Mode added'!F72 -> 3493087.768 | H71: 0 | I71: 0 | J71: 582181.2946 | K71: 1164362.589 | L71: 1164362.589 | M71: 582181.2946 | N71: 0 | O71: 0 | Q71: =IF(Type="Subs",$F71*(Q22/SUM($Q22:$AV22)),"") -> 0 | R71: 0 | S71: 0 | T71: 0 | U71: 0 | V71: 0 | W71: 0 | X71: 0 | Y71: 0 | Z71: 0 | AA71: 291090.6473 | AB71: 291090.6473 | AC71: 291090.6473 | AD71: 291090.6473 | AE71: 291090.6473 | AF71: 291090.6473 | AG71: 291090.6473 | AH71: 291090.6473 | AI71: 291090.6473 | AJ71: 291090.6473 | AK71: 291090.6473 | AL71: 291090.6473 | AM71: 0 | AN71: 0 | AO71: 0 | AP71: 0 | AQ71: 0 | AR71: 0 | AS71: 0 | AT71: 0 | AU71: 0 | AV71: 0
B72: Consultant support | F72: ='Assumptions - with Mode added'!F73 -> 1221374.033 | H72: 0 | I72: 0 | J72: 203562.3388 | K72: 407124.6775 | L72: 407124.6775 | M72: 203562.3388 | N72: 0 | O72: 0 | Q72: =IF(Type="Subs",$F72*(Q23/SUM($Q23:$AV23)),"") -> 0 | R72: 0 | S72: 0 | T72: 0 | U72: 0 | V72: 0 | W72: 0 | X72: 0 | Y72: 0 | Z72: 0 | AA72: 101781.1694 | AB72: 101781.1694 | AC72: 101781.1694 | AD72: 101781.1694 | AE72: 101781.1694 | AF72: 101781.1694 | AG72: 101781.1694 | AH72: 101781.1694 | AI72: 101781.1694 | AJ72: 101781.1694 | AK72: 101781.1694 | AL72: 101781.1694 | AM72: 0 | AN72: 0 | AO72: 0 | AP72: 0 | AQ72: 0 | AR72: 0 | AS72: 0 | AT72: 0 | AU72: 0 | AV72: 0
B73: Contractor overheads | F73: ='Assumptions - with Mode added'!F74 -> 5353181.84 | H73: 0 | I73: 0 | J73: 892196.9733 | K73: 1784393.947 | L73: 1784393.947 | M73: 892196.9733 | N73: 0 | O73: 0 | Q73: =IF(Type="Subs",$F73*(Q24/SUM($Q24:$AV24)),"") -> 0 | R73: 0 | S73: 0 | T73: 0 | U73: 0 | V73: 0 | W73: 0 | X73: 0 | Y73: 0 | Z73: 0 | AA73: 446098.4866 | AB73: 446098.4866 | AC73: 446098.4866 | AD73: 446098.4866 | AE73: 446098.4866 | AF73: 446098.4866 | AG73: 446098.4866 | AH73: 446098.4866 | AI73: 446098.4866 | AJ73: 446098.4866 | AK73: 446098.4866 | AL73: 446098.4866 | AM73: 0 | AN73: 0 | AO73: 0 | AP73: 0 | AQ73: 0 | AR73: 0 | AS73: 0 | AT73: 0 | AU73: 0 | AV73: 0
B74: Freight | F74: ='Assumptions - with Mode added'!F75 -> 177653.2829 | H74: 0 | I74: 0 | J74: 29608.88049 | K74: 59217.76097 | L74: 59217.76097 | M74: 29608.88049 | N74: 0 | O74: 0 | Q74: =IF(Type="Subs",$F74*(Q25/SUM($Q25:$AV25)),"") -> 0 | R74: 0 | S74: 0 | T74: 0 | U74: 0 | V74: 0 | W74: 0 | X74: 0 | Y74: 0 | Z74: 0 | AA74: 14804.44024 | AB74: 14804.44024 | AC74: 14804.44024 | AD74: 14804.44024 | AE74: 14804.44024 | AF74: 14804.44024 | AG74: 14804.44024 | AH74: 14804.44024 | AI74: 14804.44024 | AJ74: 14804.44024 | AK74: 14804.44024 | AL74: 14804.44024 | AM74: 0 | AN74: 0 | AO74: 0 | AP74: 0 | AQ74: 0 | AR74: 0 | AS74: 0 | AT74: 0 | AU74: 0 | AV74: 0
B75: Design | F75: ='Assumptions - with Mode added'!F76 -> 3534379.221 | H75: 0 | I75: 0 | J75: 589063.2036 | K75: 1178126.407 | L75: 1178126.407 | M75: 589063.2036 | N75: 0 | O75: 0 | Q75: =IF(Type="Subs",$F75*(Q26/SUM($Q26:$AV26)),"") -> 0 | R75: 0 | S75: 0 | T75: 0 | U75: 0 | V75: 0 | W75: 0 | X75: 0 | Y75: 0 | Z75: 0 | AA75: 294531.6018 | AB75: 294531.6018 | AC75: 294531.6018 | AD75: 294531.6018 | AE75: 294531.6018 | AF75: 294531.6018 | AG75: 294531.6018 | AH75: 294531.6018 | AI75: 294531.6018 | AJ75: 294531.6018 | AK75: 294531.6018 | AL75: 294531.6018 | AM75: 0 | AN75: 0 | AO75: 0 | AP75: 0 | AQ75: 0 | AR75: 0 | AS75: 0 | AT75: 0 | AU75: 0 | AV75: 0
B76: Legal | F76: ='Assumptions - with Mode added'!F77 -> 26313.85956 | H76: 0 | I76: 0 | J76: 4385.64326 | K76: 8771.286521 | L76: 8771.286521 | M76: 4385.64326 | N76: 0 | O76: 0 | Q76: =IF(Type="Subs",$F76*(Q27/SUM($Q27:$AV27)),"") -> 0 | R76: 0 | S76: 0 | T76: 0 | U76: 0 | V76: 0 | W76: 0 | X76: 0 | Y76: 0 | Z76: 0 | AA76: 2192.82163 | AB76: 2192.82163 | AC76: 2192.82163 | AD76: 2192.82163 | AE76: 2192.82163 | AF76: 2192.82163 | AG76: 2192.82163 | AH76: 2192.82163 | AI76: 2192.82163 | AJ76: 2192.82163 | AK76: 2192.82163 | AL76: 2192.82163 | AM76: 0 | AN76: 0 | AO76: 0 | AP76: 0 | AQ76: 0 | AR76: 0 | AS76: 0 | AT76: 0 | AU76: 0 | AV76: 0
B77: Property | F77: ='Assumptions - with Mode added'!F78 -> 0 | H77: 0 | I77: 0 | J77: 0 | K77: 0 | L77: 0 | M77: 0 | N77: 0 | O77: 0 | Q77: =IF(Type="Subs",$F77*(Q28/SUM($Q28:$AV28)),"") -> 0 | R77: 0 | S77: 0 | T77: 0 | U77: 0 | V77: 0 | W77: 0 | X77: 0 | Y77: 0 | Z77: 0 | AA77: 0 | AB77: 0 | AC77: 0 | AD77: 0 | AE77: 0 | AF77: 0 | AG77: 0 | AH77: 0 | AI77: 0 | AJ77: 0 | AK77: 0 | AL77: 0 | AM77: 0 | AN77: 0 | AO77: 0 | AP77: 0 | AQ77: 0 | AR77: 0 | AS77: 0 | AT77: 0 | AU77: 0 | AV77: 0
B78: Environmental costs | F78: ='Assumptions - with Mode added'!F79 -> 147357.6136 | H78: 0 | I78: 0 | J78: 24559.60226 | K78: 49119.20452 | L78: 49119.20452 | M78: 24559.60226 | N78: 0 | O78: 0 | Q78: =IF(Type="Subs",$F78*(Q29/SUM($Q29:$AV29)),"") -> 0 | R78: 0 | S78: 0 | T78: 0 | U78: 0 | V78: 0 | W78: 0 | X78: 0 | Y78: 0 | Z78: 0 | AA78: 12279.80113 | AB78: 12279.80113 | AC78: 12279.80113 | AD78: 12279.80113 | AE78: 12279.80113 | AF78: 12279.80113 | AG78: 12279.80113 | AH78: 12279.80113 | AI78: 12279.80113 | AJ78: 12279.80113 | AK78: 12279.80113 | AL78: 12279.80113 | AM78: 0 | AN78: 0 | AO78: 0 | AP78: 0 | AQ78: 0 | AR78: 0 | AS78: 0 | AT78: 0 | AU78: 0 | AV78: 0
B79: Community Care Fund | F79: ='Assumptions - with Mode added'!F80 -> 212615.9853 | H79: 0 | I79: 0 | J79: 35435.99754 | K79: 70871.99509 | L79: 70871.99509 | M79: 35435.99754 | N79: 0 | O79: 0 | Q79: =IF(Type="Subs",$F79*(Q30/SUM($Q30:$AV30)),"") -> 0 | R79: 0 | S79: 0 | T79: 0 | U79: 0 | V79: 0 | W79: 0 | X79: 0 | Y79: 0 | Z79: 0 | AA79: 17717.99877 | AB79: 17717.99877 | AC79: 17717.99877 | AD79: 17717.99877 | AE79: 17717.99877 | AF79: 17717.99877 | AG79: 17717.99877 | AH79: 17717.99877 | AI79: 17717.99877 | AJ79: 17717.99877 | AK79: 17717.99877 | AL79: 17717.99877 | AM79: 0 | AN79: 0 | AO79: 0 | AP79: 0 | AQ79: 0 | AR79: 0 | AS79: 0 | AT79: 0 | AU79: 0 | AV79: 0
B80: Stakeholder costs | F80: ='Assumptions - with Mode added'!F81 -> 0 | H80: 0 | I80: 0 | J80: 0 | K80: 0 | L80: 0 | M80: 0 | N80: 0 | O80: 0 | Q80: =IF(Type="Subs",$F80*(Q31/SUM($Q31:$AV31)),"") -> 0 | R80: 0 | S80: 0 | T80: 0 | U80: 0 | V80: 0 | W80: 0 | X80: 0 | Y80: 0 | Z80: 0 | AA80: 0 | AB80: 0 | AC80: 0 | AD80: 0 | AE80: 0 | AF80: 0 | AG80: 0 | AH80: 0 | AI80: 0 | AJ80: 0 | AK80: 0 | AL80: 0 | AM80: 0 | AN80: 0 | AO80: 0 | AP80: 0 | AQ80: 0 | AR80: 0 | AS80: 0 | AT80: 0 | AU80: 0 | AV80: 0
B82: Risk | F82: ='Assumptions - with Mode added'!F83 -> 8734500 | H82: =+SUMIF($Q$4:$AV$4,H$4,$Q82:$AV82) -> 0 | I82: 0 | J82: 1455750 | K82: 2911500 | L82: 2911500 | M82: 1455750 | N82: 0 | O82: 0 | Q82: =IF(Type="Subs",$F82*(Q33/SUM($Q33:$AV33)),"") -> 0 | R82: 0 | S82: 0 | T82: 0 | U82: 0 | V82: 0 | W82: 0 | X82: 0 | Y82: 0 | Z82: 0 | AA82: 727875 | AB82: 727875 | AC82: 727875 | AD82: 727875 | AE82: 727875 | AF82: 727875 | AG82: 727875 | AH82: 727875 | AI82: 727875 | AJ82: 727875 | AK82: 727875 | AL82: 727875 | AM82: 0 | AN82: 0 | AO82: 0 | AP82: 0 | AQ82: 0 | AR82: 0 | AS82: 0 | AT82: 0 | AU82: 0 | AV82: 0
B86: Liners and Substations Total | F86: =SUM(F40:F82) -> 84362925.56 | G86: =+IF(ROUND(F86,)=ROUND(SUM('Assumptions - with Mode added'!F40:F83),),"ok","error!") -> ok | H86: =SUM(H40:H82) -> 0 | I86: 0 | J86: 13933138.42 | K86: 27866276.83 | L86: 27866276.83 | M86: 13933138.42 | N86: 0 | O86: 0 | Q86: =SUM(Q40:Q82) -> 0 | R86: 0 | S86: 0 | T86: 0 | U86: 0 | V86: 0 | W86: 0 | X86: 0 | Y86: 0 | Z86: 0 | AA86: 7030243.797 | AB86: 7030243.797 | AC86: 7030243.797 | AD86: 7030243.797 | AE86: 7030243.797 | AF86: 7030243.797 | AG86: 7030243.797 | AH86: 7030243.797 | AI86: 7030243.797 | AJ86: 7030243.797 | AK86: 7030243.797 | AL86: 7030243.797 | AM86: 0 | AN86: 0 | AO86: 0 | AP86: 0 | AQ86: 0 | AR86: 0 | AS86: 0 | AT86: 0 | AU86: 0 | AV86: 0
A88: Macro assumptions | H88: 2022 | I88: 2023 | J88: 2024 | K88: 2025 | L88: 2026 | M88: 2027 | N88: 2028 | O88: 2029
B89: Inflation | H89: ='Assumptions - with Mode added'!G87 -> 0.067 | I89: ='Assumptions - with Mode added'!H87 -> 0.052 | J89: ='Assumptions - with Mode added'!I87 -> 0.036 | K89: ='Assumptions - with Mode added'!J87 -> 0.027 | L89: ='Assumptions - with Mode added'!K87 -> 0.022 | M89: ='Assumptions - with Mode added'!L87 -> 0.02 | N89: ='Assumptions - with Mode added'!M87 -> 0.02 | O89: ='Assumptions - with Mode added'!N87 -> 0.02 | Q89: =(1+SUMIF($H$4:$N4,Q$4,$H89:$N89))^0.25-1 -> 0.01634488275 | R89: =(1+SUMIF($H$4:$N4,R$4,$H89:$N89))^0.25-1 -> 0.01634488275 | S89: =(1+SUMIF($H$4:$N4,S$4,$H89:$N89))^0.25-1 -> 0.01634488275 | T89: =(1+SUMIF($H$4:$N4,T$4,$H89:$N89))^0.25-1 -> 0.01634488275 | U89: =(1+SUMIF($H$4:$N4,U$4,$H89:$N89))^0.25-1 -> 0.0127539249 | V89: =(1+SUMIF($H$4:$N4,V$4,$H89:$N89))^0.25-1 -> 0.0127539249 | W89: =(1+SUMIF($H$4:$N4,W$4,$H89:$N89))^0.25-1 -> 0.0127539249 | X89: =(1+SUMIF($H$4:$N4,X$4,$H89:$N89))^0.25-1 -> 0.0127539249 | Y89: =(1+SUMIF($H$4:$N4,Y$4,$H89:$N89))^0.25-1 -> 0.008880990008 | Z89: =(1+SUMIF($H$4:$N4,Z$4,$H89:$N89))^0.25-1 -> 0.008880990008 | AA89: =(1+SUMIF($H$4:$N4,AA$4,$H89:$N89))^0.25-1 -> 0.008880990008 | AB89: =(1+SUMIF($H$4:$N4,AB$4,$H89:$N89))^0.25-1 -> 0.008880990008 | AC89: =(1+SUMIF($H$4:$N4,AC$4,$H89:$N89))^0.25-1 -> 0.006682713079 | AD89: =(1+SUMIF($H$4:$N4,AD$4,$H89:$N89))^0.25-1 -> 0.006682713079 | AE89: =(1+SUMIF($H$4:$N4,AE$4,$H89:$N89))^0.25-1 -> 0.006682713079 | AF89: =(1+SUMIF($H$4:$N4,AF$4,$H89:$N89))^0.25-1 -> 0.006682713079 | AG89: =(1+SUMIF($H$4:$N4,AG$4,$H89:$N89))^0.25-1 -> 0.005455198648 | AH89: =(1+SUMIF($H$4:$N4,AH$4,$H89:$N89))^0.25-1 -> 0.005455198648 | AI89: =(1+SUMIF($H$4:$N4,AI$4,$H89:$N89))^0.25-1 -> 0.005455198648 | AJ89: =(1+SUMIF($H$4:$N4,AJ$4,$H89:$N89))^0.25-1 -> 0.005455198648 | AK89: =(1+SUMIF($H$4:$N4,AK$4,$H89:$N89))^0.25-1 -> 0.004962931573 | AL89: =(1+SUMIF($H$4:$N4,AL$4,$H89:$N89))^0.25-1 -> 0.004962931573 | AM89: =(1+SUMIF($H$4:$N4,AM$4,$H89:$N89))^0.25-1 -> 0.004962931573 | AN89: =(1+SUMIF($H$4:$N4,AN$4,$H89:$N89))^0.25-1 -> 0.004962931573 | AO89: =(1+SUMIF($H$4:$N4,AO$4,$H89:$N89))^0.25-1 -> 0.004962931573 | AP89: =(1+SUMIF($H$4:$N4,AP$4,$H89:$N89))^0.25-1 -> 0.004962931573 | AQ89: =(1+SUMIF($H$4:$N4,AQ$4,$H89:$N89))^0.25-1 -> 0.004962931573 | AR89: =(1+SUMIF($H$4:$N4,AR$4,$H89:$N89))^0.25-1 -> 0.004962931573 | AS89: =(1+SUMIF($H$4:$N4,AS$4,$H89:$N89))^0.25-1 -> 0 | AT89: =(1+SUMIF($H$4:$N4,AT$4,$H89:$N89))^0.25-1 -> 0 | AU89: =(1+SUMIF($H$4:$N4,AU$4,$H89:$N89))^0.25-1 -> 0 | AV89: =(1+SUMIF($H$4:$N4,AV$4,$H89:$N89))^0.25-1 -> 0
B90: Inflation factor | D90: Start | E90: ='Assumptions - with Mode added'!E88 -> 2022-09-30 | Q90: =+IF(Q3<=$E$90,1,P90*(1+Q89)) -> 1 | R90: 1 | S90: 1 | T90: 1.016344883 | U90: 1.029307269 | V90: 1.042434977 | W90: 1.055730114 | X90: 1.069194817 | Y90: 1.078690325 | Z90: 1.088270163 | AA90: 1.09793508 | AB90: 1.10768583 | AC90: 1.115088177 | AD90: 1.122539991 | AE90: 1.130041604 | AF90: 1.137593347 | AG90: 1.143799145 | AH90: 1.150038797 | AI90: 1.156312487 | AJ90: 1.162620401 | AK90: 1.168390407 | AL90: 1.174189048 | AM90: 1.180016468 | AN90: 1.185872809 | AO90: 1.191758215 | AP90: 1.197672829 | AQ90: 1.203616798 | AR90: 1.209590265 | AS90: 1.209590265 | AT90: 1.209590265 | AU90: 1.209590265 | AV90: 1.209590265
B91: Discount rate (real, pre-tax) | E91: ='Assumptions - with Mode added'!E89 -> 0.07 | H91: =+$E$91 -> 0.07 | I91: 0.07 | J91: 0.07 | K91: 0.07 | L91: 0.07 | M91: 0.07 | N91: 0.07 | O91: 0.07 | Q91: =(1+SUMIF($H$4:$O4,Q$4,$H91:$O91))^0.25-1 -> 0.017058525 | R91: =(1+SUMIF($H$4:$O4,R$4,$H91:$O91))^0.25-1 -> 0.017058525 | S91: =(1+SUMIF($H$4:$O4,S$4,$H91:$O91))^0.25-1 -> 0.017058525 | T91: =(1+SUMIF($H$4:$O4,T$4,$H91:$O91))^0.25-1 -> 0.017058525 | U91: =(1+SUMIF($H$4:$O4,U$4,$H91:$O91))^0.25-1 -> 0.017058525 | V91: =(1+SUMIF($H$4:$O4,V$4,$H91:$O91))^0.25-1 -> 0.017058525 | W91: =(1+SUMIF($H$4:$O4,W$4,$H91:$O91))^0.25-1 -> 0.017058525 | X91: =(1+SUMIF($H$4:$O4,X$4,$H91:$O91))^0.25-1 -> 0.017058525 | Y91: =(1+SUMIF($H$4:$O4,Y$4,$H91:$O91))^0.25-1 -> 0.017058525 | Z91: =(1+SUMIF($H$4:$O4,Z$4,$H91:$O91))^0.25-1 -> 0.017058525 | AA91: =(1+SUMIF($H$4:$O4,AA$4,$H91:$O91))^0.25-1 -> 0.017058525 | AB91: =(1+SUMIF($H$4:$O4,AB$4,$H91:$O91))^0.25-1 -> 0.017058525 | AC91: =(1+SUMIF($H$4:$O4,AC$4,$H91:$O91))^0.25-1 -> 0.017058525 | AD91: =(1+SUMIF($H$4:$O4,AD$4,$H91:$O91))^0.25-1 -> 0.017058525 | AE91: =(1+SUMIF($H$4:$O4,AE$4,$H91:$O91))^0.25-1 -> 0.017058525 | AF91: =(1+SUMIF($H$4:$O4,AF$4,$H91:$O91))^0.25-1 -> 0.017058525 | AG91: =(1+SUMIF($H$4:$O4,AG$4,$H91:$O91))^0.25-1 -> 0.017058525 | AH91: =(1+SUMIF($H$4:$O4,AH$4,$H91:$O91))^0.25-1 -> 0.017058525 | AI91: =(1+SUMIF($H$4:$O4,AI$4,$H91:$O91))^0.25-1 -> 0.017058525 | AJ91: =(1+SUMIF($H$4:$O4,AJ$4,$H91:$O91))^0.25-1 -> 0.017058525 | AK91: =(1+SUMIF($H$4:$O4,AK$4,$H91:$O91))^0.25-1 -> 0.017058525 | AL91: =(1+SUMIF($H$4:$O4,AL$4,$H91:$O91))^0.25-1 -> 0.017058525 | AM91: =(1+SUMIF($H$4:$O4,AM$4,$H91:$O91))^0.25-1 -> 0.017058525 | AN91: =(1+SUMIF($H$4:$O4,AN$4,$H91:$O91))^0.25-1 -> 0.017058525 | AO91: =(1+SUMIF($H$4:$O4,AO$4,$H91:$O91))^0.25-1 -> 0.017058525 | AP91: =(1+SUMIF($H$4:$O4,AP$4,$H91:$O91))^0.25-1 -> 0.017058525 | AQ91: =(1+SUMIF($H$4:$O4,AQ$4,$H91:$O91))^0.25-1 -> 0.017058525 | AR91: =(1+SUMIF($H$4:$O4,AR$4,$H91:$O91))^0.25-1 -> 0.017058525 | AS91: =(1+SUMIF($H$4:$O4,AS$4,$H91:$O91))^0.25-1 -> 0.017058525 | AT91: =(1+SUMIF($H$4:$O4,AT$4,$H91:$O91))^0.25-1 -> 0.017058525 | AU91: =(1+SUMIF($H$4:$O4,AU$4,$H91:$O91))^0.25-1 -> 0.017058525 | AV91: =(1+SUMIF($H$4:$O4,AV$4,$H91:$O91))^0.25-1 -> 0.017058525
B92: PV discount factor (real, pre-tax) | D92: Start | E92: ='Assumptions - with Mode added'!E90 -> 2022-09-30 | Q92: =+IF(Q3<=$E$92,1,P92/(1+Q91)) -> 1 | R92: 1 | S92: 1 | T92: 0.9832275876 | U92: 0.966736489 | V92: 0.950521986 | W92: 0.9345794393 | X92: 0.9189042875 | Y92: 0.9034920458 | Z92: 0.8883383047 | AA92: 0.8734387283 | AB92: 0.8587890537 | AC92: 0.8443850896 | AD92: 0.8302227146 | AE92: 0.8162978769 | AF92: 0.8026065923 | AG92: 0.7891449435 | AH92: 0.7759090791 | AI92: 0.762895212 | AJ92: 0.7500996189 | AK92: 0.7375186388 | AL92: 0.7251486721 | AM92: 0.7129861795 | AN92: 0.7010276813 | AO92: 0.6892697559 | AP92: 0.6777090393 | AQ92: 0.6663422238 | AR92: 0.6551660572 | AS92: 0.644177342 | AT92: 0.6333729339 | AU92: 0.6227497419 | AV92: 0.6123047264
B93: PV discount factor (nominal, pre-tax) | Q93: =+IF(Q3<=$E$92,1,P93/((1+Q91)*(1+Q89))) -> 1 | R93: 1 | S93: 1 | T93: 0.967415298 | U93: 0.9392107858 | V93: 0.9118285622 | W93: 0.8852446537 | X93: 0.8594357859 | Y93: 0.8375824134 | Z93: 0.8162847193 | AA93: 0.7955285741 | AB93: 0.7753002074 | AC93: 0.7572361606 | AD93: 0.7395929956 | AE93: 0.7223609062 | AF93: 0.7055303146 | AG93: 0.6899331468 | AH93: 0.6746807858 | AI93: 0.659765609 | AJ93: 0.6451801622 | AK93: 0.631226202 | AL93: 0.6175740381 | AM93: 0.6042171433 | AN93: 0.5911491316 | AO93: 0.5783637548 | AP93: 0.5658549002 | AQ93: 0.5536165873 | AR93: 0.5416429646 | AS93: 0.5325583054 | AT93: 0.5236260179 | AU93: 0.5148435464 | AV93: 0.5062083781
B94: Nominal interest rates | H94: ='Assumptions - with Mode added'!G91 -> 0.0313 | I94: ='Assumptions - with Mode added'!H91 -> 0.0313 | J94: ='Assumptions - with Mode added'!I91 -> 0.0313 | K94: ='Assumptions - with Mode added'!J91 -> 0.0314 | L94: ='Assumptions - with Mode added'!K91 -> 0.0567 | M94: ='Assumptions - with Mode added'!L91 -> 0.0567 | N94: ='Assumptions - with Mode added'!M91 -> 0.0567 | O94: ='Assumptions - with Mode added'!N91 -> 0.0567 | Q94: =(1+SUMIF($H$4:$O4,Q$4,$H94:$O94))^0.25-1 -> 0.007734795757 | R94: =(1+SUMIF($H$4:$O4,R$4,$H94:$O94))^0.25-1 -> 0.007734795757 | S94: =(1+SUMIF($H$4:$O4,S$4,$H94:$O94))^0.25-1 -> 0.007734795757 | T94: =(1+SUMIF($H$4:$O4,T$4,$H94:$O94))^0.25-1 -> 0.007734795757 | U94: =(1+SUMIF($H$4:$O4,U$4,$H94:$O94))^0.25-1 -> 0.007734795757 | V94: =(1+SUMIF($H$4:$O4,V$4,$H94:$O94))^0.25-1 -> 0.007734795757 | W94: =(1+SUMIF($H$4:$O4,W$4,$H94:$O94))^0.25-1 -> 0.007734795757 | X94: =(1+SUMIF($H$4:$O4,X$4,$H94:$O94))^0.25-1 -> 0.007734795757 | Y94: =(1+SUMIF($H$4:$O4,Y$4,$H94:$O94))^0.25-1 -> 0.007734795757 | Z94: =(1+SUMIF($H$4:$O4,Z$4,$H94:$O94))^0.25-1 -> 0.007734795757 | AA94: =(1+SUMIF($H$4:$O4,AA$4,$H94:$O94))^0.25-1 -> 0.007734795757 | AB94: =(1+SUMIF($H$4:$O4,AB$4,$H94:$O94))^0.25-1 -> 0.007734795757 | AC94: =(1+SUMIF($H$4:$O4,AC$4,$H94:$O94))^0.25-1 -> 0.007759223619 | AD94: =(1+SUMIF($H$4:$O4,AD$4,$H94:$O94))^0.25-1 -> 0.007759223619 | AE94: =(1+SUMIF($H$4:$O4,AE$4,$H94:$O94))^0.25-1 -> 0.007759223619 | AF94: =(1+SUMIF($H$4:$O4,AF$4,$H94:$O94))^0.25-1 -> 0.007759223619 | AG94: =(1+SUMIF($H$4:$O4,AG$4,$H94:$O94))^0.25-1 -> 0.01388319996 | AH94: =(1+SUMIF($H$4:$O4,AH$4,$H94:$O94))^0.25-1 -> 0.01388319996 | AI94: =(1+SUMIF($H$4:$O4,AI$4,$H94:$O94))^0.25-1 -> 0.01388319996 | AJ94: =(1+SUMIF($H$4:$O4,AJ$4,$H94:$O94))^0.25-1 -> 0.01388319996 | AK94: =(1+SUMIF($H$4:$O4,AK$4,$H94:$O94))^0.25-1 -> 0.01388319996 | AL94: =(1+SUMIF($H$4:$O4,AL$4,$H94:$O94))^0.25-1 -> 0.01388319996 | AM94: =(1+SUMIF($H$4:$O4,AM$4,$H94:$O94))^0.25-1 -> 0.01388319996 | AN94: =(1+SUMIF($H$4:$O4,AN$4,$H94:$O94))^0.25-1 -> 0.01388319996 | AO94: =(1+SUMIF($H$4:$O4,AO$4,$H94:$O94))^0.25-1 -> 0.01388319996 | AP94: =(1+SUMIF($H$4:$O4,AP$4,$H94:$O94))^0.25-1 -> 0.01388319996 | AQ94: =(1+SUMIF($H$4:$O4,AQ$4,$H94:$O94))^0.25-1 -> 0.01388319996 | AR94: =(1+SUMIF($H$4:$O4,AR$4,$H94:$O94))^0.25-1 -> 0.01388319996 | AS94: =(1+SUMIF($H$4:$O4,AS$4,$H94:$O94))^0.25-1 -> 0.01388319996 | AT94: =(1+SUMIF($H$4:$O4,AT$4,$H94:$O94))^0.25-1 -> 0.01388319996 | AU94: =(1+SUMIF($H$4:$O4,AU$4,$H94:$O94))^0.25-1 -> 0.01388319996 | AV94: =(1+SUMIF($H$4:$O4,AV$4,$H94:$O94))^0.25-1 -> 0.01388319996
B95: NZD:USD FX rate | D95: TEES rate | E95: =H95 -> 0.6412 | H95: =OFFSET(assumptions!$G$4,'Calculations - NEW'!H$88-'Calculations - NEW'!$H$88+1,0) -> 0.6412 | I95: =OFFSET(assumptions!$G$4,'Calculations - NEW'!I$88-'Calculations - NEW'!$H$88+1,0) -> 0.6391 | J95: =OFFSET(assumptions!$G$4,'Calculations - NEW'!J$88-'Calculations - NEW'!$H$88+1,0) -> 0.6365 | K95: =OFFSET(assumptions!$G$4,'Calculations - NEW'!K$88-'Calculations - NEW'!$H$88+1,0) -> 0.6408 | L95: =OFFSET(assumptions!$G$4,'Calculations - NEW'!L$88-'Calculations - NEW'!$H$88+1,0) -> 0.6408 | M95: =OFFSET(assumptions!$G$4,'Calculations - NEW'!M$88-'Calculations - NEW'!$H$88+1,0) -> 0.6408 | N95: =OFFSET(assumptions!$G$4,'Calculations - NEW'!N$88-'Calculations - NEW'!$H$88+1,0) -> 0.6408 | O95: =OFFSET(assumptions!$G$4,'Calculations - NEW'!O$88-'Calculations - NEW'!$H$88+1,0) -> 0.6408 | Q95: =SUMIF($H$4:$O4,Q$4,$H95:$O95) -> 0.6412 | R95: =SUMIF($H$4:$O4,R$4,$H95:$O95) -> 0.6412 | S95: =SUMIF($H$4:$O4,S$4,$H95:$O95) -> 0.6412 | T95: =SUMIF($H$4:$O4,T$4,$H95:$O95) -> 0.6412 | U95: =SUMIF($H$4:$O4,U$4,$H95:$O95) -> 0.6391 | V95: =SUMIF($H$4:$O4,V$4,$H95:$O95) -> 0.6391 | W95: =SUMIF($H$4:$O4,W$4,$H95:$O95) -> 0.6391 | X95: =SUMIF($H$4:$O4,X$4,$H95:$O95) -> 0.6391 | Y95: =SUMIF($H$4:$O4,Y$4,$H95:$O95) -> 0.6365 | Z95: =SUMIF($H$4:$O4,Z$4,$H95:$O95) -> 0.6365 | AA95: =SUMIF($H$4:$O4,AA$4,$H95:$O95) -> 0.6365 | AB95: =SUMIF($H$4:$O4,AB$4,$H95:$O95) -> 0.6365 | AC95: =SUMIF($H$4:$O4,AC$4,$H95:$O95) -> 0.6408 | AD95: =SUMIF($H$4:$O4,AD$4,$H95:$O95) -> 0.6408 | AE95: =SUMIF($H$4:$O4,AE$4,$H95:$O95) -> 0.6408 | AF95: =SUMIF($H$4:$O4,AF$4,$H95:$O95) -> 0.6408 | AG95: =SUMIF($H$4:$O4,AG$4,$H95:$O95) -> 0.6408 | AH95: =SUMIF($H$4:$O4,AH$4,$H95:$O95) -> 0.6408 | AI95: =SUMIF($H$4:$O4,AI$4,$H95:$O95) -> 0.6408 | AJ95: =SUMIF($H$4:$O4,AJ$4,$H95:$O95) -> 0.6408 | AK95: =SUMIF($H$4:$O4,AK$4,$H95:$O95) -> 0.6408 | AL95: =SUMIF($H$4:$O4,AL$4,$H95:$O95) -> 0.6408 | AM95: =SUMIF($H$4:$O4,AM$4,$H95:$O95) -> 0.6408 | AN95: =SUMIF($H$4:$O4,AN$4,$H95:$O95) -> 0.6408 | AO95: =SUMIF($H$4:$O4,AO$4,$H95:$O95) -> 0.6408 | AP95: =SUMIF($H$4:$O4,AP$4,$H95:$O95) -> 0.6408 | AQ95: =SUMIF($H$4:$O4,AQ$4,$H95:$O95) -> 0.6408 | AR95: =SUMIF($H$4:$O4,AR$4,$H95:$O95) -> 0.6408 | AS95: =SUMIF($H$4:$O4,AS$4,$H95:$O95) -> 0.6408 | AT95: =SUMIF($H$4:$O4,AT$4,$H95:$O95) -> 0.6408 | AU95: =SUMIF($H$4:$O4,AU$4,$H95:$O95) -> 0.6408 | AV95: =SUMIF($H$4:$O4,AV$4,$H95:$O95) -> 0.6408
A97: Cost summary (P50 values, $000)
B98: Real costs | F98: =+SUM(H98:O98) -> 84362925.56 | H98: =+SUMIF($Q$4:$AV$4,H$4,$Q$98:$AV$98) -> 0 | I98: 0 | J98: 14060487.59 | K98: 28120975.19 | L98: 28120975.19 | M98: 14060487.59 | N98: 0 | O98: 0 | Q98: =+Q86 -> 0 | R98: =+R86 -> 0 | S98: 0 | T98: 0 | U98: 0 | V98: 0 | W98: 0 | X98: 0 | Y98: 0 | Z98: 0 | AA98: 7030243.797 | AB98: 7030243.797 | AC98: 7030243.797 | AD98: 7030243.797 | AE98: 7030243.797 | AF98: 7030243.797 | AG98: 7030243.797 | AH98: 7030243.797 | AI98: 7030243.797 | AJ98: 7030243.797 | AK98: 7030243.797 | AL98: 7030243.797 | AM98: 0 | AN98: 0 | AO98: =+AO86 -> 0 | AP98: 0 | AQ98: 0 | AR98: 0 | AS98: 0 | AT98: 0 | AU98: 0 | AV98: 0
B99: Real costs (present value) | F99: =SUMPRODUCT(Q98:AV98,Q92:AV92) -> 67254519.5
B100: Nominal costs | F100: =+SUM(H100:O100) -> 96076959.01 | H100: =+SUMIF($Q$4:$AV$4,H$4,$Q$100:$AV$100) -> 0 | I100: 0 | J100: 15506052.72 | K100: 31673098.09 | L100: 32428903.51 | M100: 16468904.68 | N100: 0 | O100: 0 | Q100: =+Q98*Q90 -> 0 | R100: 0 | S100: 0 | T100: 0 | U100: 0 | V100: 0 | W100: 0 | X100: 0 | Y100: 0 | Z100: 0 | AA100: 7718751.283 | AB100: 7787301.436 | AC100: 7839341.737 | AD100: 7891729.808 | AE100: 7944467.974 | AF100: 7997558.574 | AG100: 8041186.845 | AH100: 8085053.117 | AI100: 8129158.688 | AJ100: 8173504.863 | AK100: 8214069.408 | AL100: 8254835.273 | AM100: 0 | AN100: 0 | AO100: =+AO98*AO90 -> 0 | AP100: 0 | AQ100: 0 | AR100: 0 | AS100: 0 | AT100: 0 | AU100: 0 | AV100: 0
B101: Nominal costs (present value) | F101: =SUMPRODUCT(Q100:AV100,Q93:AV93) -> 67254519.5 | G101: =+IF(ROUND(F101,)=ROUND(F99,),"ok","check-are the inflation and pv start dates different?") -> ok
B102: Nominal costs (cumulative) | H102: =+G102+H100 -> 0 | I102: 0 | J102: 15506052.72 | K102: 47179150.81 | L102: 79608054.33 | M102: 96076959.01 | N102: 96076959.01 | O102: 96076959.01 | Q102: =+P102+Q100 -> 0 | R102: =+Q102+R100 -> 0 | S102: 0 | T102: 0 | U102: 0 | V102: 0 | W102: 0 | X102: 0 | Y102: 0 | Z102: 0 | AA102: 7718751.283 | AB102: 15506052.72 | AC102: 23345394.46 | AD102: 31237124.26 | AE102: 39181592.24 | AF102: 47179150.81 | AG102: 55220337.66 | AH102: 63305390.77 | AI102: 71434549.46 | AJ102: 79608054.33 | AK102: 87822123.73 | AL102: 96076959.01 | AM102: 96076959.01 | AN102: 96076959.01 | AO102: =+AN102+AO100 -> 96076959.01 | AP102: 96076959.01 | AQ102: 96076959.01 | AR102: 96076959.01 | AS102: 96076959.01 | AT102: 96076959.01 | AU102: 96076959.01 | AV102: 96076959.01
A104: IDC calculation (P50 values, $000)
A106: Stage I
B107: Real costs (excl. property) | F107: =+SUM(H107:O107) -> 84362925.56 | H107: =+SUMIF($Q$4:$AV$4,H$4,$Q$107:$AV$107) -> 0 | I107: 0 | J107: 14060487.59 | K107: 28120975.19 | L107: 28120975.19 | M107: 14060487.59 | N107: 0 | O107: 0 | Q107: =IF(Type="Lines",Q86-'Calculations - NEW'!Q49,Q86-'Calculations - NEW'!Q77) -> 0 | R107: =IF(Type="Lines",R86-'Calculations - NEW'!R49,R86-'Calculations - NEW'!R77) -> 0 | S107: =IF(Type="Lines",S86-'Calculations - NEW'!S49,S86-'Calculations - NEW'!S77) -> 0 | T107: =IF(Type="Lines",T86-'Calculations - NEW'!T49,T86-'Calculations - NEW'!T77) -> 0 | U107: =IF(Type="Lines",U86-'Calculations - NEW'!U49,U86-'Calculations - NEW'!U77) -> 0 | V107: =IF(Type="Lines",V86-'Calculations - NEW'!V49,V86-'Calculations - NEW'!V77) -> 0 | W107: =IF(Type="Lines",W86-'Calculations - NEW'!W49,W86-'Calculations - NEW'!W77) -> 0 | X107: =IF(Type="Lines",X86-'Calculations - NEW'!X49,X86-'Calculations - NEW'!X77) -> 0 | Y107: =IF(Type="Lines",Y86-'Calculations - NEW'!Y49,Y86-'Calculations - NEW'!Y77) -> 0 | Z107: =IF(Type="Lines",Z86-'Calculations - NEW'!Z49,Z86-'Calculations - NEW'!Z77) -> 0 | AA107: =IF(Type="Lines",AA86-'Calculations - NEW'!AA49,AA86-'Calculations - NEW'!AA77) -> 7030243.797 | AB107: =IF(Type="Lines",AB86-'Calculations - NEW'!AB49,AB86-'Calculations - NEW'!AB77) -> 7030243.797 | AC107: =IF(Type="Lines",AC86-'Calculations - NEW'!AC49,AC86-'Calculations - NEW'!AC77) -> 7030243.797 | AD107: =IF(Type="Lines",AD86-'Calculations - NEW'!AD49,AD86-'Calculations - NEW'!AD77) -> 7030243.797 | AE107: =IF(Type="Lines",AE86-'Calculations - NEW'!AE49,AE86-'Calculations - NEW'!AE77) -> 7030243.797 | AF107: =IF(Type="Lines",AF86-'Calculations - NEW'!AF49,AF86-'Calculations - NEW'!AF77) -> 7030243.797 | AG107: =IF(Type="Lines",AG86-'Calculations - NEW'!AG49,AG86-'Calculations - NEW'!AG77) -> 7030243.797 | AH107: =IF(Type="Lines",AH86-'Calculations - NEW'!AH49,AH86-'Calculations - NEW'!AH77) -> 7030243.797 | AI107: =IF(Type="Lines",AI86-'Calculations - NEW'!AI49,AI86-'Calculations - NEW'!AI77) -> 7030243.797 | AJ107: =IF(Type="Lines",AJ86-'Calculations - NEW'!AJ49,AJ86-'Calculations - NEW'!AJ77) -> 7030243.797 | AK107: =IF(Type="Lines",AK86-'Calculations - NEW'!AK49,AK86-'Calculations - NEW'!AK77) -> 7030243.797 | AL107: =IF(Type="Lines",AL86-'Calculations - NEW'!AL49,AL86-'Calculations - NEW'!AL77) -> 7030243.797 | AM107: =IF(Type="Lines",AM86-'Calculations - NEW'!AM49,AM86-'Calculations - NEW'!AM77) -> 0 | AN107: =IF(Type="Lines",AN86-'Calculations - NEW'!AN49,AN86-'Calculations - NEW'!AN77) -> 0 | AO107: =IF(Type="Lines",AO86-'Calculations - NEW'!AO49,AO86-'Calculations - NEW'!AO77) -> 0 | AP107: =IF(Type="Lines",AP86-'Calculations - NEW'!AP49,AP86-'Calculations - NEW'!AP77) -> 0 | AQ107: =IF(Type="Lines",AQ86-'Calculations - NEW'!AQ49,AQ86-'Calculations - NEW'!AQ77) -> 0 | AR107: =IF(Type="Lines",AR86-'Calculations - NEW'!AR49,AR86-'Calculations - NEW'!AR77) -> 0 | AS107: =IF(Type="Lines",AS86-'Calculations - NEW'!AS49,AS86-'Calculations - NEW'!AS77) -> 0 | AT107: =IF(Type="Lines",AT86-'Calculations - NEW'!AT49,AT86-'Calculations - NEW'!AT77) -> 0 | AU107: =IF(Type="Lines",AU86-'Calculations - NEW'!AU49,AU86-'Calculations - NEW'!AU77) -> 0 | AV107: =IF(Type="Lines",AV86-'Calculations - NEW'!AV49,AV86-'Calculations - NEW'!AV77) -> 0
B108: Nominal costs (excluding property) | F108: =+SUM(H108:O108) -> 96076959.01 | H108: =+SUMIF($Q$4:$AV$4,H$4,$Q$108:$AV$108) -> 0 | I108: 0 | J108: 15506052.72 | K108: 31673098.09 | L108: 32428903.51 | M108: 16468904.68 | N108: 0 | O108: 0 | Q108: =Q107*Q90 -> 0 | R108: =R107*R90 -> 0 | S108: 0 | T108: 0 | U108: 0 | V108: 0 | W108: 0 | X108: 0 | Y108: 0 | Z108: 0 | AA108: 7718751.283 | AB108: 7787301.436 | AC108: 7839341.737 | AD108: 7891729.808 | AE108: 7944467.974 | AF108: 7997558.574 | AG108: 8041186.845 | AH108: 8085053.117 | AI108: 8129158.688 | AJ108: 8173504.863 | AK108: 8214069.408 | AL108: 8254835.273 | AM108: 0 | AN108: 0 | AO108: =AO107*AO90 -> 0 | AP108: 0 | AQ108: 0 | AR108: 0 | AS108: 0 | AT108: 0 | AU108: 0 | AV108: 0
B109: Nominal costs (cumulative) (excluding property) | H109: =+G109+H108 -> 0 | I109: 0 | J109: 15506052.72 | K109: 47179150.81 | L109: 79608054.33 | M109: 96076959.01 | N109: 96076959.01 | O109: 96076959.01 | Q109: =+P109+Q108 -> 0 | R109: 0 | S109: 0 | T109: 0 | U109: 0 | V109: 0 | W109: 0 | X109: 0 | Y109: 0 | Z109: 0 | AA109: 7718751.283 | AB109: 15506052.72 | AC109: 23345394.46 | AD109: 31237124.26 | AE109: 39181592.24 | AF109: 47179150.81 | AG109: 55220337.66 | AH109: 63305390.77 | AI109: 71434549.46 | AJ109: 79608054.33 | AK109: 87822123.73 | AL109: 96076959.01 | AM109: 96076959.01 | AN109: 96076959.01 | AO109: =+AN109+AO108 -> 96076959.01 | AP109: 96076959.01 | AQ109: 96076959.01 | AR109: 96076959.01 | AS109: 96076959.01 | AT109: 96076959.01 | AU109: 96076959.01 | AV109: 96076959.01
B110: Interest during construction (IDC) | F110: =+SUM(H110:O110) -> 7046551.772 | H110: =+SUMIF($Q$4:$AV$4,H$4,$Q$110:$AV$110) -> 0 | I110: 0 | J110: 119671.0401 | K110: 970730.9602 | L110: 3517362.583 | M110: 2438787.189 | N110: 0 | O110: 0 | Q110: =(Q108/2*Q94+P109*Q94)*Q35 -> 0 | R110: 0 | S110: 0 | T110: 0 | U110: 0 | V110: 0 | W110: 0 | X110: 0 | Y110: 0 | Z110: 0 | AA110: 29851.48234 | AB110: 89819.55772 | AC110: 150728.5333 | AD110: 211758.9842 | AE110: 273197.2841 | AF110: 335046.1586 | AG110: 710816.287 | AH110: 822758.194 | AI110: 935310.7663 | AJ110: 1048477.335 | AK110: 1162233.32 | AL110: 1276553.869 | AM110: 0 | AN110: 0 | AO110: 0 | AP110: 0 | AQ110: 0 | AR110: 0 | AS110: 0 | AT110: 0 | AU110: 0 | AV110: 0
A113: Cost for approval (P50 values, $000)
B115: Real costs | F115: =+SUM(H115:O115) -> 84362925.56 | H115: =+SUMIF($Q$4:$AV$4,H$4,$Q$115:$AV$115) -> 0 | I115: 0 | J115: 14060487.59 | K115: 28120975.19 | L115: 28120975.19 | M115: 14060487.59 | N115: 0 | O115: 0 | Q115: =+Q86 -> 0 | R115: 0 | S115: 0 | T115: 0 | U115: 0 | V115: 0 | W115: 0 | X115: 0 | Y115: 0 | Z115: 0 | AA115: =+AA86 -> 7030243.797 | AB115: 7030243.797 | AC115: 7030243.797 | AD115: 7030243.797 | AE115: 7030243.797 | AF115: 7030243.797 | AG115: 7030243.797 | AH115: 7030243.797 | AI115: 7030243.797 | AJ115: 7030243.797 | AK115: 7030243.797 | AL115: 7030243.797 | AM115: 0 | AN115: 0 | AO115: =+AO86 -> 0 | AP115: 0 | AQ115: 0 | AR115: 0 | AS115: 0 | AT115: 0 | AU115: 0 | AV115: 0
B116: Inflation | F116: =+SUM(H116:O116) -> 11714033.44 | H116: =+SUMIF($Q$4:$AV$4,H$4,$Q116:$AV116) -> 0 | I116: =+SUMIF($Q$4:$AV$4,I$4,$Q116:$AV116) -> 0 | J116: =+SUMIF($Q$4:$AV$4,J$4,$Q116:$AV116) -> 1445565.124 | K116: 3552122.906 | L116: 4307928.325 | M116: 2408417.087 | N116: 0 | O116: 0 | Q116: =+Q100-Q115 -> 0 | R116: =+R100-R115 -> 0 | S116: 0 | T116: 0 | U116: 0 | V116: 0 | W116: 0 | X116: 0 | Y116: 0 | Z116: 0 | AA116: =+AA100-AA115 -> 688507.4857 | AB116: 757057.6387 | AC116: 809097.9399 | AD116: 861486.0115 | AE116: 914224.1775 | AF116: 967314.7775 | AG116: 1010943.048 | AH116: 1054809.32 | AI116: 1098914.891 | AJ116: 1143261.066 | AK116: 1183825.611 | AL116: 1224591.476 | AM116: 0 | AN116: 0 | AO116: =+AO100-AO115 -> 0 | AP116: 0 | AQ116: 0 | AR116: 0 | AS116: 0 | AT116: 0 | AU116: 0 | AV116: 0
B117: Interest during construction (IDC) | F117: =+SUM(H117:O117) -> 7046551.772 | H117: =+SUMIF($Q$4:$AV$4,H$4,$Q117:$AV117) -> 0 | I117: =+SUMIF($Q$4:$AV$4,I$4,$Q117:$AV117) -> 0 | J117: 119671.0401 | K117: 970730.9602 | L117: 3517362.583 | M117: 2438787.189 | N117: 0 | O117: 0 | Q117: =Q110 -> 0 | R117: 0 | S117: 0 | T117: 0 | U117: 0 | V117: 0 | W117: 0 | X117: 0 | Y117: 0 | Z117: 0 | AA117: 29851.48234 | AB117: 89819.55772 | AC117: =AC110 -> 150728.5333 | AD117: =AD110 -> 211758.9842 | AE117: 273197.2841 | AF117: 335046.1586 | AG117: 710816.287 | AH117: 822758.194 | AI117: 935310.7663 | AJ117: 1048477.335 | AK117: 1162233.32 | AL117: 1276553.869 | AM117: 0 | AN117: 0 | AO117: =AO110 -> 0 | AP117: 0 | AQ117: 0 | AR117: 0 | AS117: 0 | AT117: 0 | AU117: 0 | AV117: 0
B118: Nominal costs including IDC | F118: =+SUM(H118:O118) -> 103123510.8 | G118: =+IF(ROUND(F118,)=ROUND(F100+F110,),"ok","error!") -> ok | H118: =+SUM(H115:H117) -> 0 | I118: 0 | J118: 15625723.76 | K118: 32643829.05 | L118: 35946266.1 | M118: 18907691.87 | N118: 0 | O118: 0 | Q118: =+Q117+Q116+Q115 -> 0 | R118: =+R117+R116+R115 -> 0 | S118: 0 | T118: 0 | U118: 0 | V118: 0 | W118: 0 | X118: 0 | Y118: 0 | Z118: 0 | AA118: 7748602.765 | AB118: 7877120.993 | AC118: 7990070.27 | AD118: 8103488.793 | AE118: 8217665.259 | AF118: 8332604.733 | AG118: 8752003.132 | AH118: 8907811.311 | AI118: 9064469.454 | AJ118: 9221982.198 | AK118: 9376302.729 | AL118: 9531389.142 | AM118: 0 | AN118: 0 | AO118: =+AO117+AO116+AO115 -> 0 | AP118: 0 | AQ118: 0 | AR118: 0 | AS118: 0 | AT118: 0 | AU118: 0 | AV118: 0
A120: Value of commissioned assets (P50 values, $000)
A122: Stage I
B123: Value of commissioned assets | F123: =+SUM(H123:N123) -> 103123510.8 | H123: =+SUMIF($Q$4:$AV$4,H$4,$Q123:$AV123) -> 0 | I123: 0 | J123: 0 | K123: 0 | L123: 0 | M123: 103123510.8 | N123: 0 | O123: 0 | Q123: =IF(AND(Q16=1,R16=0),Q109+$F$110,) -> 0 | R123: 0 | S123: 0 | T123: 0 | U123: 0 | V123: 0 | W123: 0 | X123: 0 | Y123: 0 | Z123: 0 | AA123: 0 | AB123: 0 | AC123: 0 | AD123: 0 | AE123: 0 | AF123: 0 | AG123: 0 | AH123: 0 | AI123: 0 | AJ123: 0 | AK123: 0 | AL123: 103123510.8 | AM123: 0 | AN123: 0 | AO123: 0 | AP123: 0 | AQ123: 0 | AR123: 0
B124: Value of commissioned assets (excluding property) | F124: =+SUM(H124:N124) -> 0 | H124: 0 | I124: 0 | J124: 0 | K124: 0 | L124: 0 | M124: 0 | N124: 0 | O124: 0 | Q124: =IF(AND(Q20=1,R20=0),Q123-Q50,) -> 0 | R124: 0 | S124: 0 | T124: 0 | U124: 0 | V124: 0 | W124: 0 | X124: 0 | Y124: 0 | Z124: 0 | AA124: 0 | AB124: 0 | AC124: 0 | AD124: 0 | AE124: 0 | AF124: 0 | AG124: 0 | AH124: 0 | AI124: 0 | AJ124: 0 | AK124: 0 | AL124: 0 | AM124: 0 | AN124: 0 | AO124: 0 | AP124: 0 | AQ124: 0 | AR124: 0
B125: Value of commissioned assets (property) | F125: =+SUM(H125:N125) -> 0 | H125: 0 | I125: 0 | J125: 0 | K125: 0 | L125: 0 | M125: 0 | N125: 0 | O125: 0 | Q125: =IF(AND(Q20=1,R20=0),Q123-Q124,) -> 0 | R125: 0 | S125: 0 | T125: 0 | U125: 0 | V125: 0 | W125: 0 | X125: 0 | Y125: 0 | Z125: 0 | AA125: 0 | AB125: 0 | AC125: 0 | AD125: 0 | AE125: 0 | AF125: 0 | AG125: 0 | AH125: 0 | AI125: 0 | AJ125: 0 | AK125: 0 | AL125: 0 | AM125: 0 | AN125: 0 | AO125: 0 | AP125: 0 | AQ125: 0 | AR125: 0
A128: Proportion paid in US$ (P50 values, $000)
A130: Stage I
B131: Value of commissioned assets | F131: =+SUM(H131:N131) -> 0 | H131: =+SUMIF($Q$4:$AV$4,H$4,$Q$123:$AV$123) -> 0 | I131: =+SUMIF($Q$4:$AV$4,I$4,$Q$123:$AV$123) -> 0 | J131: =+SUMIF($Q$4:$AV$4,J$4,$Q$123:$AV$123) -> 0 | K131: =+SUMIF($Q$4:$AV$4,K$4,$Q$123:$AV$123) -> 0 | L131: =+SUMIF($Q$4:$AV$4,L$4,$Q$123:$AV$123) -> 0 | N131: =+SUMIF($Q$4:$AV$4,N$4,$Q$123:$AV$123) -> 0
A135: Graph inputs (P50 values, $000)
B137: Investigation | F137: =+SUM(Q137:AR137) -> 0 | Q137: =Q40 -> 
F138: =+SUM(Q138:AR138) -> 0 | Q138: =Q41 -> 0 | R138: 0 | S138: 0 | T138: 0 | U138: 0 | V138: 0 | W138: 0 | X138: 0 | Y138: 0 | Z138: 0 | AA138: 0 | AB138: 0 | AC138: 0 | AD138: 0 | AE138: 0 | AF138: 0 | AG138: 0 | AH138: 0 | AI138: 0 | AJ138: 0 | AK138: 0 | AL138: 0 | AM138: 0 | AN138: 0 | AO138: 0 | AP138: 0 | AQ138: 0 | AR138: 0
B139: Construction work | F139: 0 | Q139: =Q42 -> 
B140: Contractor overheads | F140: 0 | Q140: =Q43 -> 
B141: Transpower overheads | F141: 0 | Q141: =Q44 -> 
F142: 0 | Q142: =Q45 -> 
B143: Community Care Fund | F143: 0 | Q143: =Q46 -> 
B144: Design | F144: 0 | Q144: =Q47 -> 
B145: Freight | F145: 0 | Q145: =Q48 -> 
B146: Legal | F146: 0 | Q146: =Q49 -> 
B147: Property | F147: 0 | Q147: =Q50 -> 
B148: Environmental costs | F148: 0 | Q148: =Q51 -> 
B149: Stakeholder costs | F149: 0 | Q149: =Q52 -> 
B150: Risk | F150: 0 | Q150: =Q54 -> 
B152: Total capex (cumulative) | Q152: =+P152+SUM(Q137:Q146) -> 0 | R152: 0 | S152: 0 | T152: 0 | U152: 0 | V152: 0 | W152: 0 | X152: 0 | Y152: 0 | Z152: 0 | AA152: =+Z152+SUM(AA137:AA151) -> 0 | AB152: 0 | AC152: 0 | AD152: 0 | AE152: 0 | AF152: 0 | AG152: 0 | AH152: 0 | AI152: 0 | AJ152: 0 | AK152: 0 | AL152: 0 | AM152: 0 | AN152: 0 | AO152: 0 | AP152: 0 | AQ152: 0 | AR152: 0

Sheet Assumptions - with Mode added
D1: input | E1: calculated | F1: linked
B3: Select Project | C3: Subs - HVDC Capacity Stage 1 | G3: Type: | H3: =IF(LEFT(C3,1)="S","Subs","Lines") -> Subs | J3: =SUM(Q40:Q83) -> 80586773.69
A5: Cost phasing | D5: Start | E5: Finish
D6: =IF('NZGP project list'!D2="Original",OFFSET('NZGP project list'!$F$4,MATCH(C3,'NZGP project list'!$C$5:$C$13,0),0),OFFSET('NZGP project list'!$H$4,MATCH(C3,'NZGP project list'!$C$5:$C$13,0),0)) -> 2024-07-01 | E6: =IF('NZGP project list'!D2="Original",OFFSET('NZGP project list'!$G$4,MATCH(C3,'NZGP project list'!$C$5:$C$13,0),0),OFFSET('NZGP project list'!$I$4,MATCH(C3,'NZGP project list'!$C$5:$C$13,0),0)) -> 2027-05-31
B7: Lines | G7: Subs
B8: Investigation | D8: =IF(Type="Lines",DATEVALUE("Jan-22"),"") ->  | E8: =IF(Type="Lines",DATEVALUE("Dec-22"),"") ->  | G8: Investigation | I8: =IF(Type="Subs",DATEVALUE("Jan-22"),"") -> 2022-01-01 | J8: =IF(Type="Subs",DATEVALUE("Dec-22"),"") -> 2022-12-01
G10: Civil Works | I10: =IF(Type="Subs",$D$6,"") -> 2024-07-01 | J10: =IF(Type="Subs",$E$6,"") -> 2027-05-31
G11: Primary Plant 220 kV - Statcom | I11: 2024-07-01 | J11: 2027-05-31
G12: Primary Plant 220 kV - other | I12: 2024-07-01 | J12: 2027-05-31
G13: Cables | I13: 2024-07-01 | J13: 2027-05-31
G14: Protection | I14: 2024-07-01 | J14: 2027-05-31
G15: SCADA | I15: 2024-07-01 | J15: 2027-05-31
G16: Secondary Equipment | I16: 2024-07-01 | J16: 2027-05-31
G17: Communications | I17: 2024-07-01 | J17: 2027-05-31
G18: Miscellaneous works | I18: 2024-07-01 | J18: 2027-05-31
G19: Switching | I19: 2024-07-01 | J19: 2027-05-31
B21: Construction work | D21: =IF(Type="Lines",$D$6,"") ->  | E21: =IF(Type="Lines",$E$6,"") ->  | G21: Construction work | I21: =IF(Type="Subs",$D$6,"") -> 2024-07-01 | J21: =IF(Type="Subs",$E$6,"") -> 2027-05-31
B22: Transpower overheads | G22: Transpower overheads | I22: 2024-07-01 | J22: 2027-05-31
B23: Consultant support | G23: Consultant support | I23: 2024-07-01 | J23: 2027-05-31
B24: Contractor overheads | G24: Contractor overheads | I24: 2024-07-01 | J24: 2027-05-31
B25: Freight | G25: Freight | I25: 2024-07-01 | J25: 2027-05-31
B26: Design | G26: Design | I26: 2024-07-01 | J26: 2027-05-31
B27: Legal | G27: Legal | I27: 2024-07-01 | J27: 2027-05-31
B28: Property | G28: Property | I28: 2024-07-01 | J28: 2027-05-31
B29: Environmental costs | G29: Environmental costs | I29: 2024-07-01 | J29: 2027-05-31
B30: Community Care Fund | G30: Community Care Fund | I30: 2024-07-01 | J30: 2027-05-31
B31: Stakeholder costs | G31: Stakeholder costs | I31: 2024-07-01 | J31: 2027-05-31
I32: 2024-07-01 | J32: 2027-05-31
B33: Risk | D33: =IF(Type="Lines",$D$6,"") ->  | E33: =IF(Type="Lines",$E$6,"") ->  | G33: Risk | I33: 2024-07-01 | J33: 2027-05-31
B34: Escalation / Inflation allowance | D34: =IF(Type="Lines",$D$6,"") ->  | E34: =IF(Type="Lines",$E$6,"") ->  | G34: Escalation / Inflation allowance | I34: 2024-07-01 | J34: 2027-05-31
B35: IDC | D35: =IF(Type="Lines",$D$6,"") ->  | E35: =IF(Type="Lines",$E$6,"") ->  | G35: IDC | I35: 2024-07-01 | J35: 2027-05-31
A37: Real costs ($000) | F37: Total costs @ risk percentile | I37: P50 estimate | K37: Risk percentile | M37: Lower estimate | O37: Upper estimate | Q37: Mode (most often) estimate | S37: Multiplier | U37: Proportion paid in US$
A39: Lines
B40: Investigation | F40: =IF(K40<=IFERROR((Q40-M40)/(O40-M40),0),M40+SQRT(K40*(O40-M40)*(Q40-M40)),O40-SQRT((1-K40)*(O40-M40)*(-Q40+O40)))*S40 -> 0 | K40: 0.5 | M40: =IF(LEFT($C$3,5)="Lines",SUMIF(INDIRECT("'"&$C$3&"'!"&"$A$5:$A$25"),$B40,INDIRECT("'"&$C$3&"'!"&"$D$5:$D$25")),0) -> 0 | O40: =IF(LEFT($C$3,5)="Lines",SUMIF(INDIRECT("'"&$C$3&"'!"&"$A$5:$A$25"),$B40,INDIRECT("'"&$C$3&"'!"&"$E$5:$E$25")),0) -> 0 | Q40: =IF(LEFT($C$3,5)="Lines",SUMIF(INDIRECT("'"&$C$3&"'!"&"$A$5:$A$25"),$B40,INDIRECT("'"&$C$3&"'!"&"$C$5:$C$25")),0) -> 0 | S40: 1 | U40: 0
B42: Construction work | F42: =IF(K42<=IFERROR((Q42-M42)/(O42-M42),),M42+SQRT(K42*(O42-M42)*(Q42-M42)),O42-SQRT((1-K42)*(O42-M42)*(-Q42+O42)))*S42 -> 0 | K42: 0.5 | M42: =IF(LEFT($C$3,5)="Lines",SUMIF(INDIRECT("'"&$C$3&"'!"&"$A$5:$A$25"),$B42,INDIRECT("'"&$C$3&"'!"&"$D$5:$D$25")),0) -> 0 | O42: =IF(LEFT($C$3,5)="Lines",SUMIF(INDIRECT("'"&$C$3&"'!"&"$A$5:$A$25"),$B42,INDIRECT("'"&$C$3&"'!"&"$E$5:$E$25")),0) -> 0 | Q42: =IF(LEFT($C$3,5)="Lines",SUMIF(INDIRECT("'"&$C$3&"'!"&"$A$5:$A$25"),$B42,INDIRECT("'"&$C$3&"'!"&"$C$5:$C$25")),0) -> 0 | S42: 1
B43: Transpower overheads | F43: 0 | K43: 0.5 | M43: =IF(LEFT($C$3,5)="Lines",SUMIF(INDIRECT("'"&$C$3&"'!"&"$A$5:$A$25"),$B43,INDIRECT("'"&$C$3&"'!"&"$D$5:$D$25")),0) -> 0 | O43: =IF(LEFT($C$3,5)="Lines",SUMIF(INDIRECT("'"&$C$3&"'!"&"$A$5:$A$25"),$B43,INDIRECT("'"&$C$3&"'!"&"$E$5:$E$25")),0) -> 0 | Q43: =IF(LEFT($C$3,5)="Lines",SUMIF(INDIRECT("'"&$C$3&"'!"&"$A$5:$A$25"),$B43,INDIRECT("'"&$C$3&"'!"&"$C$5:$C$25")),0) -> 0 | S43: 1
B44: Consultant support | F44: =IF(K44<=IFERROR((Q44-M44)/(O44-M44),),M44+SQRT(K44*(O44-M44)*(Q44-M44)),O44-SQRT((1-K44)*(O44-M44)*(-Q44+O44)))*S44 -> 0 | K44: 0.5 | M44: =IF(LEFT($C$3,5)="Lines",SUMIF(INDIRECT("'"&$C$3&"'!"&"$A$5:$A$25"),$B44,INDIRECT("'"&$C$3&"'!"&"$D$5:$D$25")),0) -> 0 | O44: =IF(LEFT($C$3,5)="Lines",SUMIF(INDIRECT("'"&$C$3&"'!"&"$A$5:$A$25"),$B44,INDIRECT("'"&$C$3&"'!"&"$E$5:$E$25")),0) -> 0 | Q44: =IF(LEFT($C$3,5)="Lines",SUMIF(INDIRECT("'"&$C$3&"'!"&"$A$5:$A$25"),$B44,INDIRECT("'"&$C$3&"'!"&"$C$5:$C$25")),0) -> 0 | S44: 1
B45: Contractor overheads | F45: 0 | K45: 0.5 | M45: =IF(LEFT($C$3,5)="Lines",SUMIF(INDIRECT("'"&$C$3&"'!"&"$A$5:$A$25"),$B45,INDIRECT("'"&$C$3&"'!"&"$D$5:$D$25")),0) -> 0 | O45: =IF(LEFT($C$3,5)="Lines",SUMIF(INDIRECT("'"&$C$3&"'!"&"$A$5:$A$25"),$B45,INDIRECT("'"&$C$3&"'!"&"$E$5:$E$25")),0) -> 0 | Q45: =IF(LEFT($C$3,5)="Lines",SUMIF(INDIRECT("'"&$C$3&"'!"&"$A$5:$A$25"),$B45,INDIRECT("'"&$C$3&"'!"&"$C$5:$C$25")),0) -> 0 | S45: 1
B46: Freight | F46: =IF(K46<=IFERROR((Q46-M46)/(O46-M46),),M46+SQRT(K46*(O46-M46)*(Q46-M46)),O46-SQRT((1-K46)*(O46-M46)*(-Q46+O46)))*S46 -> 0 | K46: 0.5 | M46: =IF(LEFT($C$3,5)="Lines",SUMIF(INDIRECT("'"&$C$3&"'!"&"$A$5:$A$25"),$B46,INDIRECT("'"&$C$3&"'!"&"$D$5:$D$25")),0) -> 0 | O46: =IF(LEFT($C$3,5)="Lines",SUMIF(INDIRECT("'"&$C$3&"'!"&"$A$5:$A$25"),$B46,INDIRECT("'"&$C$3&"'!"&"$E$5:$E$25")),0) -> 0 | Q46: =IF(LEFT($C$3,5)="Lines",SUMIF(INDIRECT("'"&$C$3&"'!"&"$A$5:$A$25"),$B46,INDIRECT("'"&$C$3&"'!"&"$C$5:$C$25")),0) -> 0 | S46: 1
B47: Design | F47: =IF(K47<=IFERROR((Q47-M47)/(O47-M47),),M47+SQRT(K47*(O47-M47)*(Q47-M47)),O47-SQRT((1-K47)*(O47-M47)*(-Q47+O47)))*S47 -> 0 | K47: 0.5 | M47: =IF(LEFT($C$3,5)="Lines",SUMIF(INDIRECT("'"&$C$3&"'!"&"$A$5:$A$25"),$B47,INDIRECT("'"&$C$3&"'!"&"$D$5:$D$25")),0) -> 0 | O47: =IF(LEFT($C$3,5)="Lines",SUMIF(INDIRECT("'"&$C$3&"'!"&"$A$5:$A$25"),$B47,INDIRECT("'"&$C$3&"'!"&"$E$5:$E$25")),0) -> 0 | Q47: =IF(LEFT($C$3,5)="Lines",SUMIF(INDIRECT("'"&$C$3&"'!"&"$A$5:$A$25"),$B47,INDIRECT("'"&$C$3&"'!"&"$C$5:$C$25")),0) -> 0 | S47: 1
B48: Legal | F48: =IF(K48<=IFERROR((Q48-M48)/(O48-M48),),M48+SQRT(K48*(O48-M48)*(Q48-M48)),O48-SQRT((1-K48)*(O48-M48)*(-Q48+O48)))*S48 -> 0 | K48: 0.5 | M48: 0 | O48: 0 | Q48: 0 | S48: 1
B49: Property | F49: 0 | K49: 0.5 | M49: 0 | O49: 0 | Q49: 0 | S49: 1
B50: Environmental costs | F50: 0 | K50: 0.5 | M50: 0 | O50: 0 | Q50: 0 | S50: 1
B51: Community Care Fund | F51: =IF(K51<=IFERROR((Q51-M51)/(O51-M51),),M51+SQRT(K51*(O51-M51)*(Q51-M51)),O51-SQRT((1-K51)*(O51-M51)*(-Q51+O51)))*S51 -> 0 | K51: 0.5 | M51: =IF(LEFT($C$3,5)="Lines",SUMIF(INDIRECT("'"&$C$3&"'!"&"$A$5:$A$25"),$B51,INDIRECT("'"&$C$3&"'!"&"$D$5:$D$25")),0) -> 0 | O51: =IF(LEFT($C$3,5)="Lines",SUMIF(INDIRECT("'"&$C$3&"'!"&"$A$5:$A$25"),$B51,INDIRECT("'"&$C$3&"'!"&"$E$5:$E$25")),0) -> 0 | Q51: =IF(LEFT($C$3,5)="Lines",SUMIF(INDIRECT("'"&$C$3&"'!"&"$A$5:$A$25"),$B51,INDIRECT("'"&$C$3&"'!"&"$C$5:$C$25")),0) -> 0 | S51: 1
B52: Stakeholder costs | F52: =IF(K52<=IFERROR((Q52-M52)/(O52-M52),),M52+SQRT(K52*(O52-M52)*(Q52-M52)),O52-SQRT((1-K52)*(O52-M52)*(-Q52+O52)))*S52 -> 0 | K52: 0.5 | M52: 0 | O52: 0 | Q52: 0 | S52: 1
B54: Risk | F54: =IF(K54<=IFERROR((Q54-M54)/(O54-M54),),M54+SQRT(K54*(O54-M54)*(Q54-M54)),O54-SQRT((1-K54)*(O54-M54)*(-Q54+O54)))*S54 -> 0 | K54: 0.5 | M54: =IF(LEFT($C$3,5)="Lines",SUMIF(INDIRECT("'"&$C$3&"'!"&"$A$5:$A$25"),$B54,INDIRECT("'"&$C$3&"'!"&"$D$5:$D$25")),0) -> 0 | O54: =IF(LEFT($C$3,5)="Lines",SUMIF(INDIRECT("'"&$C$3&"'!"&"$A$5:$A$25"),$B54,INDIRECT("'"&$C$3&"'!"&"$E$5:$E$25")),0) -> 0 | Q54: =IF(LEFT($C$3,5)="Lines",SUMIF(INDIRECT("'"&$C$3&"'!"&"$A$5:$A$25"),$B54,INDIRECT("'"&$C$3&"'!"&"$C$5:$C$25")),0) -> 0 | S54: 1
A56: Subs
B57: Investigation | F57: =IF(K57<=IFERROR((Q57-M57)/(O57-M57),),M57+SQRT(K57*(O57-M57)*(Q57-M57)),O57-SQRT((1-K57)*(O57-M57)*(-Q57+O57)))*S57 -> 0 | K57: 0.5 | M57: =IF(LEFT($C$3,4)="Subs",SUMIF(INDIRECT("'"&$C$3&"'!"&"$A$5:$A$25"),$B57,INDIRECT("'"&$C$3&"'!"&"$D$5:$D$25")),0) -> 0 | O57: =IF(LEFT($C$3,4)="Subs",SUMIF(INDIRECT("'"&$C$3&"'!"&"$A$5:$A$25"),$B57,INDIRECT("'"&$C$3&"'!"&"$E$5:$E$25")),0) -> 0 | Q57: =IF(LEFT($C$3,4)="Subs",SUMIF(INDIRECT("'"&$C$3&"'!"&"$A$5:$A$25"),$B57,INDIRECT("'"&$C$3&"'!"&"$c$5:$c$25")),0) -> 0 | S57: 1
B59: Civil Works | F59: =IF(K59<=IFERROR((Q59-M59)/(O59-M59),),M59+SQRT(K59*(O59-M59)*(Q59-M59)),O59-SQRT((1-K59)*(O59-M59)*(-Q59+O59)))*S59 -> 10018671.22 | K59: 0.5 | M59: =IF(LEFT($C$3,4)="Subs",SUMIF(INDIRECT("'"&$C$3&"'!"&"$A$5:$A$25"),$B59,INDIRECT("'"&$C$3&"'!"&"$D$5:$D$25")),0) -> 8643294.847 | O59: =IF(LEFT($C$3,4)="Subs",SUMIF(INDIRECT("'"&$C$3&"'!"&"$A$5:$A$25"),$B59,INDIRECT("'"&$C$3&"'!"&"$E$5:$E$25")),0) -> 13339123.51 | Q59: =IF(LEFT($C$3,4)="Subs",SUMIF(INDIRECT("'"&$C$3&"'!"&"$A$5:$A$25"),$B59,INDIRECT("'"&$C$3&"'!"&"$c$5:$c$25")),0) -> 8643294.847 | S59: 1
B60: Primary Plant 220 kV - Statcom | F60: 36378807.02 | K60: 0.5 | M60: =IF(LEFT($C$3,4)="Subs",SUMIF(INDIRECT("'"&$C$3&"'!"&"$A$5:$A$25"),$B60,INDIRECT("'"&$C$3&"'!"&"$D$5:$D$25")),0) -> 36305770.65 | O60: =IF(LEFT($C$3,4)="Subs",SUMIF(INDIRECT("'"&$C$3&"'!"&"$A$5:$A$25"),$B60,INDIRECT("'"&$C$3&"'!"&"$E$5:$E$25")),0) -> 36555132.4 | Q60: =IF(LEFT($C$3,4)="Subs",SUMIF(INDIRECT("'"&$C$3&"'!"&"$A$5:$A$25"),$B60,INDIRECT("'"&$C$3&"'!"&"$c$5:$c$25")),0) -> 36305770.65 | S60: 1
B61: Primary Plant 220 kV - other | F61: =IF(K61<=IFERROR((Q61-M61)/(O61-M61),),M61+SQRT(K61*(O61-M61)*(Q61-M61)),O61-SQRT((1-K61)*(O61-M61)*(-Q61+O61)))*S61 -> 8984483.164 | K61: 0.5 | M61: 8586088.175 | O61: 9946293.75 | Q61: 8586088.175 | S61: 1
B62: Cables | F62: 368664.1876 | K62: 0.5 | M62: 340047.669 | O62: 437750.5748 | Q62: 340047.669 | S62: 1
B63: Protection | F63: 764095.0712 | K63: 0.5 | M63: 665766.6 | O63: 1001481 | Q63: 665766.6 | S63: 1
B64: SCADA | F64: 317115.1031 | K64: 0.5 | M64: 268580.5 | O64: 434288 | Q64: 268580.5 | S64: 1
B65: Secondary Equipment | F65: 4186033.173 | K65: 0.5 | M65: 3683673.107 | O65: 5398837.66 | Q65: 3683673.107 | S65: 1
B66: Communications | F66: 102902.3073 | K66: 0.5 | M66: 87272.5 | O66: 140636 | Q66: 87272.5 | S66: 1
B67: Miscellaneous works | F67: 276668.8256 | K67: 0.5 | M67: 215124.72 | O67: 425249.44 | Q67: 215124.72 | S67: 1
B68: Switching | F68: 65021.89456 | K68: 0.5 | M68: 52192 | O68: 95996 | Q68: 52192 | S68: 1
B71: Construction work | F71: =IF(K71<=IFERROR((Q71-M71)/(O71-M71),),M71+SQRT(K71*(O71-M71)*(Q71-M71)),O71-SQRT((1-K71)*(O71-M71)*(-Q71+O71)))*S71 -> 0 | K71: 0.5 | M71: =IF(LEFT($C$3,4)="Subs",SUMIF(INDIRECT("'"&$C$3&"'!"&"$A$5:$A$25"),$B71,INDIRECT("'"&$C$3&"'!"&"$D$5:$D$25")),0) -> 0 | O71: =IF(LEFT($C$3,4)="Subs",SUMIF(INDIRECT("'"&$C$3&"'!"&"$A$5:$A$25"),$B71,INDIRECT("'"&$C$3&"'!"&"$E$5:$E$25")),0) -> 0 | Q71: =IF(LEFT($C$3,4)="Subs",SUMIF(INDIRECT("'"&$C$3&"'!"&"$A$5:$A$25"),$B71,INDIRECT("'"&$C$3&"'!"&"$c$5:$c$25")),0) -> 0 | S71: 1
B72: Transpower overheads | F72: =IF(K72<=IFERROR((Q72-M72)/(O72-M72),),M72+SQRT(K72*(O72-M72)*(Q72-M72)),O72-SQRT((1-K72)*(O72-M72)*(-Q72+O72)))*S72 -> 3493087.768 | K72: 0.5 | M72: =IF(LEFT($C$3,4)="Subs",SUMIF(INDIRECT("'"&$C$3&"'!"&"$A$5:$A$25"),$B72,INDIRECT("'"&$C$3&"'!"&"$D$5:$D$25")),0) -> 3318676.76 | O72: =IF(LEFT($C$3,4)="Subs",SUMIF(INDIRECT("'"&$C$3&"'!"&"$A$5:$A$25"),$B72,INDIRECT("'"&$C$3&"'!"&"$E$5:$E$25")),0) -> 3914153.189 | Q72: 3318676.76 | S72: 1
B73: Consultant support | F73: =IF(K73<=IFERROR((Q73-M73)/(O73-M73),),M73+SQRT(K73*(O73-M73)*(Q73-M73)),O73-SQRT((1-K73)*(O73-M73)*(-Q73+O73)))*S73 -> 1221374.033 | K73: 0.5 | M73: =IF(LEFT($C$3,4)="Subs",SUMIF(INDIRECT("'"&$C$3&"'!"&"$A$5:$A$25"),$B73,INDIRECT("'"&$C$3&"'!"&"$D$5:$D$25")),0) -> 1160390.43 | O73: =IF(LEFT($C$3,4)="Subs",SUMIF(INDIRECT("'"&$C$3&"'!"&"$A$5:$A$25"),$B73,INDIRECT("'"&$C$3&"'!"&"$E$5:$E$25")),0) -> 1368601.473 | Q73: =IF(LEFT($C$3,4)="Subs",SUMIF(INDIRECT("'"&$C$3&"'!"&"$A$5:$A$25"),$B73,INDIRECT("'"&$C$3&"'!"&"$c$5:$c$25")),0) -> 1160390.43 | S73: 1
B74: Contractor overheads | F74: =IF(K74<=IFERROR((Q74-M74)/(O74-M74),),M74+SQRT(K74*(O74-M74)*(Q74-M74)),O74-SQRT((1-K74)*(O74-M74)*(-Q74+O74)))*S74 -> 5353181.84 | K74: 0.5 | M74: =IF(LEFT($C$3,4)="Subs",SUMIF(INDIRECT("'"&$C$3&"'!"&"$A$5:$A$25"),$B74,INDIRECT("'"&$C$3&"'!"&"$D$5:$D$25")),0) -> 5085895.73 | O74: =IF(LEFT($C$3,4)="Subs",SUMIF(INDIRECT("'"&$C$3&"'!"&"$A$5:$A$25"),$B74,INDIRECT("'"&$C$3&"'!"&"$E$5:$E$25")),0) -> 5998467.591 | Q74: 5085895.73 | S74: 1
B75: Freight | F75: 177653.2829 | K75: 0.5 | M75: 151000 | O75: 242000 | Q75: 151000 | S75: 1
B76: Design | F76: 3534379.221 | K76: 0.5 | M76: 2921500 | O76: 5014000.55 | Q76: 2921500 | S76: 1
B77: Legal | F77: 26313.85956 | K77: 0.5 | M77: 25000 | O77: 29485.79714 | Q77: 25000 | S77: 1
B78: Property | F78: 0 | K78: 0.5 | M78: 0 | O78: 0 | Q78: 0 | S78: 1
B79: Environmental costs | F79: 147357.6136 | K79: 0.5 | M79: 140000 | O79: 165120.464 | Q79: 140000 | S79: 1
B80: Community Care Fund | F80: 212615.9853 | K80: 0.5 | M80: 202000 | O80: 238245.2409 | Q80: 202000 | S80: 1
B81: Stakeholder costs | F81: =IF(K81<=IFERROR((Q81-M81)/(O81-M81),),M81+SQRT(K81*(O81-M81)*(Q81-M81)),O81-SQRT((1-K81)*(O81-M81)*(-Q81+O81)))*S81 -> 0 | K81: 0.5 | M81: 0 | O81: 0 | Q81: 0 | S81: 1
B83: Risk | F83: =IF(K83<=IFERROR((Q83-M83)/(O83-M83),),M83+SQRT(K83*(O83-M83)*(Q83-M83)),O83-SQRT((1-K83)*(O83-M83)*(-Q83+O83)))*S83 -> 8734500 | K83: 0.5 | M83: =IF(LEFT($C$3,4)="Subs",SUMIF(INDIRECT("'"&$C$3&"'!"&"$A$5:$A$25"),$B83,INDIRECT("'"&$C$3&"'!"&"$D$5:$D$25")),0) -> 8734500 | O83: =IF(LEFT($C$3,4)="Subs",SUMIF(INDIRECT("'"&$C$3&"'!"&"$A$5:$A$25"),$B83,INDIRECT("'"&$C$3&"'!"&"$E$5:$E$25")),0) -> 8734500 | Q83: =IF(LEFT($C$3,4)="Subs",SUMIF(INDIRECT("'"&$C$3&"'!"&"$A$5:$A$25"),$B83,INDIRECT("'"&$C$3&"'!"&"$c$5:$c$25")),0) -> 8734500 | S83: 1
A85: Macro assumptions
B86: Years (financial year ended 30 June) | G86: 2022 | H86: 2023 | I86: 2024 | J86: 2025 | K86: 2026 | L86: 2027 | M86: 2028 | N86: 2029 | O86: 2030
B87: Inflation | G87: =assumptions!AD7 -> 0.067 | H87: =assumptions!AE7 -> 0.052 | I87: =assumptions!AF7 -> 0.036 | J87: =assumptions!AG7 -> 0.027 | K87: =assumptions!AH7 -> 0.022 | L87: =assumptions!AI7 -> 0.02 | M87: =assumptions!AJ7 -> 0.02 | N87: =assumptions!AK7 -> 0.02 | O87: =assumptions!AL7 -> 0.02
B88: Inflation factor | D88: Start | E88: 2022-09-30
B89: Discount rate (real, pre-tax) | E89: 0.07
B90: PV discount factor (real, pre-tax) | D90: Start | E90: 2022-09-30
B91: Nominal interest rates | G91: 0.0313 | H91: 0.0313 | I91: 0.0313 | J91: 0.0314 | K91: 0.0567 | L91: 0.0567 | M91: 0.0567 | N91: 0.0567 | O91: 0.0567
B92: NZD:USD FX rate | D92: TEES rate | E92: 0.66 | G92: 0.7 | H92: 0.71 | I92: 0.72 | J92: 0.66 | K92: 0.66 | L92: 0.66 | M92: 0.66 | N92: 0.66 | O92: 0.66
G95: historical factors for comparison
G96: 2022 | H96: 2023 | I96: 2024 | J96: 2025 | K96: 2026 | L96: 2027 | M96: 2028
G97: 0.0174 | H97: 0.015 | I97: 0.0167 | J97: 0.016 | K97: 0.019 | L97: 0.021 | M97: 0.021

Sheet Lines - BPE-TKU-A&B TTU
A1: Project Build start | B1: 2024-09-02 | H1: 1900-01-23
A2: Project Build end | B2: 2027-06-30 | H2: 2027-06-30
C4: Data | H4: Earlier version with different RISK cost
A5: MCA Category | B5: Category | C5: Sum of Mode Cost | D5: Sum of Low Cost Combined | E5: Sum of High Cost Combined | H5: MCA Category | I5: Sum of Low Cost Combined | J5: Sum of High Cost Combined | K5: Sum of Mode Cost
A6: Community Care Fund | B6: Community Contribution | C6: 295333 | D6: 295333 | E6: 295333 | H6: Community Care Fund | I6: 295333 | J6: 295333 | K6: 295333
A7: Construction work | B7: Construction Work | C7: 43555546.24 | D7: 38745923.71 | E7: 55063939.48 | H7: Construction Work | I7: 38745923.71 | J7: 55063939.48 | K7: 43555546.24
A8: Contractor overheads | B8: Contractor overheads | C8: 8692343.138 | D8: 8431572.844 | E8: 9126960.295 | H8: Contractor overheads | I8: 8431572.844 | J8: 9126960.295 | K8: 8692343.138
A9: Environmental costs | B9: Environmental Costs | C9: 500000 | D9: 450000 | E9: 575000 | H9: Environmental Costs | I9: 450000 | J9: 575000 | K9: 500000
A10: Legal | B10: LEGAL Allowances/Court Costs | C10: 135000 | D10: 135000 | E10: 202500 | H10: Legal | I10: 135000 | J10: 202500 | K10: 135000
A11: Property | B11: Property and/or Easements and Acquisition | C11: 797000.0064 | D11: 797000.0064 | E11: 897000 | H11: Property | I11: 797000.0064 | J11: 897000 | K11: 797000.0064
A12: Risk | B12: Risk Allowance & Management Reserve | C12: 6430450 | D12: 6430450 | E12: 6430450 | H12: Risk | I12: 6783700 | J12: 6783700 | K12: 6783700
A13: Stakeholder costs | B13: Stakeholder/ Iwi Liaison | C13: 390000 | D13: 195000 | E13: 507000 | H13: Stakeholder costs | I13: 195000 | J13: 507000 | K13: 390000
A14: Transpower overheads | B14: Transpower overheads | C14: 5438179.267 | D14: 5329415.682 | E14: 5601324.645 | H14: Transpower overheads | I14: 5329415.682 | J14: 5601324.645 | K14: 5438179.267
A15: IDC | B15: IDC | C15: 4674199 | D15: 4674199 | E15: 4674199 | I15: 0 | J15: 0
A16: Escalation / Inflation allowance | B16: Escalation / Inflation Allowance | C16: 6924356 | D16: 6924356 | E16: 6924356 | I16: 61162945.24 | J16: 79052757.42 | K16: 66587101.65
A17: Grand Total | C17: 77832406.65 | D17: 72408250.24 | E17: 90298062.42
C18: =C17-C15-C16 -> 66233851.65 | D18: =D17-D15-D16 -> 60809695.24 | E18: 78699507.42
H20: Updated version (final)
H21: Category | I21: Sum of Low Cost Combined | J21: Sum of High Cost Combined | K21: Sum of Mode Cost
H22: Community Contribution | I22: 295333 | J22: 295333 | K22: 295333
H23: Construction Work | I23: 38745923.71 | J23: 55063939.48 | K23: 43555546.24
H24: Contractor Overheads | I24: 8431572.844 | J24: 9126960.295 | K24: 8692343.138
H25: Environmental Costs | I25: 450000 | J25: 575000 | K25: 500000
H26: LEGAL Allowances/Court Costs | I26: 135000 | J26: 202500 | K26: 135000
H27: Property and/or Easements and Acquisition | I27: 797000.0064 | J27: 897000 | K27: 797000.0064
H28: Risk Allowance & Management Reserve | I28: 6430450 | J28: 6430450 | K28: 6430450
H29: Stakeholder/ Iwi Liaison | I29: 195000 | J29: 507000 | K29: 390000
H30: Transpower Overheads | I30: 5329415.682 | J30: 5601324.645 | K30: 5438179.267
H31: (blank) | I31: 0 | J31: 0
H32: Grand Total | I32: 60809695.24 | J32: 78699507.42 | K32: 66233851.65

Sheet Lines - TKU-WKM TTU
A1: Project Build start | B1: 2022-11-01 | I1: 2022-11-01
A2: Project Build end | B2: 2024-06-30 | I2: 2024-06-30
B4: Row Labels | C4: Sum of Mode Cost | D4: Sum of Low Cost Combined | E4: Sum of High Cost Combined | I4: Row Labels | J4: Sum of Mode Cost | K4: Sum of Low Cost Combined | L4: Sum of High Cost Combined
A5: Community Care Fund | B5: Community Care Fund | C5: 69794.1 | D5: 69794.1 | E5: 69794.1 | J5: 0 | K5: 0 | L5: 0
A6: Transpower overheads | B6: Consultants Support during Construction / Tendering | C6: 197500 | D6: 181700 | E6: 203425 | H6: Community Care Fund | I6: Community Care Fund | J6: 69794.1 | K6: 69794.1 | L6: 69794.1 | P6: 2022-11-01
A7: Contractor overheads | B7: Contractor Safety Compliance & QA Costs | C7: 150000 | D7: 147000 | E7: 156000 | H7: Transpower overheads | I7: Consultants Support during Construction / Tendering | J7: 197500 | K7: 181700 | L7: 203425 | P7: 2024-06-30
A8: Contractor overheads | B8: Contractor's Establishment and Disestablishment | C8: 500000 | D8: 490000 | E8: 520000 | H8: Contractor overheads | I8: Contractor Safety Compliance & QA Costs | J8: 150000 | K8: 147000 | L8: 156000
A9: Contractor overheads | B9: Contractor's PM and Site Costs | C9: 1528478.952 | D9: 1497909.373 | E9: 1589618.11 | H9: Contractor overheads | I9: Contractor's Establishment and Disestablishment | J9: 500000 | K9: 490000 | L9: 520000
A10: Contractor overheads | B10: Contractor's Preliminary & General | C10: 500000 | D10: 490000 | E10: 520000 | H10: Contractor overheads | I10: Contractor's PM and Site Costs | J10: 1528478.952 | K10: 1497909.373 | L10: 1589618.11
A11: Contractor overheads | B11: Contractor's Travel and Accomodation | C11: 450000 | D11: 441000 | E11: 468000 | H11: Contractor overheads | I11: Contractor's Preliminary & General | J11: 500000 | K11: 490000 | L11: 520000
A12: Design | B12: Design Allowance | C12: 949999.5 | D12: 949999.5 | E12: 1139999.4 | H12: Contractor overheads | I12: Contractor's Travel and Accomodation | J12: 450000 | K12: 441000 | L12: 468000
A13: Freight | B13: Freight on Materials | C13: 45528 | D13: 45528 | E13: 45528 | H13: Design | I13: Design Allowance | J13: 949999.5 | K13: 949999.5 | L13: 1139999.4
A14: Construction work | B14: Lines | C14: 17136228.93 | D14: 15828037.4 | E14: 19410577.42 | H14: Freight | I14: Freight on Materials | J14: 45528 | K14: 45528 | L14: 45528
A15: Risk | B15: Risk Allowance - $ | C15: 2178550 | D15: 2178550 | E15: 2178550 | H15: Construction Work | I15: Lines | J15: 17136228.93 | K15: 15828037.4 | L15: 19410577.42
A16: Transpower overheads | B16: Transpower Costs - Construction Phase | C16: 1432830 | D16: 1318203.6 | E16: 1475814.9 | H16: Risk | I16: Risk Allowance - $ | J16: 2178550 | K16: 2178550 | L16: 2178550
A17: Escalation / Inflation allowance | B17: Escalation / Inflation allowance | C17: 855870.28 | D17: 855870.28 | E17: 855870.28 | H17: Transpower overheads | I17: Transpower Costs - Construction Phase | J17: 1432830 | K17: 1318203.6 | L17: 1475814.9
A18: IDC | B18: IDC | C18: 507161 | D18: 507161 | E18: 507161 | I18: (blank) | K18: 0 | L18: 0
A19: Stakeholder costs | B19: Communication and Iwi / Stakeholder Liasion | C19: 224999.9976 | D19: 145000 | E19: 375000 | I19: 0 | J19: 0 | K19: 0 | L19: 0
A20: Stakeholder costs | B20: Property group disturbance and liaision costs | C20: 880000.007 | D20: 880000.007 | E20: 980000 | H20: Stakeholder costs | I20: Escalation / Inflation allowance | J20: 855870.28 | K20: 855870.28 | L20: 855870.28
A21: Property | B21: Property and/or Easements and Acquisition | C21: 750000.006 | D21: 500000 | E21: 750000.006 | I21: IDC | J21: 507161 | K21: 507161 | L21: 507161
A22: Environmental costs | B22: Environmental Costs | C22: 697000 | D22: 647000 | E22: 747000 | H22: Stakeholder costs | I22: Communication and Iwi / Stakeholder Liasion | J22: 224999.9976 | K22: 145000 | L22: 375000
B23: Grand Total | C23: 29053940.77 | D23: 27172753.26 | E23: 31992338.22 | H23: Stakeholder costs | I23: Property group disturbance and liaision costs | J23: 880000.007 | K23: 880000.007 | L23: 980000
C24: =C23-C17-C18 -> 27690909.49 | H24: Property | I24: Property and/or Easements and Acquisition | J24: 750000.006 | K24: 500000 | L24: 750000.006
H25: Environmental Costs | I25: Environmental Costs | J25: 697000 | K25: 647000 | L25: 747000
I26: Grand Total | J26: 29053940.77 | K26: 27172753.26 | L26: 31992338.22
I27: less IDC, Escalation | J27: =J26-J20-J21 -> 27690909.49 | K27: =K26-K20-K21 -> 25809721.98 | L27: 30629306.94
H28: Earlier view befiore asset transfer TTU to Duplexing | J28: =J27-J49 -> 4860876.91 | K28: =K27-K49 -> 4651049.741 | L28: 5892049.741
I31: Row Labels | J31: Sum of Mode Cost | K31: Sum of Low Cost Combined | L31: Sum of High Cost Combined
J32: 0 | K32: 0 | L32: 0
H33: Community Care Fund | I33: Community Care Fund | J33: 69794.1 | K33: 69794.1 | L33: 69794.1
H34: Transpower overheads | I34: Consultants Support during Construction / Tendering | J34: 197500 | K34: 391700 | L34: 500425
H35: Contractor overheads | I35: Contractor Safety Compliance & QA Costs | J35: 150000 | K35: 147000 | L35: 156000
H36: Contractor overheads | I36: Contractor's Establishment and Disestablishment | J36: 500000 | K36: 490000 | L36: 520000
H37: Contractor overheads | I37: Contractor's PM and Site Costs | J37: 1528478.952 | K37: 1497909.373 | L37: 1589618.11
H38: Contractor overheads | I38: Contractor's Preliminary & General | J38: 500000 | K38: 490000 | L38: 520000
H39: Contractor overheads | I39: Contractor's Travel and Accomodation | J39: 450000 | K39: 441000 | L39: 468000
H40: Design | I40: Design Allowance | J40: 949999.5 | K40: 949999.5 | L40: 1139999.4
H41: Freight | I41: Freight on Materials | J41: 45528 | K41: 45528 | L41: 45528
H42: Construction Work | I42: Lines | J42: 13010537.02 | K42: 11702172.66 | L42: 13956712.68
H43: Risk | I43: Risk Allowance - $ | J43: 1443365 | K43: 1443365 | L43: 1443365
H44: Transpower overheads | I44: Transpower Costs - Construction Phase | J44: 1432830 | K44: 1318203.6 | L44: 1475814.9
H45: Property | I45: Property and/or Easements and Acquisition | J45: 750000.006 | K45: 500000 | L45: 750000.006
H46: Environmental Costs | I46: Environmental Costs | J46: 697000 | K46: 647000 | L46: 747000
H47: Stakeholder costs | I47: Communication and Iwi / Stakeholder Liasion | J47: 224999.9976 | K47: 145000 | L47: 375000
H48: Stakeholder costs | I48: Property group disturbance and liaision costs | J48: 880000.007 | K48: 880000.007 | L48: 980000
I49: Grand Total | J49: 22830032.58 | K49: 21158672.24 | L49: 24737257.19

Sheet Lines - TKU-WKM-AB Duplexing NZ
A1: Project Build start | B1: 2024-09-01 | F1: 2024-09-02
A2: Project Build end | B2: 2028-06-30 | F2: 2028-06-30
B4: Row Labels | C4: Sum of Mode Cost | D4: Sum of Low Cost Combined | E4: Sum of High Cost Combined | G4: MCA Category | H4: TEES Category | I4: Mode | J4: Low | K4: High
A5: Community Care Fund | B5: Community Care Fund | C5: 379496 | D5: 379496 | E5: 379496 | G5: Community Care Fund | H5: Community Contribution | I5: 405103 | J5: 405103 | K5: 405103
A6: Transpower overheads | B6: Consultants Support during Construction / Tendering | C6: 497499.4788 | D6: 482574.4944 | E6: 517399.4579 | G6: Design | H6: Design Allowance | I6: 2999999.7 | J6: 2999999.7 | K6: 2999999.7
A7: Contractor overheads | B7: Contractor Safety Compliance & QA Costs | C7: 200000 | D7: 160000 | E7: 220000 | G7: Freight | H7: Freight on Materials | I7: 561506.5 | J7: 561506.5 | K7: 561506.5
A8: Contractor overheads | B8: Contractor's Establishment and Disestablishment | C8: 2150000 | D8: 1720000 | E8: 2365000 | G8: Construction work | H8: Lines | I8: 56150745.53 | J8: 49418810.04 | K8: 77355179.91
A9: Contractor overheads | B9: Contractor's PM and Site Costs | C9: 7523731.644 | D9: 6018985.315 | E9: 8276104.809 | G9: Contractor overheads | H9: Contractor Safety Compliance & QA Costs | I9: 2150000 | J9: 1720000 | K9: 2365000
A10: Contractor overheads | B10: Contractor's Preliminary & General | C10: 895682.77 | D10: 716546.216 | E10: 985251.047 | G10: Contractor overheads | H10: Contractor's Establishment and Disestablishment | I10: 200000 | J10: 160000 | K10: 220000
A11: Contractor overheads | B11: Contractor's Travel and Accomodation | C11: 4400000 | D11: 3520000 | E11: 4840000 | G11: Contractor overheads | H11: Contractor's PM and Site Costs | I11: 7523731.644 | J11: 6018985.315 | K11: 8276104.809
A12: Design | B12: Design Allowance | C12: 2999999.7 | D12: 2999999.7 | E12: 2999999.7 | G12: Contractor overheads | H12: Contractor's Preliminary & General | I12: 895682.77 | J12: 716546.216 | K12: 985251.047
A13: Environmental costs | B13: Environmental Costs | C13: 500000 | D13: 500000 | E13: 500000 | G13: Contractor overheads | H13: Contractors Training | I13: 0 | J13: 0 | K13: 0
A14: Escalation / Inflation allowance | B14: Escalation / Inflation allowance | C14: 13445136.5 | D14: 13445136.5 | E14: 13445136.5 | G14: Contractor overheads | H14: Contractor's Travel and Accomodation | I14: 4400000 | J14: 3520000 | K14: 4840000
A15: Freight | B15: Freight on Materials | C15: 561506.5 | D15: 561506.5 | E15: 561506.5 | G15: Environmental Costs | H15: Environmental Costs | I15: 500000 | J15: 500000 | K15: 500000
A16: IDC | B16: IDC | C16: 9506533 | D16: 9506533 | E16: 9506533 | G16: Escalation / Inflation allowance | H16: Escalation / Inflation allowance | I16: 10006706 | J16: 10006706 | K16: 10006706
A17: Legal | B17: LEGAL Allowances/Court Costs | C17: 300000 | D17: 300000 | E17: 300000 | G17: IDC | H17: IDC | I17: 9506533 | J17: 9506533 | K17: 9506533
A18: Construction work | B18: Lines | C18: 51914108.18 | D18: 45987234 | E18: 71795164.12 | G18: Legal | H18: LEGAL Allowances/Court Costs | I18: 300000 | J18: 300000 | K18: 300000
A19: Property | B19: Property Lump Sum - Disturbance and Liaison Costs | C19: 1800000.014 | D19: 1800000.014 | E19: 1800000.014 | G19: Property | H19: Property Lump Sum - Disturbance and Liaison Costs | I19: 1800000.014 | J19: 1800000.014 | K19: 1800000.014
A20: Property | B20: Property Lump Sum - Easement and Compensation Costs | C20: 2000000.016 | D20: 2000000.016 | E20: 2000000.016 | G20: Property | H20: Property Lump Sum - Easement and Compensation Costs | I20: 2000000.016 | J20: 2000000.016 | K20: 2000000.016
A21: Risk | B21: Risk Allowance - $ | C21: 8751332 | D21: 8751332 | E21: 8751332 | G21: Risk | H21: Risk Allowance - $ | I21: 9978132 | J21: 9978132 | K21: 9978132
A22: Stakeholder costs | B22: Stakeholder / Iwi Liason | C22: 390000 | D22: 390000 | E22: 390000 | G22: Stakeholder costs | H22: Stakeholder/ Iwi Liaison | I22: 390000 | J22: 390000 | K22: 390000
A23: Transpower overheads | B23: Transpower Costs - Construction Phase | C23: 5641103.116 | D23: 5474856.528 | E23: 5884666.271 | G23: Transpower overheads | H23: Transpower Costs - Construction Phase | I23: 5641103.116 | J23: 5474856.528 | K23: 5884666.271
A24: Grand Total | B24: Grand Total | C24: 113856128.9 | D24: 104714200.3 | E24: 135517589.4 | G24: Transpower overheads | H24: Consultants Support during Construction / Tendering | I24: 497499.4788 | J24: 482574.4944 | K24: 517399.4579
B25: less IDC, inflation | C25: 90904459.42 | D25: 81762530.79 | E25: 112565919.9 | G25: Grand Total | I25: =SUM(I5:I24) -> 115906742.8 | J25: =SUM(J5:J24) -> 105959752.8 | K25: =SUM(K5:K24) -> 138891581.7
H26: less IDC, Inflation | I26: =I25-I17-I16 -> 96393503.77 | J26: =J25-J17-J16 -> 86446513.82 | K26: =K25-K17-K16 -> 119378342.7
H28: new total | I28: 113856128.9
H29: IDC | I29: 9506533
H30: Inflation | I30: 13445136.5
I31: =I28-I29-I30 -> 90904459.42
I32: =I31-I26 -> -5489044.359

Sheet Lines - WRK-WKM-C TTU
A1: Project Build start | B1: 2022-09-01
A2: Project Build end | B2: 2024-06-30
A4: MCA Category | B4: Row Labels | C4: Sum of Cost | D4: Sum of Low Cost Combined | E4: Sum of High Cost Combined | H4: Row Labels | I4: Sum of Mode Cost | J4: Sum of Low Cost Combined | K4: Sum of High Cost Combined
A5: Stakeholder costs | B5: Community/Stakeholder Engagement | C5: 50000 | D5: 25000 | E5: 75000 | H5: Community Care Fund | I5: 405103 | J5: 405103 | K5: 405103
A6: Transpower Overheads | B6: Consultants Support during Construction / Tendering | C6: 72792.01862 | D6: 72792.01862 | E6: 72792.01862 | H6: Consultants Support during Construction / Tendering | I6: 497499.4788 | J6: 482574.4944 | K6: 517399.4579
A7: Contractor Overheads | B7: Contractor Safety Compliance & QA Costs | C7: 62229.42281 | D7: 49783.53824 | E7: 93344.13421 | H7: Contractor Safety Compliance & QA Costs | I7: 200000 | J7: 160000 | K7: 220000
A8: Contractor Overheads | B8: Contractor's Establishment and Disestablishment | C8: 48538.94979 | D8: 38831.15983 | E8: 72808.42468 | H8: Contractor's Establishment and Disestablishment | I8: 2150000 | J8: 1720000 | K8: 2365000
A9: Contractor Overheads | B9: Contractor's PM and Site Costs | C9: 182954.503 | D9: 146363.6024 | E9: 274431.7546 | H9: Contractor's PM and Site Costs | I9: 7523731.644 | J9: 6018985.315 | K9: 8276104.809
A10: Contractor Overheads | B10: Contractor's Preliminary & General | C10: 53517.30361 | D10: 42813.84289 | E10: 80275.95542 | H10: Contractor's Preliminary & General | I10: 895682.77 | J10: 716546.216 | K10: 985251.047
A11: Contractor Overheads | B11: Contractor's Travel and Accomodation | C11: 60000 | D11: 48000 | E11: 90000 | H11: Contractors Training | I11: 0 | J11: 0 | K11: 0
A12: Design | B12: Design Allowance (DDR) | C12: 119999.988 | D12: 119999.988 | E12: 159999.988 | H12: Contractor's Travel and Accomodation | I12: 4400000 | J12: 3520000 | K12: 4840000
A13: Investigation | B13: Detail Investigation Report (DIR) | C13: 69999.993 | D13: 69999.993 | E13: 69999.993 | H13: Design Allowance | I13: 2999999.7 | J13: 2999999.7 | K13: 2999999.7
A14: Escalation / Inflation allowance | B14: Escalation / Inflation allowance | C14: 100158.66 | D14: 100158.66 | E14: 100158.66 | H14: Environmental Costs | I14: 500000 | J14: 500000 | K14: 500000
A15: Freight | B15: Freight on Materials | C15: 20000 | D15: 20000 | E15: 20000 | H15: Escalation / Inflation allowance | I15: 10006706 | J15: 10006706 | K15: 10006706
A16: IDC | B16: IDC | C16: 29612 | D16: 29612 | E16: 29612 | H16: Freight on Materials | I16: 561506.5 | J16: 561506.5 | K16: 561506.5
A17: Construction Work | B17: Lines | C17: 992794.5705 | D17: 897740.7541 | E17: 1204244.976 | H17: IDC | I17: 9506533 | J17: 9506533 | K17: 9506533
A18: Stakeholder costs | B18: Mana Whenua Engagement | C18: 120000 | D18: 60000 | E18: 140000 | H18: LEGAL Allowances/Court Costs | I18: 300000 | J18: 300000 | K18: 300000
A19: Risk | B19: Risk Allowance - $ | C19: 235329.65 | D19: 235329.65 | E19: 235329.65 | H19: Lines | I19: 56150745.53 | J19: 49418810.04 | K19: 77355179.91
A20: Transpower Overheads | B20: Transpower Costs - Construction Phase | C20: 151384.7718 | D20: 151384.7718 | E20: 154584.7718 | H20: Property Lump Sum - Disturbance and Liaison Costs | I20: 1800000.014 | J20: 1800000.014 | K20: 1800000.014
B21: (blank) | C21: 0 | D21: 0 | E21: 0 | H21: Property Lump Sum - Easement and Compensation Costs | I21: 2000000.016 | J21: 2000000.016 | K21: 2000000.016
A22: Environmental costs | B22: Landowner Cost | C22: 314000 | D22: 314000 | E22: 414000 | H22: Risk Allowance - $ | I22: 9978132 | J22: 9978132 | K22: 9978132
A23: Transpower Overheads | B23: Vegetation | C23: 100000 | D23: 75000 | E23: 100000 | H23: Stakeholder/ Iwi Liaison | I23: 390000 | J23: 390000 | K23: 390000
A24: Transpower Overheads | B24: Environmental Costs | C24: 125000 | D24: 100000 | E24: 150000 | H24: Transpower Costs - Construction Phase | I24: 5641103.116 | J24: 5474856.528 | K24: 5884666.271
A25: Community Care Fund | B25: Community Care Fund (CCF) | C25: 10000 | D25: 10000 | E25: 10000 | H25: Grand Total | I25: 115906742.8 | J25: 105959752.8 | K25: 138891581.7
B26: Grand Total | C26: =SUM(C5:C25) -> 2918311.831 | D26: =SUM(D5:D25) -> 2606809.979 | E26: =SUM(E5:E25) -> 3546582.326
C27: =C26-C14-C16 -> 2788541.171 | D27: =D26-D14-D16 -> 2477039.319 | E27: =E26-E14-E16 -> 3416811.666

Sheet Lines - EDG-KAW-3 TTU
A1: Project Build start | B1: 2023-09-01 | I1: 2023-09-01
A2: Project Build end | B2: 2024-06-30 | I2: 2024-06-30
I3: Pivot Table dump from
A4: MCA Category | B4: TEES Category | C4: Sum of Mode Cost | D4: Sum of Low Cost Combined | E4: Sum of High Cost Combined | I4: Row Labels | J4: Sum of Mode Cost | K4: Sum of Low Cost Combined | L4: Sum of High Cost Combined
A5: Category | B5: Category | D5: 0 | E5: 0 | I5: Category | K5: 0 | L5: 0
A6: Community Care Fund | B6: Community Care Fund (CCF) | C6: 36000 | D6: 36000 | E6: 360000 | I6: Community Care Fund (CCF) | J6: 36000 | K6: 36000 | L6: 36000
A7: Stakeholder costs | B7: Community Contribution | C7: 170000 | D7: 85000 | E7: 215000 | I7: Community Contribution | J7: 170000 | K7: 85000 | L7: 215000
A8: Construction Work | B8: Construction Work | C8: 5101016.912 | D8: 4817769.698 | E8: 6013653.03 | I8: Construction Work | J8: 5101016.912 | K8: 4813809.698 | L8: 6054891.805
A9: Contractor overheads | B9: Contractor Overheads | C9: 1303266.525 | D9: 1042613.22 | E9: 1954899.787 | I9: Contractor Overheads | J9: 1303266.525 | K9: 1042613.22 | L9: 1954899.787
A10: Environmental costs | B10: Environmental | C10: 200000 | D10: 150000 | E10: 250000 | I10: Environmental | J10: 200000 | K10: 150000 | L10: 250000
A11: Escalation Allowance | B11: Escalation Allowance | C11: 339365.38 | D11: 339365.38 | E11: 339365.38 | I11: Escalation / Inflation allowance | J11: 339365.38 | K11: 339365.38 | L11: 339365.38
A12: IDC | B12: IDC | C12: 98150 | D12: 98150 | E12: 98150 | I12: Escalation Allowance | J12: 0 | K12: 0 | L12: 0
A13: Transpower overheads | B13: Landowner Cost | C13: 393000 | D13: 393000 | E13: 593000 | I13: IDC | J13: 98150 | K13: 98150 | L13: 98150
A14: Risk | B14: Risk Allowance | C14: 1320092.95 | D14: 1320092.95 | E14: 1320092.95 | I14: Landowner Cost | J14: 393000 | K14: 393000 | L14: 593000
A15: Transpower overheads | B15: Transpower Overheads | C15: 611959.0996 | D15: 611959.0996 | E15: 614019.0996 | I15: Risk Allowance | J15: 1320092.95 | K15: 1320092.95 | L15: 1320092.95
A16: Construction Work | B16: Vegetation | C16: 100000 | D16: 100000 | E16: 120000 | I16: Transpower Overheads | J16: 611959.0996 | K16: 611959.0996 | L16: 614019.0996
A17: Grand Total | B17: Grand Total | C17: 9672850.867 | D17: 8993950.347 | E17: 11878180.25 | I17: Vegetation | J17: 100000 | K17: 100000 | L17: 120000
C18: 9235335.487 | I18: Grand Total | J18: 9672850.867 | K18: 8989990.347 | L18: 11595419.02
C20: 9672850.867 | D20: 8989990.347 | E20: 11595419.02

Sheet Subs - BPE-TKU-WKM 1&2 Uprating
A1: Project Build start | B1: 2023-09-01 | H1: 2023-09-01
A2: Project Build end | B2: 2026-06-30 | H2: 2026-06-30
B5: Sub-category | C5: Total | D5: Sum of Low Cost Combined | E5: Sum of High Cost Combined
A6: Community Care Fund | B6: Community Care Fund | C6: 66632.95 | D6: 66632.95 | E6: 66632.95
A7: Contractor overheads | B7: Consultants Support during Construction / Tendering | C7: 242500 | D7: 242500 | E7: 242500
A8: Contractor overheads | B8: Contractor Safety Compliance & QA Costs | C8: 50000 | D8: 50000 | E8: 50000
A9: Contractor overheads | B9: Contractor's Establishment and Disestablishment | C9: 205000 | D9: 205000 | E9: 205000
A10: Contractor overheads | B10: Contractor's PM and Site Costs | C10: 1471440 | D10: 1471440 | E10: 1471440
A11: Contractor overheads | B11: Contractor's Preliminary & General | C11: 200000 | D11: 200000 | E11: 200000
A12: Contractor overheads | B12: Contractor's Travel and Accomodation | C12: 104000 | D12: 104000 | E12: 104000
A13: Risk | B13: Risk Allowance - $ | C13: 3913250 | D13: 3913250 | E13: 3913250
A14: SCADA | B14: RTS Group | C14: 62500 | D14: 62500 | E14: 62500 | K14: Uncertainties
A15: Primary Plant 220 kV - Other | B15: Primary Plant 220 kV - Other | C15: 5604892.759 | D15: =C15*(1-0.3) -> 3923424.931 | E15: =C15*(1+0.2) -> 6725871.311 | K15: TKA | L15: -30%/+20%. | N15: =C15+C16 -> 10408925.55
A16: Primary Plant 220 kV - Other | B16: Primary Plant 220 kV - Other | C16: 4804032.792 | D16: =C16*(1-0.5) -> 2402016.396 | E16: =C16*(1+0.4) -> 6725645.908 | K16: WKM | L16: -50%/+40%. | N16: =N15/C20 -> 0.5855643571
A17: Transpower overheads | B17: Transpower Costs - Construction Phase | C17: 746638 | D17: 746638 | E17: 746638
A18: Environmental costs | B18: Environmental Costs | C18: 80000 | D18: 80000 | E18: 80000
A19: Stakeholder costs | B19: Stakeholder costs | C19: 225000 | D19: 225000 | E19: 225000
B20: Grand Total | C20: 17775886.5

Sheet Subs - WRK-THI-WKM 1&1 Uprating
A1: Project Build start | B1: 2023-09-01 | G1: 30612 - WRK-THI-WKM 1&1 Uprating A3 | H1: 2023-09-01
A2: Project Build end | B2: 2025-06-30 | H2: 2025-06-30
G5: include uncertainty range | H5: Yes | I5: Yes
B6: Row Labels | C6: Sum of Total | D6: Sum of Low - Cost | E6: Sum of High - Cost
A7: Design | B7: Design Allowance | C7: 570000 | D7: 570000 | E7: 570000
A8: Transpower Overheads | B8: Consultants Support during Construction / Tendering | C8: 167710 | D8: 167710 | E8: 167710
A9: Contractor Overheads | B9: Contractor Safety Compliance & QA Costs | C9: 80000 | D9: 80000 | E9: 80000
A10: Contractor Overheads | B10: Contractor's Establishment and Disestablishment | C10: 270000 | D10: 270000 | E10: 270000
A11: Contractor Overheads | B11: Contractor's PM and Site Costs | C11: 549920 | D11: 549920 | E11: 549920
A12: Contractor Overheads | B12: Contractor's Preliminary & General | C12: 150000 | D12: 150000 | E12: 150000
A13: Contractor Overheads | B13: Contractor's Travel and Accomodation | C13: 52590.58939 | D13: 52590.58939 | E13: 52590.58939
A14: Risk | B14: Risk Allowance - $ | C14: 294488 | D14: 294488 | E14: 294488
A15: SCADA | B15: RTS Group | C15: 58125 | D15: 58125 | E15: 58125 | H15: lower | I15: upper
A16: Primary Plant 220 kV - Other | B16: Primary Plant 220 kV - Other | C16: 621007.6333 | D16: =$C16*IF(H$5="Yes",(1+H16),1) -> 558906.8699 | E16: =$C16*IF(I$5="Yes",(1+I16),1) -> 745209.1599 | G16: TMH | H16: -0.1 | I16: 0.2
A17: Transpower overheads | B17: Transpower Costs - Construction Phase | C17: 402400.8 | D17: 402400.8 | E17: 402400.8
A18: Primary Plant 220 kV - Other | B18: Primary Plant 220 kV - Other | C18: 3154992.882 | D18: =$C18*IF(H$5="Yes",(1+H18),1) -> 2839493.594 | E18: =$C18*IF(I$5="Yes",(1+I18),1) -> 4416990.034 | G18: WRK | H18: -0.1 | I18: 0.4
A19: Primary Plant 220 kV - Other | B19: Primary Plant 220 kV - Other | C19: 1107677.492 | D19: 553838.7461 | E19: 1550748.489 | G19: WKM | H19: -0.5 | I19: 0.4
B20: Grand Total | C20: =SUM(C7:C19) -> 7478912.397 | D20: =SUM(D7:D19) -> 6547473.599 | E20: 9308182.073

Sheet Subs - EDG-KAW Uprating
A1: Project Build start | B1: 2023-09-01
A2: Project Build end | B2: 2025-09-30
A5: Reporting Level | B5: Row Labels | C5: Sum of Cost | D5: Low | E5: High | G5: include uncertainty range | H5: Yes | I5: Yes
A6: Transpower overheads | B6: Consultants Support during Construction / Tendering | C6: 14675 | D6: 14675 | E6: 14675
A7: Contractor overheads | B7: Contractor Safety Compliance & QA Costs | C7: 3000 | D7: 3000 | E7: 3000
A8: Contractor overheads | B8: Contractor's Establishment and Disestablishment | C8: 18000 | D8: 18000 | E8: 18000
A9: Contractor overheads | B9: Contractor's PM and Site Costs | C9: 41108 | D9: 41108 | E9: 41108
A10: Contractor overheads | B10: Contractor's Preliminary & General | C10: 1593.956 | D10: 1593.956 | E10: 1593.956
A11: Contractor overheads | B11: Contractor's Travel and Accomodation | C11: 3065.3 | D11: 3065.3 | E11: 3065.3
A12: Design | B12: Design Allowance (Lump Sum - enter total $ as quantity) | C12: 60000 | D12: 60000 | E12: 60000 | H12: lower | I12: upper
A13: Primary Plant 220 kV - Other | B13: Primary Plant 220 kV - Other | C13: 162445.7848 | D13: =$C13*IF(H$5="Yes",(1+H13),1) -> 146201.2063 | E13: =$C13*IF(I$5="Yes",(1+I13),1) -> 194934.9417 | G13: EDG | H13: -0.1 | I13: 0.2
A14: Escalation Allowance | B14: Escalation / Inflation allowance | C14: 64700.26 | D14: 64700.26 | E14: 64700.26
A15: Contingency and IDC | B15: IDC | C15: 81435 | D15: 81435 | E15: 81435
A16: Primary Plant 220 kV - Other | B16: Primary Plant 220 kV - Other | C16: 24713.84 | D16: =$C16*IF(H$5="Yes",(1+H16),1) -> 22242.456 | E16: =$C16*IF(I$5="Yes",(1+I16),1) -> 27185.224 | G16: KAW | H16: -0.1 | I16: 0.1
A17: Risk | B17: Risk Allowance based on R/W Schedule | C17: 96140.96 | D17: 96140.96 | E17: 96140.96
A18: Transpower overheads | B18: Transpower Costs - Construction Phase | C18: 21295.03041 | D18: 21295.03041 | E18: 21295.03041
C19: =SUM(C6:C18) -> 592173.1312 | D19: =SUM(D6:D18) -> 573457.1687 | E19: =SUM(E6:E18) -> 627133.6721
C20: =C19-C15-C14 -> 446037.8712

Sheet Subs - HVDC Capacity Stage 1
A1: Project Build start | B1: 2024-07-01
A2: Project Build end | B2: 2027-05-31
A4: MCA Category | B4: TEES Category | C4: Mode | D4: Low | E4: High | I4: Low | J4: Mode | K4: High | N4: Low | O4: Mode | P4: High
A5: Civil Works | B5: Civil Works | C5: 8643294.847 | D5: 8643294.847 | E5: 13339123.51 | H5: Civil Works | I5: 8643294.847 | J5: 8643294.847 | K5: 13339123.51 | M5: Civil Works | N5: 8643294.847 | O5: 8643294.847 | P5: 13339123.51
A6: Primary Plant 220 kV - Statcom | B6: Primary Plant 220 kV - Statcom | C6: 36305770.65 | D6: 36305770.65 | E6: 36555132.4 | H6: Primary Plant 220 kV - Statcom | I6: 36305770.65 | J6: 36305770.65 | K6: 36555132.4 | M6: Primary Plant 220 kV - Statcom | N6: 36305770.65 | O6: 36305770.65 | P6: 36555132.4
A7: Primary Plant 220 kV - Other | B7: Primary Plant 220 kV - Other | C7: 8586088.175 | D7: 8586088.175 | E7: 9946293.75 | H7: Primary Plant 220 kV - Other | I7: 8586088.175 | J7: 8586088.175 | K7: 9946293.75 | M7: Primary Plant 220 kV - Other | N7: 8586088.175 | O7: 8586088.175 | P7: 9946293.75
A8: Cables | B8: Cables | C8: 340047.669 | D8: 340047.669 | E8: 437750.5748 | H8: Cables | I8: 340047.669 | J8: 340047.669 | K8: 437750.5748 | M8: Cables | N8: 340047.669 | O8: 340047.669 | P8: 437750.5748
A9: Protection | B9: Protection | C9: 665766.6 | D9: 665766.6 | E9: 1001481 | H9: Protection | I9: 665766.6 | J9: 665766.6 | K9: 1001481 | M9: Protection | N9: 665766.6 | O9: 665766.6 | P9: 1001481
A10: SCADA | B10: SCADA | C10: 268580.5 | D10: 268580.5 | E10: 434288 | H10: SCADA | I10: 268580.5 | J10: 268580.5 | K10: 434288 | M10: SCADA | N10: 268580.5 | O10: 268580.5 | P10: 434288
A11: Secondary Equipment | B11: Secondary Equipment | C11: 3683673.107 | D11: 3683673.107 | E11: 5398837.66 | H11: Secondary Equipment | I11: 3683673.107 | J11: 3683673.107 | K11: 5398837.66 | M11: Secondary Equipment | N11: 3683673.107 | O11: 3683673.107 | P11: 5398837.66
A12: Communications | B12: Communications | C12: 87272.5 | D12: 87272.5 | E12: 140636 | H12: Communications | I12: 87272.5 | J12: 87272.5 | K12: 140636 | M12: Communications | N12: 87272.5 | O12: 87272.5 | P12: 140636
A13: Miscellaneous works | B13: Misc | C13: 215124.72 | D13: 215124.72 | E13: 425249.44 | H13: Misc | I13: 215124.72 | J13: 215124.72 | K13: 425249.44 | M13: Misc | N13: 215124.72 | O13: 215124.72 | P13: 425249.44
A14: Switching | B14: Switching | C14: 52192 | D14: 52192 | E14: 95996 | H14: Switching | I14: 52192 | J14: 52192 | K14: 95996 | M14: Switching | N14: 52192 | O14: 52192 | P14: 95996
A15: Freight | B15: Freight | C15: 151000 | D15: 151000 | E15: 242000 | H15: Freight | I15: 151000 | J15: 151000 | K15: 242000 | M15: Freight | N15: 151000 | O15: 151000 | P15: 242000
A16: Design | B16: Design | C16: 2921500 | D16: 2921500 | E16: 5014000.55 | H16: Design | I16: 2921500 | J16: 2921500 | K16: 5014000.55 | M16: Design | N16: 2921500 | O16: 2921500 | P16: 5014000.55
A17: Risk | B17: Risk Allowance | C17: 8734500 | D17: 8734500 | E17: 8734500 | H17: Risk Allowance | I17: 8734500 | J17: 8734500 | K17: 8734500 | M17: Risk Allowance | N17: 8734500 | O17: 8734500 | P17: 8734500
A18: Transpower overheads | B18: TP Overheads | C18: 3318676.76 | D18: 3318676.76 | E18: 3914153.189 | H18: TP Overheads | I18: 4511722 | J18: 4511722 | K18: 5321268.786 | M18: TP Overheads | N18: 3318676.76 | O18: 3318676.76 | P18: 3914153.189
A19: Consultant Support | B19: Consultant Support | C19: 1160390.43 | D19: 1160390.43 | E19: 1368601.473 | H19: Consultant Support | I19: 2776639 | J19: 2776639 | K19: 3274856.571 | M19: Consultant Support | N19: 1160390.43 | O19: 1160390.43 | P19: 1368601.473
A20: Contractor overheads | B20: Contractor Overheads | C20: 5085895.73 | D20: 5085895.73 | E20: 5998467.591 | H20: Contractor Overheads | I20: 14367767 | J20: 14367767 | K20: 16945802.52 | M20: Contractor Overheads | N20: 5085895.73 | O20: 5085895.73 | P20: 5998467.591
A21: Legal | B21: Legal | C21: 25000 | D21: 25000 | E21: 29485.79714 | H21: Legal | I21: 25000 | J21: 25000 | K21: 29485.79714 | M21: Legal | N21: 25000 | O21: 25000 | P21: 29485.79714
A22: Property | B22: Property/Easement | C22: 0 | D22: 0 | E22: 0 | H22: Property/Easement | I22: 0 | J22: 0 | K22: 0 | M22: Property/Easement | N22: 0 | O22: 0 | P22: 0
A23: Environmental costs | B23: Environmental | C23: 140000 | D23: 140000 | E23: 165120.464 | H23: Environmental | I23: 140000 | J23: 140000 | K23: 165120.464 | M23: Environmental | N23: 140000 | O23: 140000 | P23: 165120.464
A24: Community Care Fund | B24: Community Contribution | C24: 202000 | D24: 202000 | E24: 238245.2409 | H24: Community Contribution | I24: 500000 | J24: 500000 | K24: 589715.9428 | M24: Community Contribution | N24: 202000 | O24: 202000 | P24: 238245.2409
A25: CPI | B25: CPI | C25: 5908798.32 | D25: 5908798.32 | E25: 0 | H25: CPI | I25: 0 | J25: 0 | K25: 0 | M25: CPI | N25: 5908798.32 | O25: 5908798.32 | P25: 0
A26: IDC | B26: IDC | C26: 4601015 | D26: 4601015 | E26: 0 | H26: IDC | I26: 0 | J26: 0 | K26: 0 | M26: IDC | N26: 4601015 | O26: 4601015 | P26: 0
C27: =SUM(C5:C26) -> 91096587.01 | D27: =SUM(D5:D26) -> 91096587.01 | E27: =SUM(E5:E26) -> 93479362.64 | N27: 91096587.01 | O27: 91096587.01 | P27: 93479362.64
C28: =C27-C25-C26 -> 80586773.69 | D28: =D27-D25-D26 -> 80586773.69 | E28: =E27-E25-E26 -> 93479362.64
